Workbook

Sheet INDICE
A8: ESTADISTICA DE MATRICULA SIMAT 2016
A9: Fuente: SIMAT Corte 12 de Abril de 2016
A28: Revisó: Luis Eduardo Pinzón Hermosa, Jefe de Cobertura.
A29: Elaboró: Ing. Yovanny Leal - Oficina de Cobertura.
A31: Calle 15 Carrera 10 Esquina Barrio El Centro. Tels: (8) 4352817-4355423.Fax (8)4362130 www.sedcaqueta.gov.co - sedcaqueta@sedcaqueta.gov.co - educación@caqueta.gov.co Florencia – Caquetá Colombia

Sheet INDICE (0)
A5: ESTADISTICA DE MATRICULA SIMAT 2016
A6: Corte 12 de Abril de 2016
A25: Revisó: Luis Eduardo Pinzón Hermosa, Jefe de Cobertura.
A26: Elaboró: Ing. Yovanny Leal - Oficina de Cobertura.
A27: Calle 15 Carrera 10 Esquina Barrio El Centro. Tels: (8) 4352817-4355423.Fax (8)4362130 www.sedcaqueta.gov.co - sedcaqueta@sedcaqueta.gov.co - educación@caqueta.gov.co Florencia – Caquetá Colombia

Sheet INDICE (1)
A5: ESTADISTICA DE MATRICULA SIMAT 2016
A6: =INDICE!A9 -> Fuente: SIMAT Corte 12 de Abril de 2016
A24: Revisó: Luis Eduardo Pinzón Hermosa, Jefe de Cobertura.
A25: Elaboró: Ing. Yovanny Leal - Oficina de Cobertura.
A26: Calle 15 Carrera 10 Esquina Barrio El Centro. Tels: (8) 4352817-4355423.Fax (8)4362130 www.sedcaqueta.gov.co - sedcaqueta@sedcaqueta.gov.co - educación@caqueta.gov.co Florencia – Caquetá Colombia

Sheet INDICE (2)
A5: ESTADISTICA DE MATRICULA SIMAT 2016
A6: =INDICE!A9 -> Fuente: SIMAT Corte 12 de Abril de 2016
A22: Revisó: Luis Eduardo Pinzón Hermosa, Jefe de Cobertura.
A23: Elaboró: Ing. Yovanny Leal - Oficina de Cobertura.
A24: Calle 15 Carrera 10 Esquina Barrio El Centro. Tels: (8) 4352817-4355423.Fax (8)4362130 www.sedcaqueta.gov.co - sedcaqueta@sedcaqueta.gov.co - educación@caqueta.gov.co Florencia – Caquetá Colombia

Sheet INDICE (3)
A5: ESTADISTICA DE MATRICULA SIMAT 2016
A6: =INDICE!A9 -> Fuente: SIMAT Corte 12 de Abril de 2016
A22: Revisó: Luis Eduardo Pinzón Hermosa, Jefe de Cobertura.
A23: Elaboró: Ing. Yovanny Leal - Oficina de Cobertura.
A24: Calle 15 Carrera 10 Esquina Barrio El Centro. Tels: (8) 4352817-4355423.Fax (8)4362130 www.sedcaqueta.gov.co - sedcaqueta@sedcaqueta.gov.co - educación@caqueta.gov.co Florencia – Caquetá Colombia

Sheet INDICE (4)
A4: ESTADISTICA DE MATRICULA SIMAT 2016
A5: =INDICE!A9 -> Fuente: SIMAT Corte 12 de Abril de 2016
A24: Revisó: Luis Eduardo Pinzón Hermosa, Jefe de Cobertura.
A25: Elaboró: Ing. Yovanny Leal - Oficina de Cobertura.
A26: Calle 15 Carrera 10 Esquina Barrio El Centro. Tels: (8) 4352817-4355423.Fax (8)4362130 www.sedcaqueta.gov.co - sedcaqueta@sedcaqueta.gov.co - educación@caqueta.gov.co Florencia – Caquetá Colombia

Sheet INDICE (5)
A5: ESTADISTICA DE MATRICULA SIMAT 2016
A6: =INDICE!A9 -> Fuente: SIMAT Corte 12 de Abril de 2016
A22: Revisó: Luis Eduardo Pinzón Hermosa, Jefe de Cobertura.
A23: Elaboró: Ing. Yovanny Leal - Oficina de Cobertura.
A24: Calle 15 Carrera 10 Esquina Barrio El Centro. Tels: (8) 4352817-4355423.Fax (8)4362130 www.sedcaqueta.gov.co - sedcaqueta@sedcaqueta.gov.co - educación@caqueta.gov.co Florencia – Caquetá Colombia

Sheet INDICE (6)
A5: ESTADISTICA DE MATRICULA SIMAT 20146
A6: =INDICE!A9 -> Fuente: SIMAT Corte 12 de Abril de 2016
A27: Revisó: Luis Eduardo Pinzón Hermosa, Jefe de Cobertura.
A28: Elaboró: Ing. Yovanny Leal - Oficina de Cobertura.
A30: Calle 15 Carrera 10 Esquina Barrio El Centro. Tels: (8) 4352817-4355423.Fax (8)4362130 www.sedcaqueta.gov.co - sedcaqueta@sedcaqueta.gov.co - educación@caqueta.gov.co Florencia – Caquetá Colombia

Sheet 0
A1: MATRICULA OFICIAL Y PRIVADA POR MUNICIPIO
B2: MUNICIPIO | C2: OFICIAL | D2: NO OFICIAL | E2: TOTAL
B3: ALBANIA | C3: 1055 | E3: 1055
B4: BELÉN DE LOS ANDAQUIES | C4: 2675 | E4: 2675
B5: CARTAGENA DEL CHAIRÁ | C5: 8228 | E5: 8228
B6: CURILLO | C6: 2299 | E6: 2299
B7: EL DONCELLO | C7: 4891 | D7: 126 | E7: 5017
B8: EL PAUJIL | C8: 3506 | E8: 3506
B9: LA MONTAÑITA | C9: 4087 | E9: 4087
B10: MILÁN | C10: 2418 | E10: 2418
B11: MORELIA | C11: 887 | E11: 887
B12: PUERTO RICO | C12: 7090 | D12: 184 | E12: 7274
B13: SAN JOSÉ DEL FRAGUA | C13: 3896 | E13: 3896
B14: SAN VICENTE DEL CAGUÁN | C14: 13398 | D14: 349 | E14: 13747
B15: SOLANO | C15: 2968 | E15: 2968
B16: SOLITA | C16: 1879 | E16: 1879
B17: VALPARAÍSO | C17: 1685 | E17: 1685
B18: TOTAL | C18: 60962 | D18: 659 | E18: 61621

Sheet 0.1
A1: MATRICULA OFICIAL Y PRIVADA POR MUNICIPIO Y E.E.
A4: MUNICIPIO | B4: INSTITUCION | C4: OFICIAL | D4: PRIVADO | E4: Total general
A5: ALBANIA | B5: C.E LA CHORROSA | C5: 148 | E5: 148
B6: I.E ALBANIA | C6: 604 | E6: 604
B7: I.E EL DORADO | C7: 303 | E7: 303
A8: BELÉN DE LOS ANDAQUIES | B8: I. E. R. PUEBLO NUEVO | C8: 242 | E8: 242
B9: I.E AGROTECNICO MIXTO | C9: 709 | E9: 709
B10: I.E ALTO SARABANDO | C10: 162 | E10: 162
B11: I.E GABRIELA MISTRAL | C11: 989 | E11: 989
B12: I.E RURAL EL PORTAL LA MONO | C12: 283 | E12: 283
B13: I.E SAN LUIS | C13: 290 | E13: 290
A14: CARTAGENA DEL CHAIRÁ | B14: I. E. R. LA ESMERALDA | C14: 344 | E14: 344
B15: I. E. R. LOS CRISTALES | C15: 310 | E15: 310
B16: I. E. R. MONSERRATE | C16: 344 | E16: 344
B17: I. E. R. PEÑAS COLORADAS | C17: 271 | E17: 271
B18: I. E. R. SANTA CRUZ DEL AGUILA | C18: 203 | E18: 203
B19: I. E. R. SANTAFE DEL CAGUAN | C19: 373 | E19: 373
B20: I.E AGROECOLOGICO AMAZONICO | C20: 1875 | E20: 1875
B21: I.E EL CHAIRA JOSE MARIA CORDOBA | C21: 2115 | E21: 2115
B22: I.E. R. DIVINO NIÑO | C22: 268 | E22: 268
B23: I.E. R. EL EDEN | C23: 238 | E23: 238
B24: I.E. R. LA SARDINATA | C24: 383 | E24: 383
B25: I.E. R. MIXTA MARIA LUISA DE MORENO | C25: 483 | E25: 483
B26: I.E. R. SAN PEDRO CLAVER | C26: 302 | E26: 302
B27: I.E. R. TEUSAQUILLO | C27: 370 | E27: 370
B28: I.E.R JOSE ANTONIO GALAN | C28: 349 | E28: 349
A29: CURILLO | B29: C.E. EL LIBERTADOR | C29: 195 | E29: 195
B30: I.E ANGEL CUNIBERTI | C30: 1596 | E30: 1596
B31: I.E. R. HORIZONTE | C31: 151 | E31: 151
B32: I.E. R. SALAMINA | C32: 146 | E32: 146
B33: I.E.R. LA NOVIA | C33: 211 | E33: 211
A34: EL DONCELLO | B34: I.E CORAZON INMACULADO DE MARIA | C34: 1048 | E34: 1048
B35: I.E JORGE ABEL MOLINA | C35: 521 | E35: 521
B36: I.E R. PUERTO MANRIQUE | C36: 191 | E36: 191
B37: I.E R. SIMON BOLIVAR | C37: 376 | E37: 376
B38: I.E RUFINO QUICHOYA | C38: 1563 | E38: 1563
B39: I.E. MARCO FIDEL SUAREZ | C39: 630 | E39: 630
B40: I.E. R. BERLIN | C40: 244 | E40: 244
B41: I.E. R. LA CEIBA | C41: 192 | E41: 192
B42: I.E. R. SAN JUDAS TADEO | C42: 126 | E42: 126
B43: LICEO INFANTIL WINNIE POOH | D43: 126 | E43: 126
A44: EL PAUJIL | B44: I.E AGROECOLOGICO AMAZONICO | C44: 1660 | E44: 1660
B45: I.E NIÑA DEL CARMEN | C45: 218 | E45: 218
B46: I.E NUESTRA SE¿ORA DE LAS MERCEDES | C46: 642 | E46: 642
B47: I.E R. LA CONCORDIA | C47: 252 | E47: 252
B48: I.E R. RAFAEL URIBE URIBE | C48: 255 | E48: 255
B49: I.E. R. BOLIVIA | C49: 200 | E49: 200
B50: I.E.R. SANTA TERESA | C50: 279 | E50: 279
A51: LA MONTAÑITA | B51: C.E LA ARGENTINA | C51: 136 | E51: 136
B52: C.E. EL JARDIN | C52: 310 | E52: 310
B53: C.E. GAITANIA | C53: 111 | E53: 111
B54: I.E NUESTRA SEÑORA DEL PERPETUO SOCORRO | C54: 759 | E54: 759
B55: I.E R. MATEGUADUA | C55: 336 | E55: 336
B56: I.E RURAL SABIO CALDAS | C56: 367 | E56: 367
B57: I.E. R. AGRO NUÑEZ | C57: 223 | E57: 223
B58: I.E. R. BRISAS DE SAN ISIDRO | C58: 333 | E58: 333
B59: I.E. R. JOSE HILARIO LOPEZ | C59: 209 | E59: 209
B60: I.E. R. PALMA ARRIBA | C60: 206 | E60: 206
B61: I.E. R. REINA BAJA | C61: 217 | E61: 217
B62: I.E.R SIMON BOLIVAR | C62: 519 | E62: 519
B63: I.E.R. EL CEDRO | C63: 97 | E63: 97
B64: I.E.R. EL DIVISO | C64: 264 | E64: 264
A65: MILÁN | B65: C.E EL DIAMANTE (MIRAVALLE) | C65: 84 | E65: 84
B66: C.E. GRANARIO | C66: 170 | E66: 170
B67: I.E MARCO FIDEL SUAREZ | C67: 332 | E67: 332
B68: I.E. R. LA FLORIDA | C68: 254 | E68: 254
B69: I.E.R ANGEL RICARDO ACOSTA | C69: 447 | E69: 447
B70: I.E.R LA RASTRA | C70: 212 | E70: 212
B71: I.E.R. ILUSION MATICURU | C71: 252 | E71: 252
B72: I.E.R. LA ANGUILLA | C72: 176 | E72: 176
B73: I.E.R. MAMA BWE REOJACHE | C73: 491 | E73: 491
A74: MORELIA | B74: C.E PALMARITO | C74: 85 | E74: 85
B75: I.E CERVANTES | C75: 621 | E75: 621
B76: I.E R. JUAN XXIII | C76: 181 | E76: 181
A77: PUERTO RICO | B77: C.E EL AGUILA | C77: 134 | E77: 134
B78: C.E LA FLORESTA # 5 | C78: 110 | E78: 110
B79: C.E. EL CARMELO | C79: 137 | E79: 137
B80: C.E. POLICARPA SALAVARRIETA | C80: 70 | E80: 70
B81: I.E ACEVEDO Y GOMEZ | C81: 1678 | E81: 1678
B82: I.E R. CENTRO INDIGENA | C82: 193 | E82: 193
B83: I.E RURAL RIO NEGRO | C83: 399 | E83: 399
B84: I.E SAGRADOS CORAZONES | C84: 2007 | E84: 2007
B85: I.E. R. VILLA DEL RIO | C85: 265 | E85: 265
B86: I.E. R. EL LOBO | C86: 217 | E86: 217
B87: I.E. R. JORGE ELIECER GAITAN | C87: 360 | E87: 360
B88: I.E. R. LA AGUILILLA | C88: 428 | E88: 428
B89: I.E. R. LA ESMERALDA | C89: 461 | E89: 461
B90: I.E. R. SANTANA RAMOS | C90: 308 | E90: 308
B91: I.E.R. CAMPO HERMOSO | C91: 163 | E91: 163
B92: I.E.R. LOMA ALTA | C92: 160 | E92: 160
B93: IDEHA | D93: 184 | E93: 184
A94: SAN JOSÉ DEL FRAGUA | B94: I.E DON QUIJOTE | C94: 953 | E94: 953
B95: I.E PARROQUIAL | C95: 917 | E95: 917
B96: I.E. R. LA GALLINETA | C96: 191 | E96: 191
B97: I.E. R. MARIA AUXILIADORA | C97: 120 | E97: 120
B98: I.E. R. PLATANILLO | C98: 248 | E98: 248
B99: I.E. RURAL LAS LAJAS | C99: 672 | E99: 672
B100: I.E.R. DIVINO NIÑO | C100: 511 | E100: 511
B101: I.E.R. INDIGENA ESPECIAL YACHAICURY | C101: 284 | E101: 284
A102: SAN VICENTE DEL CAGUÁN | B102: C.E. GIBRALTAR | C102: 77 | E102: 77
B103: C.E. INTERCULTURAL INDIGENA SAN VICENTE DEL CAGUAN | C103: 192 | E103: 192
B104: C.E. SANTA ROSA | C104: 86 | E104: 86
B105: CIUDADELA JUVENIL AMAZONICA DON BOSCO | D105: 9 | E105: 9
B106: I. E. R. LOS FUNDADORES | C106: 735 | E106: 735
B107: I. E. R. NUEVO HORIZONTE | C107: 105 | E107: 105
B108: I.E DANTE ALIGHIERI | C108: 1931 | E108: 1931
B109: I.E DOMINGO SAVIO | C109: 971 | E109: 971
B110: I.E PROMOCION SOCIAL | C110: 1801 | E110: 1801
B111: I.E VERDE AMAZONICO | C111: 1131 | E111: 1131
B112: I.E. R. ALTO QUEBRADON | C112: 440 | E112: 440
B113: I.E. R. BRISAS DEL LOSADA | C113: 163 | E113: 163
B114: I.E. R. CRISTALINA TRONCALES | C114: 224 | E114: 224
B115: I.E. R. LA SOMBRA | C115: 311 | E115: 311
B116: I.E. R. LA UNION | C116: 193 | E116: 193
B117: I.E. R. LOS POZOS | C117: 560 | E117: 560
B118: I.E. R. PLAYA RICA | C118: 53 | E118: 53
B119: I.E. R. SAN JUAN DEL LOSADA | C119: 331 | E119: 331
B120: I.E. R. SANTO DOMINGO SAVIO | C120: 136 | E120: 136
B121: I.E.R GUILLERMO RIOS MEJIA | C121: 197 | E121: 197
B122: I.E.R. ARENOSO | C122: 418 | E122: 418
B123: I.E.R. BOCANA POSETAS | C123: 141 | E123: 141
B124: I.E.R. CAMPO HERMOSO | C124: 649 | E124: 649
B125: I.E.R. CRISTALINA DEL LOSADA | C125: 151 | E125: 151
B126: I.E.R. CRISTO REY (ANTONIO NARIÑO) | C126: 338 | E126: 338
B127: I.E.R. GUAYABAL | C127: 252 | E127: 252
B128: I.E.R. LA INMACULADA | C128: 354 | E128: 354
B129: I.E.R. LA SAMARIA | C129: 431 | E129: 431
B130: I.E.R. LOS ANDES | C130: 206 | E130: 206
B131: I.E.R. PUERTO AMOR | C131: 200 | E131: 200
B132: I.E.R. SAN JOSE DE CAQUETANIA | C132: 156 | E132: 156
B133: I.E.R. VILLA CARMONA | C133: 465 | E133: 465
B134: INST FRANCISCO DE ASIS | D134: 42 | E134: 42
B135: LICEO MODERNO INFANTIL | D135: 298 | E135: 298
A136: SOLANO | B136: C.E. EL DANUBIO | C136: 101 | E136: 101
B137: C.E. PEÑAS BLANCAS | C137: 91 | E137: 91
B138: GIMNASIO MILITAR F.A.C. "TRES ESQUINAS" | C138: 65 | E138: 65
B139: I.E CAMPO ELIAS MARULANDA | C139: 829 | E139: 829
B140: I.E.R. CAMPOALEGRE | C140: 266 | E140: 266
B141: I.E.R. INDIGENA COEMANI FORTUNATO REALLY | C141: 304 | E141: 304
B142: I.E.R. INDIGENA COREGUAJE | C142: 322 | E142: 322
B143: I.E.R. LA CABAÑITA | C143: 201 | E143: 201
B144: I.E.R. LAS MERCEDES | C144: 215 | E144: 215
B145: I.E.R. MONONGUETE | C145: 346 | E145: 346
B146: I.E.R. PUERTO TEJADA | C146: 228 | E146: 228
A147: SOLITA | B147: I.E INTERNADO RURAL SOLITA | C147: 1096 | E147: 1096
B148: I.E.R. CAMPOLEJANO | C148: 250 | E148: 250
B149: I.E.R. CHONTILLOSA MEDIO | C149: 338 | E149: 338
B150: INSTITUCION EDUCATIVA RURAL JOSE CELESTINO MUTIS | C150: 195 | E150: 195
A151: VALPARAÍSO | B151: I.E VALPARAISO | C151: 634 | E151: 634
B152: I.E.R. LA MUÑOZ | C152: 208 | E152: 208
B153: I.E.R. LA RICO KM 30 | C153: 152 | E153: 152
B154: I.E.R. MIRAVALLE SANTROPEL | C154: 132 | E154: 132
B155: I.E.R. NIEVES ARRIBA | C155: 142 | E155: 142
B156: I.E.R. PLAYA RICA | C156: 175 | E156: 175
B157: I.E.R. SANTIAGO DE LA SELVA | C157: 242 | E157: 242
A158: Total general | C158: 60962 | D158: 659 | E158: 61621

Sheet 0.2
A1: MATRICULA OFICIAL Y PRIVADA POR MUNICIPIO, E.E Y SEDE
A4: MUNICIPIO | B4: INSTITUCION | C4: OFICIAL | D4: PRIVADO | E4: Total general
A5: ALBANIA | B5: C.E LA CHORROSA | C5: 148 | E5: 148
B6: ALTO CASTAÑAL | C6: 19 | E6: 19
B7: BERLIN | C7: 8 | E7: 8
B8: EL CARMEN | C8: 11 | E8: 11
B9: EL DIVISO | C9: 12 | E9: 12
B10: EL JAZMIN | C10: 9 | E10: 9
B11: FLORIDA BLANCA | C11: 15 | E11: 15
B12: FLORIDA NO. 1 | C12: 15 | E12: 15
B13: LA CHORROSA | C13: 11 | E13: 11
B14: LA ESPERANZA | C14: 8 | E14: 8
B15: LA UNION | C15: 9 | E15: 9
B16: LAS MERCEDES | C16: 10 | E16: 10
B17: LOS LIBERTADORES | C17: 10 | E17: 10
B18: SAN ISIDRO | C18: 11 | E18: 11
B19: I.E ALBANIA | C19: 604 | E19: 604
B20: PEREGRINO LOZANO | C20: 482 | E20: 482
B21: SAN CARLOS | C21: 122 | E21: 122
B22: I.E EL DORADO | C22: 303 | E22: 303
B23: AGUAS CLARAS | C23: 11 | E23: 11
B24: BELLA AURORA | C24: 8 | E24: 8
B25: CARMEN BALATA | C25: 7 | E25: 7
B26: EL DORADO | C26: 174 | E26: 174
B27: EL PARAISO | C27: 22 | E27: 22
B28: EL QUEBRADON NO 1 | C28: 1 | E28: 1
B29: LA ARGENTINA | C29: 10 | E29: 10
B30: LAS MARGARITAS | C30: 18 | E30: 18
B31: LOS JARDINES | C31: 6 | E31: 6
B32: VERSALLES | C32: 46 | E32: 46
A33: BELÉN DE LOS ANDAQUIES | B33: I. E. R. PUEBLO NUEVO | C33: 242 | E33: 242
B34: BOCANA DE LAS VERDES | C34: 12 | E34: 12
B35: LA PRIMAVERA | C35: 8 | E35: 8
B36: PRADO DE LOS ANGELES | C36: 24 | E36: 24
B37: PUEBLO NUEVO | C37: 178 | E37: 178
B38: QUISAYA | C38: 7 | E38: 7
B39: SANTA TERESA | C39: 13 | E39: 13
B40: I.E AGROTECNICO MIXTO | C40: 709 | E40: 709
B41: AGROTECNICO MIXTO | C41: 709 | E41: 709
B42: I.E ALTO SARABANDO | C42: 162 | E42: 162
B43: AGUA AZUL | C43: 3 | E43: 3
B44: ALTO PUEBLITOS | C44: 15 | E44: 15
B45: ALTO SAN JUAN | C45: 23 | E45: 23
B46: ALTO SARABANDO | C46: 27 | E46: 27
B47: BRUSELAS | C47: 7 | E47: 7
B48: CANELITOS | C48: 15 | E48: 15
B49: CRISTALINA | C49: 12 | E49: 12
B50: EL CHOCHO | C50: 14 | E50: 14
B51: LAS PLATAS | C51: 7 | E51: 7
B52: LOS ANDES | C52: 10 | E52: 10
B53: SAN ISIDRO | C53: 7 | E53: 7
B54: SANTA ELENA | C54: 8 | E54: 8
B55: SANTA ROSA | C55: 7 | E55: 7
B56: SARABANDO MEDIO | C56: 7 | E56: 7
B57: I.E GABRIELA MISTRAL | C57: 989 | E57: 989
B58: GABRIELA MISTRAL | C58: 504 | E58: 504
B59: JOSE ACEVEDO Y GOMEZ | C59: 485 | E59: 485
B60: I.E RURAL EL PORTAL LA MONO | C60: 283 | E60: 283
B61: AGUADULCE | C61: 30 | E61: 30
B62: EL CARBON | C62: 22 | E62: 22
B63: EL JAZMIN | C63: 11 | E63: 11
B64: EL PORTAL LA MONO | C64: 166 | E64: 166
B65: EL SANCHEZ | C65: 15 | E65: 15
B66: GERARDO VALENCIA CANO | C66: 11 | E66: 11
B67: MONO ALTA | C67: 6 | E67: 6
B68: TORTUGA ESTRELLA | C68: 10 | E68: 10
B69: VENADITO | C69: 12 | E69: 12
B70: I.E SAN LUIS | C70: 290 | E70: 290
B71: BELLAVISTA | C71: 10 | E71: 10
B72: EL DIAMANTE | C72: 13 | E72: 13
B73: EL MIRADOR | C73: 9 | E73: 9
B74: EL PORVENIR | C74: 10 | E74: 10
B75: LA ONDINA | C75: 9 | E75: 9
B76: LA PRADERA | C76: 9 | E76: 9
B77: LA SOLEDAD | C77: 10 | E77: 10
B78: LA UNION | C78: 5 | E78: 5
B79: LAS DELICIAS | C79: 6 | E79: 6
B80: LAS MINAS | C80: 10 | E80: 10
B81: LAS VENTANAS | C81: 9 | E81: 9
B82: LOS ALETONES | C82: 6 | E82: 6
B83: LOS TENDIDOS | C83: 5 | E83: 5
B84: SAN ANTONIO | C84: 40 | E84: 40
B85: SAN LUIS | C85: 139 | E85: 139
A86: CARTAGENA DEL CHAIRÁ | B86: I. E. R. LA ESMERALDA | C86: 344 | E86: 344
B87: BANDERAS | C87: 13 | E87: 13
B88: CAMICAYA ALTO | C88: 37 | E88: 37
B89: CAMICAYA MEDIO | C89: 26 | E89: 26
B90: COMUNEROS | C90: 11 | E90: 11
B91: EL BRILLANTE | C91: 24 | E91: 24
B92: GUADUALOSA | C92: 10 | E92: 10
B93: LA ARGENTINA | C93: 17 | E93: 17
B94: LA MACARENA | C94: 40 | E94: 40
B95: LA URIBE | C95: 16 | E95: 16
B96: LA ESMERALDA | C96: 48 | E96: 48
B97: LA LIBERTAD | C97: 11 | E97: 11
B98: LA ORQUIDIA | C98: 13 | E98: 13
B99: MIRAFLORES DEL SUNCILLAS | C99: 8 | E99: 8
B100: PATIO BONITO | C100: 22 | E100: 22
B101: SEDE BELLAVISTA | C101: 15 | E101: 15
B102: VILLA COLOMBIA | C102: 33 | E102: 33
B103: I. E. R. LOS CRISTALES | C103: 310 | E103: 310
B104: ANIBAL NUÑEZ | C104: 22 | E104: 22
B105: LA CEIBA | C105: 20 | E105: 20
B106: LA FLORIDA # 1 | C106: 14 | E106: 14
B107: LA FLORIDA # 2 | C107: 53 | E107: 53
B108: LLANITOS | C108: 21 | E108: 21
B109: LOS CRISTALES | C109: 79 | E109: 79
B110: MONTEADENTRO | C110: 24 | E110: 24
B111: PEÑAS BLANCAS | C111: 11 | E111: 11
B112: SABALETA ALTA | C112: 19 | E112: 19
B113: SEDE SAN JUAN BAUTISTA | C113: 10 | E113: 10
B114: SEDE SIMON BOLIVAR | C114: 15 | E114: 15
B115: VILLANUEVA | C115: 22 | E115: 22
B116: I. E. R. MONSERRATE | C116: 344 | E116: 344
B117: BUENAVISTA | C117: 16 | E117: 16
B118: CAÑO NEGRO | C118: 13 | E118: 13
B119: CAÑO SANTO DOMINGO | C119: 45 | E119: 45
B120: EL CONVENIO | C120: 31 | E120: 31
B121: EL GUAMO | C121: 40 | E121: 40
B122: GABRIEL GARCIA MARQUEZ | C122: 16 | E122: 16
B123: LAS QUILLAS | C123: 11 | E123: 11
B124: MANUELA BELTRAN | C124: 43 | E124: 43
B125: MONSERRATE | C125: 92 | E125: 92
B126: NARANJALES | C126: 14 | E126: 14
B127: SANTA ELENA | C127: 10 | E127: 10
B128: SIMON BOLIVAR | C128: 13 | E128: 13
B129: I. E. R. PEÑAS COLORADAS | C129: 271 | E129: 271
B130: ANIMAS ALTAS | C130: 13 | E130: 13
B131: BELLA LUZ DE LAS ANIMAS | C131: 40 | E131: 40
B132: CAÑO PERDIDO | C132: 10 | E132: 10
B133: DOCE DE OCTUBRE | C133: 45 | E133: 45
B134: EL VENADO | C134: 28 | E134: 28
B135: JOSE HILARIO ORTIZ | C135: 16 | E135: 16
B136: JUAN PABLO II | C136: 51 | E136: 51
B137: LAGUNA VERDE | C137: 26 | E137: 26
B138: LOS ANGELES | C138: 42 | E138: 42
B139: I. E. R. SANTA CRUZ DEL AGUILA | C139: 203 | E139: 203
B140: AGUAS CLARAS | C140: 28 | E140: 28
B141: EL AGUILA | C141: 69 | E141: 69
B142: EL PENEYA | C142: 1 | E142: 1
B143: EL RECREO ALTO | C143: 41 | E143: 41
B144: FRANCISCO JOSE DE CALDAS | C144: 18 | E144: 18
B145: LAS DELICIAS | C145: 19 | E145: 19
B146: NUEVA FLORESTA | C146: 14 | E146: 14
B147: YAICOGE | C147: 13 | E147: 13
B148: I. E. R. SANTAFE DEL CAGUAN | C148: 373 | E148: 373
B149: EL BOLIVAR | C149: 22 | E149: 22
B150: EL DANUBIO | C150: 17 | E150: 17
B151: EL JARDIN | C151: 14 | E151: 14
B152: EL MANANTIAL | C152: 10 | E152: 10
B153: EL PORE | C153: 12 | E153: 12
B154: EL PORVENIR NO. 1 | C154: 21 | E154: 21
B155: EL RENACER DE ARMERO | C155: 8 | E155: 8
B156: LA PAZ NO. 3 | C156: 11 | E156: 11
B157: LA REDONDA | C157: 10 | E157: 10
B158: PAZ NO. 2 | C158: 33 | E158: 33
B159: SAN ISIDRO | C159: 10 | E159: 10
B160: SANTA FE DEL CAGUAN | C160: 205 | E160: 205
B161: I.E AGROECOLOGICO AMAZONICO | C161: 1875 | E161: 1875
B162: AGROECOLOGICO | C162: 1022 | E162: 1022
B163: ATANASIO GIRARDOT | C163: 365 | E163: 365
B164: BUENOS AIRES | C164: 224 | E164: 224
B165: SEDE ALONSO GAITAN | C165: 264 | E165: 264
B166: I.E EL CHAIRA JOSE MARIA CORDOBA | C166: 2115 | E166: 2115
B167: EL CHAIRA | C167: 553 | E167: 553
B168: JOSE MARIA CORDOBA | C168: 848 | E168: 848
B169: PRIMERO DE AGOSTO | C169: 714 | E169: 714
B170: I.E. R. DIVINO NIÑO | C170: 268 | E170: 268
B171: ALTO BONITO | C171: 8 | E171: 8
B172: BOCANA DEL ANAYA | C172: 18 | E172: 18
B173: CAMPOALEGRE | C173: 15 | E173: 15
B174: DIVINO NIÑO # 2 | C174: 98 | E174: 98
B175: EL DIAMANTE | C175: 19 | E175: 19
B176: EL RUBI | C176: 9 | E176: 9
B177: FUNDACION | C177: 42 | E177: 42
B178: LAS MERCEDES | C178: 17 | E178: 17
B179: RIO CLARO | C179: 20 | E179: 20
B180: RISARALDA | C180: 5 | E180: 5
B181: SAN ANTONIO DEL HIGUERON | C181: 13 | E181: 13
B182: VISTA HERMOSA | C182: 4 | E182: 4
B183: I.E. R. EL EDEN | C183: 238 | E183: 238
B184: ALTO ARENOSO | C184: 12 | E184: 12
B185: EL CAIRO | C185: 14 | E185: 14
B186: EL EDEN | C186: 60 | E186: 60
B187: EL TRIUNFO | C187: 10 | E187: 10
B188: LA PRIMAVERA | C188: 11 | E188: 11
B189: LA REFORMA | C189: 33 | E189: 33
B190: LAS PISCINAS | C190: 45 | E190: 45
B191: LOS ESPEJOS | C191: 53 | E191: 53
B192: I.E. R. LA SARDINATA | C192: 383 | E192: 383
B193: ALTA SARDINATA | C193: 16 | E193: 16
B194: ANDAKI | C194: 16 | E194: 16
B195: BARCELONA | C195: 17 | E195: 17
B196: DIVINO NIÑO 1 | C196: 13 | E196: 13
B197: EL PRADO | C197: 19 | E197: 19
B198: EL RETIRO | C198: 11 | E198: 11
B199: LA HOLANDA | C199: 46 | E199: 46
B200: LA SARDINATA | C200: 129 | E200: 129
B201: LOS REMANSOS | C201: 46 | E201: 46
B202: NUEVO HORIZONTE | C202: 15 | E202: 15
... 1187 more rows

Sheet 0.3
A1: MATRICULA OFICIAL Y PRIVADA POR MUNICIPIO, GENERO Y ZONA
B4: OFICIAL | H4: Total OFICIAL | I4: PRIVADO | L4: Total PRIVADO | M4: Total general
B5: R | D5: Total R | E5: U | G5: Total U | I5: U | K5: Total U
A6: MUNICIPIO | B6: FEMENINO | C6: MASCULINO | E6: FEMENINO | F6: MASCULINO | I6: FEMENINO | J6: MASCULINO
A7: ALBANIA | B7: 215 | C7: 236 | D7: 451 | E7: 308 | F7: 296 | G7: 604 | H7: 1055 | M7: 1055
A8: BELÉN DE LOS ANDAQUIES | B8: 467 | C8: 510 | D8: 977 | E8: 867 | F8: 831 | G8: 1698 | H8: 2675 | M8: 2675
A9: CARTAGENA DEL CHAIRÁ | B9: 2254 | C9: 2698 | D9: 4952 | E9: 1761 | F9: 1515 | G9: 3276 | H9: 8228 | M9: 8228
A10: CURILLO | B10: 325 | C10: 378 | D10: 703 | E10: 764 | F10: 832 | G10: 1596 | H10: 2299 | M10: 2299
A11: EL DONCELLO | B11: 507 | C11: 622 | D11: 1129 | E11: 1914 | F11: 1848 | G11: 3762 | H11: 4891 | I11: 60 | J11: 66 | K11: 126 | L11: 126 | M11: 5017
A12: EL PAUJIL | B12: 973 | C12: 1081 | D12: 2054 | E12: 747 | F12: 705 | G12: 1452 | H12: 3506 | M12: 3506
A13: LA MONTAÑITA | B13: 1549 | C13: 1779 | D13: 3328 | E13: 382 | F13: 377 | G13: 759 | H13: 4087 | M13: 4087
A14: MILÁN | B14: 960 | C14: 1126 | D14: 2086 | E14: 160 | F14: 172 | G14: 332 | H14: 2418 | M14: 2418
A15: MORELIA | B15: 135 | C15: 131 | D15: 266 | E15: 330 | F15: 291 | G15: 621 | H15: 887 | M15: 887
A16: PUERTO RICO | B16: 1591 | C16: 1814 | D16: 3405 | E16: 1872 | F16: 1813 | G16: 3685 | H16: 7090 | I16: 93 | J16: 91 | K16: 184 | L16: 184 | M16: 7274
A17: SAN JOSÉ DEL FRAGUA | B17: 981 | C17: 1044 | D17: 2025 | E17: 969 | F17: 901 | G17: 1870 | H17: 3895 | M17: 3895
A18: SAN VICENTE DEL CAGUÁN | B18: 3580 | C18: 3997 | D18: 7577 | E18: 2992 | F18: 2829 | G18: 5821 | H18: 13398 | I18: 181 | J18: 168 | K18: 349 | L18: 349 | M18: 13747
A19: SOLANO | B19: 992 | C19: 1147 | D19: 2139 | E19: 426 | F19: 403 | G19: 829 | H19: 2968 | M19: 2968
A20: SOLITA | B20: 378 | C20: 405 | D20: 783 | E20: 578 | F20: 518 | G20: 1096 | H20: 1879 | M20: 1879
A21: VALPARAÍSO | B21: 481 | C21: 570 | D21: 1051 | E21: 333 | F21: 301 | G21: 634 | H21: 1685 | M21: 1685
A22: Total general | B22: 15388 | C22: 17538 | D22: 32926 | E22: 14403 | F22: 13632 | G22: 28035 | H22: 60961 | I22: 334 | J22: 325 | K22: 659 | L22: 659 | M22: 61620

Sheet 0.4
A1: MATRICULA OFICIAL Y PRIVADA POR MUNICIPIO, E.E, GENERO Y ZONA
C4: OFICIAL | I4: Total OFICIAL | J4: PRIVADO | M4: Total PRIVADO | N4: Total general
C5: R | E5: Total R | F5: U | H5: Total U | J5: U | L5: Total U
A6: MUNICIPIO | B6: INSTITUCION | C6: FEMENINO | D6: MASCULINO | F6: FEMENINO | G6: MASCULINO | J6: FEMENINO | K6: MASCULINO
A7: ALBANIA | B7: C.E LA CHORROSA | C7: 72 | D7: 76 | E7: 148 | I7: 148 | N7: 148
B8: I.E ALBANIA | F8: 308 | G8: 296 | H8: 604 | I8: 604 | N8: 604
B9: I.E EL DORADO | C9: 143 | D9: 160 | E9: 303 | I9: 303 | N9: 303
A10: BELÉN DE LOS ANDAQUIES | B10: I. E. R. PUEBLO NUEVO | C10: 118 | D10: 124 | E10: 242 | I10: 242 | N10: 242
B11: I.E AGROTECNICO MIXTO | F11: 364 | G11: 345 | H11: 709 | I11: 709 | N11: 709
B12: I.E ALTO SARABANDO | C12: 73 | D12: 89 | E12: 162 | I12: 162 | N12: 162
B13: I.E GABRIELA MISTRAL | F13: 503 | G13: 486 | H13: 989 | I13: 989 | N13: 989
B14: I.E RURAL EL PORTAL LA MONO | C14: 142 | D14: 141 | E14: 283 | I14: 283 | N14: 283
B15: I.E SAN LUIS | C15: 134 | D15: 156 | E15: 290 | I15: 290 | N15: 290
A16: CARTAGENA DEL CHAIRÁ | B16: I. E. R. LA ESMERALDA | C16: 159 | D16: 185 | E16: 344 | I16: 344 | N16: 344
B17: I. E. R. LOS CRISTALES | C17: 138 | D17: 172 | E17: 310 | I17: 310 | N17: 310
B18: I. E. R. MONSERRATE | C18: 162 | D18: 182 | E18: 344 | I18: 344 | N18: 344
B19: I. E. R. PEÑAS COLORADAS | C19: 105 | D19: 166 | E19: 271 | I19: 271 | N19: 271
B20: I. E. R. SANTA CRUZ DEL AGUILA | C20: 102 | D20: 101 | E20: 203 | I20: 203 | N20: 203
B21: I. E. R. SANTAFE DEL CAGUAN | C21: 156 | D21: 217 | E21: 373 | I21: 373 | N21: 373
B22: I.E AGROECOLOGICO AMAZONICO | F22: 987 | G22: 888 | H22: 1875 | I22: 1875 | N22: 1875
B23: I.E EL CHAIRA JOSE MARIA CORDOBA | C23: 356 | D23: 358 | E23: 714 | F23: 774 | G23: 627 | H23: 1401 | I23: 2115 | N23: 2115
B24: I.E. R. DIVINO NIÑO | C24: 126 | D24: 142 | E24: 268 | I24: 268 | N24: 268
B25: I.E. R. EL EDEN | C25: 102 | D25: 136 | E25: 238 | I25: 238 | N25: 238
B26: I.E. R. LA SARDINATA | C26: 177 | D26: 206 | E26: 383 | I26: 383 | N26: 383
B27: I.E. R. MIXTA MARIA LUISA DE MORENO | C27: 230 | D27: 253 | E27: 483 | I27: 483 | N27: 483
B28: I.E. R. SAN PEDRO CLAVER | C28: 124 | D28: 178 | E28: 302 | I28: 302 | N28: 302
B29: I.E. R. TEUSAQUILLO | C29: 160 | D29: 210 | E29: 370 | I29: 370 | N29: 370
B30: I.E.R JOSE ANTONIO GALAN | C30: 157 | D30: 192 | E30: 349 | I30: 349 | N30: 349
A31: CURILLO | B31: C.E. EL LIBERTADOR | C31: 92 | D31: 103 | E31: 195 | I31: 195 | N31: 195
B32: I.E ANGEL CUNIBERTI | F32: 764 | G32: 832 | H32: 1596 | I32: 1596 | N32: 1596
B33: I.E. R. HORIZONTE | C33: 65 | D33: 86 | E33: 151 | I33: 151 | N33: 151
B34: I.E. R. SALAMINA | C34: 67 | D34: 79 | E34: 146 | I34: 146 | N34: 146
B35: I.E.R. LA NOVIA | C35: 101 | D35: 110 | E35: 211 | I35: 211 | N35: 211
A36: EL DONCELLO | B36: I.E CORAZON INMACULADO DE MARIA | F36: 550 | G36: 498 | H36: 1048 | I36: 1048 | N36: 1048
B37: I.E JORGE ABEL MOLINA | F37: 248 | G37: 273 | H37: 521 | I37: 521 | N37: 521
B38: I.E R. PUERTO MANRIQUE | C38: 84 | D38: 107 | E38: 191 | I38: 191 | N38: 191
B39: I.E R. SIMON BOLIVAR | C39: 159 | D39: 217 | E39: 376 | I39: 376 | N39: 376
B40: I.E RUFINO QUICHOYA | F40: 805 | G40: 758 | H40: 1563 | I40: 1563 | N40: 1563
B41: I.E. MARCO FIDEL SUAREZ | F41: 311 | G41: 319 | H41: 630 | I41: 630 | N41: 630
B42: I.E. R. BERLIN | C42: 128 | D42: 116 | E42: 244 | I42: 244 | N42: 244
B43: I.E. R. LA CEIBA | C43: 87 | D43: 105 | E43: 192 | I43: 192 | N43: 192
B44: I.E. R. SAN JUDAS TADEO | C44: 49 | D44: 77 | E44: 126 | I44: 126 | N44: 126
B45: LICEO INFANTIL WINNIE POOH | J45: 60 | K45: 66 | L45: 126 | M45: 126 | N45: 126
A46: EL PAUJIL | B46: I.E AGROECOLOGICO AMAZONICO | C46: 421 | D46: 429 | E46: 850 | F46: 382 | G46: 428 | H46: 810 | I46: 1660 | N46: 1660
B47: I.E NIÑA DEL CARMEN | C47: 100 | D47: 118 | E47: 218 | I47: 218 | N47: 218
B48: I.E NUESTRA SE¿ORA DE LAS MERCEDES | F48: 365 | G48: 277 | H48: 642 | I48: 642 | N48: 642
B49: I.E R. LA CONCORDIA | C49: 114 | D49: 138 | E49: 252 | I49: 252 | N49: 252
B50: I.E R. RAFAEL URIBE URIBE | C50: 114 | D50: 141 | E50: 255 | I50: 255 | N50: 255
B51: I.E. R. BOLIVIA | C51: 101 | D51: 99 | E51: 200 | I51: 200 | N51: 200
B52: I.E.R. SANTA TERESA | C52: 123 | D52: 156 | E52: 279 | I52: 279 | N52: 279
A53: LA MONTAÑITA | B53: C.E LA ARGENTINA | C53: 69 | D53: 67 | E53: 136 | I53: 136 | N53: 136
B54: C.E. EL JARDIN | C54: 147 | D54: 163 | E54: 310 | I54: 310 | N54: 310
B55: C.E. GAITANIA | C55: 48 | D55: 63 | E55: 111 | I55: 111 | N55: 111
B56: I.E NUESTRA SEÑORA DEL PERPETUO SOCORRO | F56: 382 | G56: 377 | H56: 759 | I56: 759 | N56: 759
B57: I.E R. MATEGUADUA | C57: 166 | D57: 170 | E57: 336 | I57: 336 | N57: 336
B58: I.E RURAL SABIO CALDAS | C58: 165 | D58: 202 | E58: 367 | I58: 367 | N58: 367
B59: I.E. R. AGRO NUÑEZ | C59: 102 | D59: 121 | E59: 223 | I59: 223 | N59: 223
B60: I.E. R. BRISAS DE SAN ISIDRO | C60: 175 | D60: 158 | E60: 333 | I60: 333 | N60: 333
B61: I.E. R. JOSE HILARIO LOPEZ | C61: 87 | D61: 122 | E61: 209 | I61: 209 | N61: 209
B62: I.E. R. PALMA ARRIBA | C62: 91 | D62: 115 | E62: 206 | I62: 206 | N62: 206
B63: I.E. R. REINA BAJA | C63: 85 | D63: 132 | E63: 217 | I63: 217 | N63: 217
B64: I.E.R SIMON BOLIVAR | C64: 260 | D64: 259 | E64: 519 | I64: 519 | N64: 519
B65: I.E.R. EL CEDRO | C65: 41 | D65: 56 | E65: 97 | I65: 97 | N65: 97
B66: I.E.R. EL DIVISO | C66: 113 | D66: 151 | E66: 264 | I66: 264 | N66: 264
A67: MILÁN | B67: C.E EL DIAMANTE (MIRAVALLE) | C67: 43 | D67: 41 | E67: 84 | I67: 84 | N67: 84
B68: C.E. GRANARIO | C68: 79 | D68: 91 | E68: 170 | I68: 170 | N68: 170
B69: I.E MARCO FIDEL SUAREZ | F69: 160 | G69: 172 | H69: 332 | I69: 332 | N69: 332
B70: I.E. R. LA FLORIDA | C70: 113 | D70: 141 | E70: 254 | I70: 254 | N70: 254
B71: I.E.R ANGEL RICARDO ACOSTA | C71: 221 | D71: 226 | E71: 447 | I71: 447 | N71: 447
B72: I.E.R LA RASTRA | C72: 105 | D72: 107 | E72: 212 | I72: 212 | N72: 212
B73: I.E.R. ILUSION MATICURU | C73: 102 | D73: 150 | E73: 252 | I73: 252 | N73: 252
B74: I.E.R. LA ANGUILLA | C74: 71 | D74: 105 | E74: 176 | I74: 176 | N74: 176
B75: I.E.R. MAMA BWE REOJACHE | C75: 226 | D75: 265 | E75: 491 | I75: 491 | N75: 491
A76: MORELIA | B76: C.E PALMARITO | C76: 46 | D76: 39 | E76: 85 | I76: 85 | N76: 85
B77: I.E CERVANTES | F77: 330 | G77: 291 | H77: 621 | I77: 621 | N77: 621
B78: I.E R. JUAN XXIII | C78: 89 | D78: 92 | E78: 181 | I78: 181 | N78: 181
A79: PUERTO RICO | B79: C.E EL AGUILA | C79: 58 | D79: 76 | E79: 134 | I79: 134 | N79: 134
B80: C.E LA FLORESTA # 5 | C80: 47 | D80: 63 | E80: 110 | I80: 110 | N80: 110
B81: C.E. EL CARMELO | C81: 64 | D81: 73 | E81: 137 | I81: 137 | N81: 137
B82: C.E. POLICARPA SALAVARRIETA | C82: 31 | D82: 39 | E82: 70 | I82: 70 | N82: 70
B83: I.E ACEVEDO Y GOMEZ | F83: 841 | G83: 837 | H83: 1678 | I83: 1678 | N83: 1678
B84: I.E R. CENTRO INDIGENA | C84: 84 | D84: 109 | E84: 193 | I84: 193 | N84: 193
B85: I.E RURAL RIO NEGRO | C85: 221 | D85: 178 | E85: 399 | I85: 399 | N85: 399
B86: I.E SAGRADOS CORAZONES | F86: 1031 | G86: 976 | H86: 2007 | I86: 2007 | N86: 2007
B87: I.E. R. VILLA DEL RIO | C87: 138 | D87: 127 | E87: 265 | I87: 265 | N87: 265
B88: I.E. R. EL LOBO | C88: 97 | D88: 120 | E88: 217 | I88: 217 | N88: 217
B89: I.E. R. JORGE ELIECER GAITAN | C89: 148 | D89: 212 | E89: 360 | I89: 360 | N89: 360
B90: I.E. R. LA AGUILILLA | C90: 199 | D90: 229 | E90: 428 | I90: 428 | N90: 428
B91: I.E. R. LA ESMERALDA | C91: 219 | D91: 242 | E91: 461 | I91: 461 | N91: 461
B92: I.E. R. SANTANA RAMOS | C92: 133 | D92: 175 | E92: 308 | I92: 308 | N92: 308
B93: I.E.R. CAMPO HERMOSO | C93: 80 | D93: 83 | E93: 163 | I93: 163 | N93: 163
B94: I.E.R. LOMA ALTA | C94: 72 | D94: 88 | E94: 160 | I94: 160 | N94: 160
B95: IDEHA | J95: 93 | K95: 91 | L95: 184 | M95: 184 | N95: 184
A96: SAN JOSÉ DEL FRAGUA | B96: I.E DON QUIJOTE | F96: 483 | G96: 470 | H96: 953 | I96: 953 | N96: 953
B97: I.E PARROQUIAL | F97: 486 | G97: 431 | H97: 917 | I97: 917 | N97: 917
B98: I.E. R. LA GALLINETA | C98: 84 | D98: 107 | E98: 191 | I98: 191 | N98: 191
B99: I.E. R. MARIA AUXILIADORA | C99: 62 | D99: 58 | E99: 120 | I99: 120 | N99: 120
B100: I.E. R. PLATANILLO | C100: 101 | D100: 146 | E100: 247 | I100: 247 | N100: 247
B101: I.E. RURAL LAS LAJAS | C101: 342 | D101: 330 | E101: 672 | I101: 672 | N101: 672
B102: I.E.R. DIVINO NIÑO | C102: 260 | D102: 251 | E102: 511 | I102: 511 | N102: 511
B103: I.E.R. INDIGENA ESPECIAL YACHAICURY | C103: 132 | D103: 152 | E103: 284 | I103: 284 | N103: 284
A104: SAN VICENTE DEL CAGUÁN | B104: C.E. GIBRALTAR | C104: 34 | D104: 43 | E104: 77 | I104: 77 | N104: 77
B105: C.E. INTERCULTURAL INDIGENA SAN VICENTE DEL CAGUAN | C105: 82 | D105: 110 | E105: 192 | I105: 192 | N105: 192
B106: C.E. SANTA ROSA | C106: 38 | D106: 48 | E106: 86 | I106: 86 | N106: 86
B107: CIUDADELA JUVENIL AMAZONICA DON BOSCO | J107: 2 | K107: 7 | L107: 9 | M107: 9 | N107: 9
B108: I. E. R. LOS FUNDADORES | C108: 386 | D108: 349 | E108: 735 | I108: 735 | N108: 735
B109: I. E. R. NUEVO HORIZONTE | C109: 52 | D109: 53 | E109: 105 | I109: 105 | N109: 105
B110: I.E DANTE ALIGHIERI | C110: 8 | D110: 5 | E110: 13 | F110: 1007 | G110: 911 | H110: 1918 | I110: 1931 | N110: 1931
B111: I.E DOMINGO SAVIO | F111: 502 | G111: 469 | H111: 971 | I111: 971 | N111: 971
B112: I.E PROMOCION SOCIAL | F112: 904 | G112: 897 | H112: 1801 | I112: 1801 | N112: 1801
B113: I.E VERDE AMAZONICO | F113: 579 | G113: 552 | H113: 1131 | I113: 1131 | N113: 1131
B114: I.E. R. ALTO QUEBRADON | C114: 206 | D114: 234 | E114: 440 | I114: 440 | N114: 440
B115: I.E. R. BRISAS DEL LOSADA | C115: 75 | D115: 88 | E115: 163 | I115: 163 | N115: 163
B116: I.E. R. CRISTALINA TRONCALES | C116: 106 | D116: 118 | E116: 224 | I116: 224 | N116: 224
B117: I.E. R. LA SOMBRA | C117: 142 | D117: 169 | E117: 311 | I117: 311 | N117: 311
B118: I.E. R. LA UNION | C118: 91 | D118: 102 | E118: 193 | I118: 193 | N118: 193
B119: I.E. R. LOS POZOS | C119: 274 | D119: 286 | E119: 560 | I119: 560 | N119: 560
B120: I.E. R. PLAYA RICA | C120: 26 | D120: 27 | E120: 53 | I120: 53 | N120: 53
B121: I.E. R. SAN JUAN DEL LOSADA | C121: 142 | D121: 189 | E121: 331 | I121: 331 | N121: 331
B122: I.E. R. SANTO DOMINGO SAVIO | C122: 61 | D122: 75 | E122: 136 | I122: 136 | N122: 136
B123: I.E.R GUILLERMO RIOS MEJIA | C123: 99 | D123: 98 | E123: 197 | I123: 197 | N123: 197
B124: I.E.R. ARENOSO | C124: 196 | D124: 222 | E124: 418 | I124: 418 | N124: 418
B125: I.E.R. BOCANA POSETAS | C125: 73 | D125: 68 | E125: 141 | I125: 141 | N125: 141
B126: I.E.R. CAMPO HERMOSO | C126: 304 | D126: 345 | E126: 649 | I126: 649 | N126: 649
B127: I.E.R. CRISTALINA DEL LOSADA | C127: 65 | D127: 86 | E127: 151 | I127: 151 | N127: 151
B128: I.E.R. CRISTO REY (ANTONIO NARIÑO) | C128: 182 | D128: 156 | E128: 338 | I128: 338 | N128: 338
B129: I.E.R. GUAYABAL | C129: 111 | D129: 141 | E129: 252 | I129: 252 | N129: 252
B130: I.E.R. LA INMACULADA | C130: 165 | D130: 189 | E130: 354 | I130: 354 | N130: 354
B131: I.E.R. LA SAMARIA | C131: 181 | D131: 250 | E131: 431 | I131: 431 | N131: 431
B132: I.E.R. LOS ANDES | C132: 100 | D132: 106 | E132: 206 | I132: 206 | N132: 206
B133: I.E.R. PUERTO AMOR | C133: 93 | D133: 107 | E133: 200 | I133: 200 | N133: 200
B134: I.E.R. SAN JOSE DE CAQUETANIA | C134: 73 | D134: 83 | E134: 156 | I134: 156 | N134: 156
B135: I.E.R. VILLA CARMONA | C135: 215 | D135: 250 | E135: 465 | I135: 465 | N135: 465
B136: INST FRANCISCO DE ASIS | J136: 21 | K136: 21 | L136: 42 | M136: 42 | N136: 42
B137: LICEO MODERNO INFANTIL | J137: 158 | K137: 140 | L137: 298 | M137: 298 | N137: 298
A138: SOLANO | B138: C.E. EL DANUBIO | C138: 46 | D138: 55 | E138: 101 | I138: 101 | N138: 101
B139: C.E. PEÑAS BLANCAS | C139: 49 | D139: 42 | E139: 91 | I139: 91 | N139: 91
B140: GIMNASIO MILITAR F.A.C. "TRES ESQUINAS" | C140: 30 | D140: 35 | E140: 65 | I140: 65 | N140: 65
B141: I.E CAMPO ELIAS MARULANDA | F141: 426 | G141: 403 | H141: 829 | I141: 829 | N141: 829
B142: I.E.R. CAMPOALEGRE | C142: 127 | D142: 139 | E142: 266 | I142: 266 | N142: 266
B143: I.E.R. INDIGENA COEMANI FORTUNATO REALLY | C143: 137 | D143: 167 | E143: 304 | I143: 304 | N143: 304
B144: I.E.R. INDIGENA COREGUAJE | C144: 144 | D144: 178 | E144: 322 | I144: 322 | N144: 322
B145: I.E.R. LA CABAÑITA | C145: 77 | D145: 124 | E145: 201 | I145: 201 | N145: 201
B146: I.E.R. LAS MERCEDES | C146: 105 | D146: 110 | E146: 215 | I146: 215 | N146: 215
B147: I.E.R. MONONGUETE | C147: 172 | D147: 174 | E147: 346 | I147: 346 | N147: 346
B148: I.E.R. PUERTO TEJADA | C148: 105 | D148: 123 | E148: 228 | I148: 228 | N148: 228
A149: SOLITA | B149: I.E INTERNADO RURAL SOLITA | F149: 578 | G149: 518 | H149: 1096 | I149: 1096 | N149: 1096
B150: I.E.R. CAMPOLEJANO | C150: 115 | D150: 135 | E150: 250 | I150: 250 | N150: 250
B151: I.E.R. CHONTILLOSA MEDIO | C151: 167 | D151: 171 | E151: 338 | I151: 338 | N151: 338
B152: INSTITUCION EDUCATIVA RURAL JOSE CELESTINO MUTIS | C152: 96 | D152: 99 | E152: 195 | I152: 195 | N152: 195
A153: VALPARAÍSO | B153: I.E VALPARAISO | F153: 333 | G153: 301 | H153: 634 | I153: 634 | N153: 634
B154: I.E.R. LA MUÑOZ | C154: 90 | D154: 118 | E154: 208 | I154: 208 | N154: 208
B155: I.E.R. LA RICO KM 30 | C155: 68 | D155: 84 | E155: 152 | I155: 152 | N155: 152
B156: I.E.R. MIRAVALLE SANTROPEL | C156: 49 | D156: 83 | E156: 132 | I156: 132 | N156: 132
B157: I.E.R. NIEVES ARRIBA | C157: 64 | D157: 78 | E157: 142 | I157: 142 | N157: 142
B158: I.E.R. PLAYA RICA | C158: 80 | D158: 95 | E158: 175 | I158: 175 | N158: 175
B159: I.E.R. SANTIAGO DE LA SELVA | C159: 130 | D159: 112 | E159: 242 | I159: 242 | N159: 242
A160: Total general | C160: 15388 | D160: 17538 | E160: 32926 | F160: 14403 | G160: 13632 | H160: 28035 | I160: 60961 | J160: 334 | K160: 325 | L160: 659 | M160: 659 | N160: 61620

Sheet 1
A1: MATRICULA OFICIAL POR MUNICIPIO, ZONA, GENERO Y NIVEL
B4: R | N4: Total R | O4: U | AA4: Total U | AB4: Total general
B5: FEMENINO | G5: Total FEMENINO | H5: MASCULINO | M5: Total MASCULINO | O5: FEMENINO | T5: Total FEMENINO | U5: MASCULINO | Z5: Total MASCULINO
A6: MUNICIPIO | B6: 1. PREESCOLAR | C6: 2. PRIMARIA | D6: 3. SECUNDARIA | E6: 4. MEDIA | F6: 5. CICLOS | H6: 1. PREESCOLAR | I6: 2. PRIMARIA | J6: 3. SECUNDARIA | K6: 4. MEDIA | L6: 5. CICLOS | O6: 1. PREESCOLAR | P6: 2. PRIMARIA | Q6: 3. SECUNDARIA | R6: 4. MEDIA | S6: 5. CICLOS | U6: 1. PREESCOLAR | V6: 2. PRIMARIA | W6: 3. SECUNDARIA | X6: 4. MEDIA | Y6: 5. CICLOS
A7: ALBANIA | B7: 13 | C7: 125 | D7: 63 | E7: 14 | G7: 215 | H7: 15 | I7: 146 | J7: 62 | K7: 13 | M7: 236 | N7: 451 | O7: 16 | P7: 111 | Q7: 133 | R7: 48 | T7: 308 | U7: 17 | V7: 106 | W7: 124 | X7: 49 | Z7: 296 | AA7: 604 | AB7: 1055
A8: BELÉN DE LOS ANDAQUIES | B8: 35 | C8: 287 | D8: 108 | E8: 15 | F8: 22 | G8: 467 | H8: 49 | I8: 292 | J8: 118 | K8: 27 | L8: 24 | M8: 510 | N8: 977 | O8: 47 | P8: 343 | Q8: 284 | R8: 98 | S8: 95 | T8: 867 | U8: 60 | V8: 353 | W8: 251 | X8: 108 | Y8: 59 | Z8: 831 | AA8: 1698 | AB8: 2675
A9: CARTAGENA DEL CHAIRÁ | B9: 188 | C9: 1499 | D9: 532 | E9: 25 | F9: 10 | G9: 2254 | H9: 237 | I9: 1846 | J9: 580 | K9: 25 | L9: 10 | M9: 2698 | N9: 4952 | O9: 111 | P9: 710 | Q9: 562 | R9: 166 | S9: 212 | T9: 1761 | U9: 99 | V9: 700 | W9: 441 | X9: 141 | Y9: 134 | Z9: 1515 | AA9: 3276 | AB9: 8228
A10: CURILLO | B10: 38 | C10: 176 | D10: 107 | E10: 4 | G10: 325 | H10: 21 | I10: 228 | J10: 124 | K10: 5 | M10: 378 | N10: 703 | O10: 35 | P10: 316 | Q10: 225 | R10: 87 | S10: 101 | T10: 764 | U10: 51 | V10: 372 | W10: 259 | X10: 95 | Y10: 55 | Z10: 832 | AA10: 1596 | AB10: 2299
A11: EL DONCELLO | B11: 43 | C11: 269 | D11: 146 | E11: 32 | F11: 17 | G11: 507 | H11: 42 | I11: 369 | J11: 174 | K11: 32 | L11: 5 | M11: 622 | N11: 1129 | O11: 153 | P11: 729 | Q11: 610 | R11: 191 | S11: 231 | T11: 1914 | U11: 121 | V11: 702 | W11: 627 | X11: 173 | Y11: 225 | Z11: 1848 | AA11: 3762 | AB11: 4891
A12: EL PAUJIL | B12: 37 | C12: 471 | D12: 320 | E12: 42 | F12: 103 | G12: 973 | H12: 44 | I12: 559 | J12: 322 | K12: 57 | L12: 99 | M12: 1081 | N12: 2054 | O12: 65 | P12: 334 | Q12: 198 | R12: 70 | S12: 80 | T12: 747 | U12: 68 | V12: 373 | W12: 150 | X12: 51 | Y12: 63 | Z12: 705 | AA12: 1452 | AB12: 3506
A13: LA MONTAÑITA | B13: 136 | C13: 858 | D13: 397 | E13: 56 | F13: 102 | G13: 1549 | H13: 136 | I13: 1074 | J13: 410 | K13: 71 | L13: 88 | M13: 1779 | N13: 3328 | O13: 24 | P13: 139 | Q13: 127 | R13: 51 | S13: 41 | T13: 382 | U13: 29 | V13: 129 | W13: 125 | X13: 44 | Y13: 50 | Z13: 377 | AA13: 759 | AB13: 4087
A14: MILÁN | B14: 79 | C14: 518 | D14: 239 | E14: 65 | F14: 59 | G14: 960 | H14: 87 | I14: 632 | J14: 284 | K14: 86 | L14: 37 | M14: 1126 | N14: 2086 | O14: 12 | P14: 85 | Q14: 45 | R14: 18 | T14: 160 | U14: 12 | V14: 84 | W14: 57 | X14: 19 | Z14: 172 | AA14: 332 | AB14: 2418
A15: MORELIA | B15: 10 | C15: 93 | D15: 32 | G15: 135 | H15: 5 | I15: 87 | J15: 39 | M15: 131 | N15: 266 | O15: 15 | P15: 121 | Q15: 87 | R15: 22 | S15: 85 | T15: 330 | U15: 16 | V15: 113 | W15: 90 | X15: 11 | Y15: 61 | Z15: 291 | AA15: 621 | AB15: 887
A16: PUERTO RICO | B16: 145 | C16: 1016 | D16: 324 | E16: 80 | F16: 26 | G16: 1591 | H16: 175 | I16: 1214 | J16: 345 | K16: 64 | L16: 16 | M16: 1814 | N16: 3405 | O16: 148 | P16: 747 | Q16: 697 | R16: 196 | S16: 84 | T16: 1872 | U16: 158 | V16: 796 | W16: 600 | X16: 187 | Y16: 72 | Z16: 1813 | AA16: 3685 | AB16: 7090
A17: SAN JOSÉ DEL FRAGUA | B17: 77 | C17: 458 | D17: 280 | E17: 46 | F17: 120 | G17: 981 | H17: 65 | I17: 532 | J17: 287 | K17: 57 | L17: 103 | M17: 1044 | N17: 2025 | O17: 59 | P17: 361 | Q17: 313 | R17: 130 | S17: 106 | T17: 969 | U17: 64 | V17: 381 | W17: 277 | X17: 108 | Y17: 71 | Z17: 901 | AA17: 1870 | AB17: 3895
A18: SAN VICENTE DEL CAGUÁN | B18: 291 | C18: 2114 | D18: 991 | E18: 86 | F18: 98 | G18: 3580 | H18: 304 | I18: 2401 | J18: 1086 | K18: 91 | L18: 115 | M18: 3997 | N18: 7577 | O18: 182 | P18: 1311 | Q18: 984 | R18: 312 | S18: 203 | T18: 2992 | U18: 195 | V18: 1331 | W18: 896 | X18: 268 | Y18: 139 | Z18: 2829 | AA18: 5821 | AB18: 13398
A19: SOLANO | B19: 71 | C19: 566 | D19: 212 | E19: 38 | F19: 105 | G19: 992 | H19: 80 | I19: 693 | J19: 261 | K19: 29 | L19: 84 | M19: 1147 | N19: 2139 | O19: 13 | P19: 166 | Q19: 153 | R19: 38 | S19: 56 | T19: 426 | U19: 13 | V19: 185 | W19: 127 | X19: 28 | Y19: 50 | Z19: 403 | AA19: 829 | AB19: 2968
A20: SOLITA | B20: 31 | C20: 190 | D20: 126 | E20: 31 | G20: 378 | H20: 26 | I20: 200 | J20: 152 | K20: 27 | M20: 405 | N20: 783 | O20: 45 | P20: 260 | Q20: 177 | R20: 33 | S20: 63 | T20: 578 | U20: 34 | V20: 254 | W20: 169 | X20: 33 | Y20: 28 | Z20: 518 | AA20: 1096 | AB20: 1879
A21: VALPARAÍSO | B21: 24 | C21: 268 | D21: 143 | E21: 36 | F21: 10 | G21: 481 | H21: 38 | I21: 313 | J21: 168 | K21: 29 | L21: 22 | M21: 570 | N21: 1051 | O21: 15 | P21: 159 | Q21: 96 | R21: 29 | S21: 34 | T21: 333 | U21: 20 | V21: 133 | W21: 92 | X21: 32 | Y21: 24 | Z21: 301 | AA21: 634 | AB21: 1685
A22: Total general | B22: 1218 | C22: 8908 | D22: 4020 | E22: 570 | F22: 672 | G22: 15388 | H22: 1324 | I22: 10586 | J22: 4412 | K22: 613 | L22: 603 | M22: 17538 | N22: 32926 | O22: 940 | P22: 5892 | Q22: 4691 | R22: 1489 | S22: 1391 | T22: 14403 | U22: 957 | V22: 6012 | W22: 4285 | X22: 1347 | Y22: 1031 | Z22: 13632 | AA22: 28035 | AB22: 60961

Sheet 1.1
A1: MATRICULA OFICIAL POR MUNICIPIO, ZONA Y NIVELES
B5: R | G5: Total R | H5: U | M5: Total U | N5: Total general
A6: MUNICIPIO | B6: 1. PREESCOLAR | C6: 2. PRIMARIA | D6: 3. SECUNDARIA | E6: 4. MEDIA | F6: 5. CICLOS | H6: 1. PREESCOLAR | I6: 2. PRIMARIA | J6: 3. SECUNDARIA | K6: 4. MEDIA | L6: 5. CICLOS
A7: ALBANIA | B7: 28 | C7: 271 | D7: 125 | E7: 27 | G7: 451 | H7: 33 | I7: 217 | J7: 257 | K7: 97 | M7: 604 | N7: 1055
A8: BELÉN DE LOS ANDAQUIES | B8: 84 | C8: 579 | D8: 226 | E8: 42 | F8: 46 | G8: 977 | H8: 107 | I8: 696 | J8: 535 | K8: 206 | L8: 154 | M8: 1698 | N8: 2675
A9: CARTAGENA DEL CHAIRÁ | B9: 425 | C9: 3345 | D9: 1112 | E9: 50 | F9: 20 | G9: 4952 | H9: 210 | I9: 1410 | J9: 1003 | K9: 307 | L9: 346 | M9: 3276 | N9: 8228
A10: CURILLO | B10: 59 | C10: 404 | D10: 231 | E10: 9 | G10: 703 | H10: 86 | I10: 688 | J10: 484 | K10: 182 | L10: 156 | M10: 1596 | N10: 2299
A11: EL DONCELLO | B11: 85 | C11: 638 | D11: 320 | E11: 64 | F11: 22 | G11: 1129 | H11: 274 | I11: 1431 | J11: 1237 | K11: 364 | L11: 456 | M11: 3762 | N11: 4891
A12: EL PAUJIL | B12: 81 | C12: 1030 | D12: 642 | E12: 99 | F12: 202 | G12: 2054 | H12: 133 | I12: 707 | J12: 348 | K12: 121 | L12: 143 | M12: 1452 | N12: 3506
A13: LA MONTAÑITA | B13: 272 | C13: 1932 | D13: 807 | E13: 127 | F13: 190 | G13: 3328 | H13: 53 | I13: 268 | J13: 252 | K13: 95 | L13: 91 | M13: 759 | N13: 4087
A14: MILÁN | B14: 166 | C14: 1150 | D14: 523 | E14: 151 | F14: 96 | G14: 2086 | H14: 24 | I14: 169 | J14: 102 | K14: 37 | M14: 332 | N14: 2418
A15: MORELIA | B15: 15 | C15: 180 | D15: 71 | G15: 266 | H15: 31 | I15: 234 | J15: 177 | K15: 33 | L15: 146 | M15: 621 | N15: 887
A16: PUERTO RICO | B16: 320 | C16: 2230 | D16: 669 | E16: 144 | F16: 42 | G16: 3405 | H16: 306 | I16: 1543 | J16: 1297 | K16: 383 | L16: 156 | M16: 3685 | N16: 7090
A17: SAN JOSÉ DEL FRAGUA | B17: 142 | C17: 991 | D17: 567 | E17: 103 | F17: 223 | G17: 2026 | H17: 123 | I17: 742 | J17: 590 | K17: 238 | L17: 177 | M17: 1870 | N17: 3896
A18: SAN VICENTE DEL CAGUÁN | B18: 595 | C18: 4515 | D18: 2077 | E18: 177 | F18: 213 | G18: 7577 | H18: 377 | I18: 2642 | J18: 1880 | K18: 580 | L18: 342 | M18: 5821 | N18: 13398
A19: SOLANO | B19: 151 | C19: 1259 | D19: 473 | E19: 67 | F19: 189 | G19: 2139 | H19: 26 | I19: 351 | J19: 280 | K19: 66 | L19: 106 | M19: 829 | N19: 2968
A20: SOLITA | B20: 57 | C20: 390 | D20: 278 | E20: 58 | G20: 783 | H20: 79 | I20: 514 | J20: 346 | K20: 66 | L20: 91 | M20: 1096 | N20: 1879
A21: VALPARAÍSO | B21: 62 | C21: 581 | D21: 311 | E21: 65 | F21: 32 | G21: 1051 | H21: 35 | I21: 292 | J21: 188 | K21: 61 | L21: 58 | M21: 634 | N21: 1685
A22: Total general | B22: 2542 | C22: 19495 | D22: 8432 | E22: 1183 | F22: 1275 | G22: 32927 | H22: 1897 | I22: 11904 | J22: 8976 | K22: 2836 | L22: 2422 | M22: 28035 | N22: 60962

Sheet 1.2
A1: MATRICULA OFICIAL POR MUNICIPIO, ESTABLECIMIENTO EDUCATIVO, ZONA Y NIVELES
C4: R | H4: Total R | I4: U | N4: Total U | O4: Total general
A5: MUNICIPIO | B5: INSTITUCION | C5: 1. PREESCOLAR | D5: 2. PRIMARIA | E5: 3. SECUNDARIA | F5: 4. MEDIA | G5: 5. CICLOS | I5: 1. PREESCOLAR | J5: 2. PRIMARIA | K5: 3. SECUNDARIA | L5: 4. MEDIA | M5: 5. CICLOS
A6: ALBANIA | B6: C.E LA CHORROSA | C6: 10 | D6: 138 | H6: 148 | O6: 148
B7: I.E ALBANIA | I7: 33 | J7: 217 | K7: 257 | L7: 97 | N7: 604 | O7: 604
B8: I.E EL DORADO | C8: 18 | D8: 133 | E8: 125 | F8: 27 | H8: 303 | O8: 303
A9: BELÉN DE LOS ANDAQUIES | B9: I. E. R. PUEBLO NUEVO | C9: 20 | D9: 128 | E9: 48 | G9: 46 | H9: 242 | O9: 242
B10: I.E AGROTECNICO MIXTO | I10: 49 | J10: 269 | K10: 169 | L10: 68 | M10: 154 | N10: 709 | O10: 709
B11: I.E ALTO SARABANDO | C11: 14 | D11: 128 | E11: 20 | H11: 162 | O11: 162
B12: I.E GABRIELA MISTRAL | I12: 58 | J12: 427 | K12: 366 | L12: 138 | N12: 989 | O12: 989
B13: I.E RURAL EL PORTAL LA MONO | C13: 19 | D13: 166 | E13: 78 | F13: 20 | H13: 283 | O13: 283
B14: I.E SAN LUIS | C14: 31 | D14: 157 | E14: 80 | F14: 22 | H14: 290 | O14: 290
A15: CARTAGENA DEL CHAIRÁ | B15: I. E. R. LA ESMERALDA | C15: 22 | D15: 251 | E15: 71 | H15: 344 | O15: 344
B16: I. E. R. LOS CRISTALES | C16: 45 | D16: 228 | E16: 37 | H16: 310 | O16: 310
B17: I. E. R. MONSERRATE | C17: 38 | D17: 251 | E17: 55 | H17: 344 | O17: 344
B18: I. E. R. PEÑAS COLORADAS | C18: 15 | D18: 204 | E18: 52 | H18: 271 | O18: 271
B19: I. E. R. SANTA CRUZ DEL AGUILA | C19: 22 | D19: 150 | E19: 31 | H19: 203 | O19: 203
B20: I. E. R. SANTAFE DEL CAGUAN | C20: 36 | D20: 228 | E20: 85 | F20: 24 | H20: 373 | O20: 373
B21: I.E AGROECOLOGICO AMAZONICO | I21: 129 | J21: 919 | K21: 456 | L21: 107 | M21: 264 | N21: 1875 | O21: 1875
B22: I.E EL CHAIRA JOSE MARIA CORDOBA | C22: 57 | D22: 445 | E22: 212 | H22: 714 | I22: 81 | J22: 491 | K22: 547 | L22: 200 | M22: 82 | N22: 1401 | O22: 2115
B23: I.E. R. DIVINO NIÑO | C23: 14 | D23: 190 | E23: 64 | H23: 268 | O23: 268
B24: I.E. R. EL EDEN | C24: 18 | D24: 137 | E24: 83 | H24: 238 | O24: 238
B25: I.E. R. LA SARDINATA | C25: 28 | D25: 275 | E25: 80 | H25: 383 | O25: 383
B26: I.E. R. MIXTA MARIA LUISA DE MORENO | C26: 41 | D26: 352 | E26: 90 | H26: 483 | O26: 483
B27: I.E. R. SAN PEDRO CLAVER | C27: 26 | D27: 219 | E27: 57 | H27: 302 | O27: 302
B28: I.E. R. TEUSAQUILLO | C28: 45 | D28: 232 | E28: 93 | H28: 370 | O28: 370
B29: I.E.R JOSE ANTONIO GALAN | C29: 18 | D29: 183 | E29: 102 | F29: 26 | G29: 20 | H29: 349 | O29: 349
A30: CURILLO | B30: C.E. EL LIBERTADOR | C30: 11 | D30: 118 | E30: 66 | H30: 195 | O30: 195
B31: I.E ANGEL CUNIBERTI | I31: 86 | J31: 688 | K31: 484 | L31: 182 | M31: 156 | N31: 1596 | O31: 1596
B32: I.E. R. HORIZONTE | C32: 13 | D32: 70 | E32: 68 | H32: 151 | O32: 151
B33: I.E. R. SALAMINA | C33: 16 | D33: 100 | E33: 30 | H33: 146 | O33: 146
B34: I.E.R. LA NOVIA | C34: 19 | D34: 116 | E34: 67 | F34: 9 | H34: 211 | O34: 211
A35: EL DONCELLO | B35: I.E CORAZON INMACULADO DE MARIA | I35: 77 | J35: 456 | K35: 389 | L35: 126 | N35: 1048 | O35: 1048
B36: I.E JORGE ABEL MOLINA | I36: 59 | J36: 251 | K36: 175 | L36: 36 | N36: 521 | O36: 521
B37: I.E R. PUERTO MANRIQUE | C37: 14 | D37: 91 | E37: 68 | F37: 18 | H37: 191 | O37: 191
B38: I.E R. SIMON BOLIVAR | C38: 21 | D38: 204 | E38: 123 | F38: 28 | H38: 376 | O38: 376
B39: I.E RUFINO QUICHOYA | I39: 99 | J39: 524 | K39: 384 | L39: 100 | M39: 456 | N39: 1563 | O39: 1563
B40: I.E. MARCO FIDEL SUAREZ | I40: 39 | J40: 200 | K40: 289 | L40: 102 | N40: 630 | O40: 630
B41: I.E. R. BERLIN | C41: 15 | D41: 123 | E41: 66 | F41: 18 | G41: 22 | H41: 244 | O41: 244
B42: I.E. R. LA CEIBA | C42: 27 | D42: 143 | E42: 22 | H42: 192 | O42: 192
B43: I.E. R. SAN JUDAS TADEO | C43: 8 | D43: 77 | E43: 41 | H43: 126 | O43: 126
A44: EL PAUJIL | B44: I.E AGROECOLOGICO AMAZONICO | D44: 305 | E44: 321 | F44: 92 | G44: 132 | H44: 850 | I44: 122 | J44: 625 | M44: 63 | N44: 810 | O44: 1660
B45: I.E NIÑA DEL CARMEN | C45: 11 | D45: 161 | E45: 46 | H45: 218 | O45: 218
B46: I.E NUESTRA SE¿ORA DE LAS MERCEDES | I46: 11 | J46: 82 | K46: 348 | L46: 121 | M46: 80 | N46: 642 | O46: 642
B47: I.E R. LA CONCORDIA | C47: 17 | D47: 137 | E47: 91 | F47: 7 | H47: 252 | O47: 252
B48: I.E R. RAFAEL URIBE URIBE | C48: 12 | D48: 158 | E48: 85 | H48: 255 | O48: 255
B49: I.E. R. BOLIVIA | C49: 21 | D49: 131 | E49: 48 | H49: 200 | O49: 200
B50: I.E.R. SANTA TERESA | C50: 20 | D50: 138 | E50: 51 | G50: 70 | H50: 279 | O50: 279
A51: LA MONTAÑITA | B51: C.E LA ARGENTINA | C51: 16 | D51: 120 | H51: 136 | O51: 136
B52: C.E. EL JARDIN | C52: 41 | D52: 191 | E52: 78 | H52: 310 | O52: 310
B53: C.E. GAITANIA | C53: 7 | D53: 104 | H53: 111 | O53: 111
B54: I.E NUESTRA SEÑORA DEL PERPETUO SOCORRO | I54: 53 | J54: 268 | K54: 252 | L54: 95 | M54: 91 | N54: 759 | O54: 759
B55: I.E R. MATEGUADUA | C55: 14 | D55: 129 | E55: 121 | F55: 23 | G55: 49 | H55: 336 | O55: 336
B56: I.E RURAL SABIO CALDAS | C56: 22 | D56: 171 | E56: 131 | F56: 43 | H56: 367 | O56: 367
B57: I.E. R. AGRO NUÑEZ | C57: 14 | D57: 118 | E57: 34 | G57: 57 | H57: 223 | O57: 223
B58: I.E. R. BRISAS DE SAN ISIDRO | C58: 30 | D58: 210 | E58: 60 | F58: 13 | G58: 20 | H58: 333 | O58: 333
B59: I.E. R. JOSE HILARIO LOPEZ | C59: 14 | D59: 130 | E59: 65 | H59: 209 | O59: 209
B60: I.E. R. PALMA ARRIBA | C60: 19 | D60: 127 | E60: 60 | H60: 206 | O60: 206
B61: I.E. R. REINA BAJA | C61: 25 | D61: 131 | E61: 61 | H61: 217 | O61: 217
B62: I.E.R SIMON BOLIVAR | C62: 33 | D62: 229 | E62: 145 | F62: 48 | G62: 64 | H62: 519 | O62: 519
B63: I.E.R. EL CEDRO | C63: 11 | D63: 61 | E63: 25 | H63: 97 | O63: 97
B64: I.E.R. EL DIVISO | C64: 26 | D64: 211 | E64: 27 | H64: 264 | O64: 264
A65: MILÁN | B65: C.E EL DIAMANTE (MIRAVALLE) | C65: 10 | D65: 74 | H65: 84 | O65: 84
B66: C.E. GRANARIO | C66: 15 | D66: 139 | E66: 16 | H66: 170 | O66: 170
B67: I.E MARCO FIDEL SUAREZ | I67: 24 | J67: 169 | K67: 102 | L67: 37 | N67: 332 | O67: 332
B68: I.E. R. LA FLORIDA | C68: 18 | D68: 137 | E68: 60 | F68: 17 | G68: 22 | H68: 254 | O68: 254
B69: I.E.R ANGEL RICARDO ACOSTA | C69: 25 | D69: 208 | E69: 118 | F69: 45 | G69: 51 | H69: 447 | O69: 447
B70: I.E.R LA RASTRA | C70: 7 | D70: 94 | E70: 85 | F70: 26 | H70: 212 | O70: 212
B71: I.E.R. ILUSION MATICURU | C71: 17 | D71: 132 | E71: 60 | F71: 20 | G71: 23 | H71: 252 | O71: 252
B72: I.E.R. LA ANGUILLA | C72: 23 | D72: 125 | E72: 28 | H72: 176 | O72: 176
B73: I.E.R. MAMA BWE REOJACHE | C73: 51 | D73: 241 | E73: 156 | F73: 43 | H73: 491 | O73: 491
A74: MORELIA | B74: C.E PALMARITO | C74: 9 | D74: 76 | H74: 85 | O74: 85
B75: I.E CERVANTES | I75: 31 | J75: 234 | K75: 177 | L75: 33 | M75: 146 | N75: 621 | O75: 621
B76: I.E R. JUAN XXIII | C76: 6 | D76: 104 | E76: 71 | H76: 181 | O76: 181
A77: PUERTO RICO | B77: C.E EL AGUILA | C77: 16 | D77: 118 | H77: 134 | O77: 134
B78: C.E LA FLORESTA # 5 | C78: 15 | D78: 95 | H78: 110 | O78: 110
B79: C.E. EL CARMELO | C79: 12 | D79: 125 | H79: 137 | O79: 137
B80: C.E. POLICARPA SALAVARRIETA | C80: 3 | D80: 67 | H80: 70 | O80: 70
B81: I.E ACEVEDO Y GOMEZ | I81: 130 | J81: 654 | K81: 559 | L81: 179 | M81: 156 | N81: 1678 | O81: 1678
B82: I.E R. CENTRO INDIGENA | C82: 16 | D82: 152 | E82: 25 | H82: 193 | O82: 193
B83: I.E RURAL RIO NEGRO | C83: 19 | D83: 207 | E83: 105 | F83: 26 | G83: 42 | H83: 399 | O83: 399
B84: I.E SAGRADOS CORAZONES | I84: 176 | J84: 889 | K84: 738 | L84: 204 | N84: 2007 | O84: 2007
B85: I.E. R. VILLA DEL RIO | C85: 38 | D85: 181 | E85: 46 | H85: 265 | O85: 265
B86: I.E. R. EL LOBO | C86: 20 | D86: 159 | E86: 38 | H86: 217 | O86: 217
B87: I.E. R. JORGE ELIECER GAITAN | C87: 28 | D87: 210 | E87: 85 | F87: 37 | H87: 360 | O87: 360
B88: I.E. R. LA AGUILILLA | C88: 37 | D88: 260 | E88: 101 | F88: 30 | H88: 428 | O88: 428
B89: I.E. R. LA ESMERALDA | C89: 51 | D89: 264 | E89: 108 | F89: 38 | H89: 461 | O89: 461
B90: I.E. R. SANTANA RAMOS | C90: 19 | D90: 189 | E90: 87 | F90: 13 | H90: 308 | O90: 308
B91: I.E.R. CAMPO HERMOSO | C91: 15 | D91: 111 | E91: 37 | H91: 163 | O91: 163
B92: I.E.R. LOMA ALTA | C92: 31 | D92: 92 | E92: 37 | H92: 160 | O92: 160
A93: SAN JOSÉ DEL FRAGUA | B93: I.E DON QUIJOTE | I93: 77 | J93: 440 | K93: 319 | L93: 117 | N93: 953 | O93: 953
B94: I.E PARROQUIAL | I94: 46 | J94: 302 | K94: 271 | L94: 121 | M94: 177 | N94: 917 | O94: 917
B95: I.E. R. LA GALLINETA | C95: 13 | D95: 87 | E95: 91 | H95: 191 | O95: 191
B96: I.E. R. MARIA AUXILIADORA | C96: 4 | D96: 80 | E96: 36 | H96: 120 | O96: 120
B97: I.E. R. PLATANILLO | C97: 12 | D97: 169 | E97: 67 | H97: 248 | O97: 248
B98: I.E. RURAL LAS LAJAS | C98: 56 | D98: 316 | E98: 163 | F98: 70 | G98: 67 | H98: 672 | O98: 672
B99: I.E.R. DIVINO NIÑO | C99: 36 | D99: 159 | E99: 135 | F99: 25 | G99: 156 | H99: 511 | O99: 511
B100: I.E.R. INDIGENA ESPECIAL YACHAICURY | C100: 21 | D100: 180 | E100: 75 | F100: 8 | H100: 284 | O100: 284
A101: SAN VICENTE DEL CAGUÁN | B101: C.E. GIBRALTAR | C101: 12 | D101: 52 | E101: 13 | H101: 77 | O101: 77
B102: C.E. INTERCULTURAL INDIGENA SAN VICENTE DEL CAGUAN | C102: 11 | D102: 146 | E102: 35 | H102: 192 | O102: 192
B103: C.E. SANTA ROSA | C103: 9 | D103: 63 | E103: 14 | H103: 86 | O103: 86
B104: I. E. R. LOS FUNDADORES | C104: 60 | D104: 512 | E104: 163 | H104: 735 | O104: 735
B105: I. E. R. NUEVO HORIZONTE | C105: 5 | D105: 63 | E105: 37 | H105: 105 | O105: 105
B106: I.E DANTE ALIGHIERI | C106: 1 | D106: 12 | H106: 13 | I106: 147 | J106: 1010 | K106: 582 | L106: 179 | N106: 1918 | O106: 1931
B107: I.E DOMINGO SAVIO | I107: 37 | J107: 330 | K107: 292 | L107: 117 | M107: 195 | N107: 971 | O107: 971
B108: I.E PROMOCION SOCIAL | I108: 106 | J108: 690 | K108: 648 | L108: 210 | M108: 147 | N108: 1801 | O108: 1801
B109: I.E VERDE AMAZONICO | I109: 87 | J109: 612 | K109: 358 | L109: 74 | N109: 1131 | O109: 1131
B110: I.E. R. ALTO QUEBRADON | C110: 17 | D110: 175 | E110: 109 | G110: 139 | H110: 440 | O110: 440
B111: I.E. R. BRISAS DEL LOSADA | C111: 12 | D111: 75 | E111: 76 | H111: 163 | O111: 163
B112: I.E. R. CRISTALINA TRONCALES | C112: 17 | D112: 142 | E112: 65 | H112: 224 | O112: 224
B113: I.E. R. LA SOMBRA | C113: 23 | D113: 194 | E113: 94 | H113: 311 | O113: 311
B114: I.E. R. LA UNION | C114: 12 | D114: 107 | E114: 41 | F114: 33 | H114: 193 | O114: 193
B115: I.E. R. LOS POZOS | C115: 35 | D115: 346 | E115: 157 | F115: 22 | H115: 560 | O115: 560
B116: I.E. R. PLAYA RICA | C116: 2 | D116: 24 | E116: 27 | H116: 53 | O116: 53
B117: I.E. R. SAN JUAN DEL LOSADA | C117: 27 | D117: 197 | E117: 96 | F117: 11 | H117: 331 | O117: 331
B118: I.E. R. SANTO DOMINGO SAVIO | C118: 15 | D118: 62 | E118: 47 | F118: 12 | H118: 136 | O118: 136
B119: I.E.R GUILLERMO RIOS MEJIA | C119: 21 | D119: 101 | E119: 58 | F119: 17 | H119: 197 | O119: 197
B120: I.E.R. ARENOSO | C120: 51 | D120: 255 | E120: 112 | H120: 418 | O120: 418
B121: I.E.R. BOCANA POSETAS | C121: 9 | D121: 97 | E121: 35 | H121: 141 | O121: 141
B122: I.E.R. CAMPO HERMOSO | C122: 39 | D122: 305 | E122: 189 | F122: 42 | G122: 74 | H122: 649 | O122: 649
B123: I.E.R. CRISTALINA DEL LOSADA | C123: 16 | D123: 85 | E123: 45 | F123: 5 | H123: 151 | O123: 151
B124: I.E.R. CRISTO REY (ANTONIO NARIÑO) | C124: 24 | D124: 231 | E124: 83 | H124: 338 | O124: 338
B125: I.E.R. GUAYABAL | C125: 18 | D125: 148 | E125: 74 | F125: 12 | H125: 252 | O125: 252
B126: I.E.R. LA INMACULADA | C126: 18 | D126: 241 | E126: 72 | F126: 23 | H126: 354 | O126: 354
B127: I.E.R. LA SAMARIA | C127: 44 | D127: 243 | E127: 144 | H127: 431 | O127: 431
B128: I.E.R. LOS ANDES | C128: 23 | D128: 123 | E128: 60 | H128: 206 | O128: 206
B129: I.E.R. PUERTO AMOR | C129: 19 | D129: 118 | E129: 63 | H129: 200 | O129: 200
B130: I.E.R. SAN JOSE DE CAQUETANIA | C130: 8 | D130: 108 | E130: 40 | H130: 156 | O130: 156
B131: I.E.R. VILLA CARMONA | C131: 47 | D131: 290 | E131: 128 | H131: 465 | O131: 465
A132: SOLANO | B132: C.E. EL DANUBIO | C132: 11 | D132: 90 | H132: 101 | O132: 101
B133: C.E. PEÑAS BLANCAS | C133: 13 | D133: 64 | E133: 14 | H133: 91 | O133: 91
B134: GIMNASIO MILITAR F.A.C. "TRES ESQUINAS" | C134: 15 | D134: 38 | E134: 12 | H134: 65 | O134: 65
B135: I.E CAMPO ELIAS MARULANDA | I135: 26 | J135: 351 | K135: 280 | L135: 66 | M135: 106 | N135: 829 | O135: 829
B136: I.E.R. CAMPOALEGRE | C136: 13 | D136: 168 | E136: 85 | H136: 266 | O136: 266
B137: I.E.R. INDIGENA COEMANI FORTUNATO REALLY | C137: 8 | D137: 162 | E137: 82 | F137: 52 | H137: 304 | O137: 304
B138: I.E.R. INDIGENA COREGUAJE | C138: 15 | D138: 152 | E138: 30 | G138: 125 | H138: 322 | O138: 322
B139: I.E.R. LA CABAÑITA | C139: 31 | D139: 131 | E139: 39 | H139: 201 | O139: 201
B140: I.E.R. LAS MERCEDES | C140: 13 | D140: 128 | E140: 74 | H140: 215 | O140: 215
B141: I.E.R. MONONGUETE | C141: 15 | D141: 143 | E141: 109 | F141: 15 | G141: 64 | H141: 346 | O141: 346
B142: I.E.R. PUERTO TEJADA | C142: 17 | D142: 183 | E142: 28 | H142: 228 | O142: 228
A143: SOLITA | B143: I.E INTERNADO RURAL SOLITA | I143: 79 | J143: 514 | K143: 346 | L143: 66 | M143: 91 | N143: 1096 | O143: 1096
B144: I.E.R. CAMPOLEJANO | C144: 15 | D144: 128 | E144: 79 | F144: 28 | H144: 250 | O144: 250
B145: I.E.R. CHONTILLOSA MEDIO | C145: 25 | D145: 171 | E145: 112 | F145: 30 | H145: 338 | O145: 338
B146: INSTITUCION EDUCATIVA RURAL JOSE CELESTINO MUTIS | C146: 17 | D146: 91 | E146: 87 | H146: 195 | O146: 195
A147: VALPARAÍSO | B147: I.E VALPARAISO | I147: 35 | J147: 292 | K147: 188 | L147: 61 | M147: 58 | N147: 634 | O147: 634
B148: I.E.R. LA MUÑOZ | C148: 6 | D148: 94 | E148: 63 | F148: 13 | G148: 32 | H148: 208 | O148: 208
B149: I.E.R. LA RICO KM 30 | C149: 19 | D149: 111 | E149: 22 | H149: 152 | O149: 152
B150: I.E.R. MIRAVALLE SANTROPEL | C150: 6 | D150: 66 | E150: 43 | F150: 17 | H150: 132 | O150: 132
B151: I.E.R. NIEVES ARRIBA | C151: 6 | D151: 90 | E151: 46 | H151: 142 | O151: 142
B152: I.E.R. PLAYA RICA | C152: 16 | D152: 86 | E152: 53 | F152: 20 | H152: 175 | O152: 175
B153: I.E.R. SANTIAGO DE LA SELVA | C153: 9 | D153: 134 | E153: 84 | F153: 15 | H153: 242 | O153: 242
A154: Total general | C154: 2542 | D154: 19495 | E154: 8432 | F154: 1183 | G154: 1275 | H154: 32927 | I154: 1897 | J154: 11904 | K154: 8976 | L154: 2836 | M154: 2422 | N154: 28035 | O154: 60962

Sheet 1.3
A1: MATRICULA OFICIAL POR MUNICIPIO, ESTABLECIMIENTO EDUCATIVO, SEDES, GRADOS, ZONA Y NIVELES
C4: R | Y4: Total R | Z4: U | AW4: Total U | AX4: Total general
C5: 1. PREESCOLAR | D5: Total 1. PREESCOLAR | E5: 2. PRIMARIA | J5: Total 2. PRIMARIA | K5: 3. SECUNDARIA | O5: Total 3. SECUNDARIA | P5: 4. MEDIA | R5: Total 4. MEDIA | S5: 5. CICLOS | X5: Total 5. CICLOS | Z5: 1. PREESCOLAR | AA5: Total 1. PREESCOLAR | AB5: 2. PRIMARIA | AH5: Total 2. PRIMARIA | AI5: 3. SECUNDARIA | AM5: Total 3. SECUNDARIA | AN5: 4. MEDIA | AP5: Total 4. MEDIA | AQ5: 5. CICLOS | AV5: Total 5. CICLOS
A6: MUNICIPIO | B6: INSTITUCION | C6: GRADO 0 | E6: CUARTO | F6: PRIMERO | G6: QUINTO | H6: SEGUNDO | I6: TERCERO | K6: NOVENO | L6: OCTAVO | M6: SEPTIMO | N6: SEXTO | P6: DÉCIMO | Q6: ONCE | S6: CICLO 2 ADULTOS | T6: CICLO 3 ADULTOS | U6: CICLO 4 ADULTOS | V6: CICLO 5 ADULTOS | W6: CICLO 6 ADULTOS | Z6: GRADO 0 | AB6: ACELERACIÓN DEL APRENDIZAJE | AC6: CUARTO | AD6: PRIMERO | AE6: QUINTO | AF6: SEGUNDO | AG6: TERCERO | AI6: NOVENO | AJ6: OCTAVO | AK6: SEPTIMO | AL6: SEXTO | AN6: DÉCIMO | AO6: ONCE | AQ6: CICLO 2 ADULTOS | AR6: CICLO 3 ADULTOS | AS6: CICLO 4 ADULTOS | AT6: CICLO 5 ADULTOS | AU6: CICLO 6 ADULTOS
A7: ALBANIA | B7: C.E LA CHORROSA | C7: 10 | D7: 10 | E7: 40 | F7: 19 | G7: 27 | H7: 22 | I7: 30 | J7: 138 | Y7: 148 | AX7: 148
B8: ALTO CASTAÑAL | E8: 8 | F8: 4 | G8: 3 | H8: 3 | I8: 1 | J8: 19 | Y8: 19 | AX8: 19
B9: BERLIN | F9: 3 | H9: 4 | I9: 1 | J9: 8 | Y9: 8 | AX9: 8
B10: EL CARMEN | C10: 1 | D10: 1 | G10: 6 | I10: 4 | J10: 10 | Y10: 11 | AX10: 11
B11: EL DIVISO | E11: 3 | F11: 1 | G11: 4 | I11: 4 | J11: 12 | Y11: 12 | AX11: 12
B12: EL JAZMIN | E12: 4 | F12: 1 | G12: 2 | I12: 2 | J12: 9 | Y12: 9 | AX12: 9
B13: FLORIDA BLANCA | C13: 1 | D13: 1 | E13: 6 | F13: 1 | G13: 2 | H13: 1 | I13: 4 | J13: 14 | Y13: 15 | AX13: 15
B14: FLORIDA NO. 1 | E14: 3 | G14: 3 | H14: 6 | I14: 3 | J14: 15 | Y14: 15 | AX14: 15
B15: LA CHORROSA | C15: 1 | D15: 1 | E15: 6 | F15: 1 | G15: 2 | H15: 1 | J15: 10 | Y15: 11 | AX15: 11
B16: LA ESPERANZA | C16: 1 | D16: 1 | E16: 2 | G16: 1 | H16: 2 | I16: 2 | J16: 7 | Y16: 8 | AX16: 8
B17: LA UNION | E17: 2 | F17: 4 | G17: 1 | H17: 2 | J17: 9 | Y17: 9 | AX17: 9
B18: LAS MERCEDES | C18: 1 | D18: 1 | E18: 2 | G18: 1 | H18: 1 | I18: 5 | J18: 9 | Y18: 10 | AX18: 10
B19: LOS LIBERTADORES | C19: 3 | D19: 3 | E19: 1 | F19: 2 | H19: 2 | I19: 2 | J19: 7 | Y19: 10 | AX19: 10
B20: SAN ISIDRO | C20: 2 | D20: 2 | E20: 3 | F20: 2 | G20: 2 | I20: 2 | J20: 9 | Y20: 11 | AX20: 11
B21: I.E ALBANIA | Z21: 33 | AA21: 33 | AC21: 41 | AD21: 45 | AE21: 51 | AF21: 45 | AG21: 35 | AH21: 217 | AI21: 83 | AJ21: 61 | AK21: 47 | AL21: 66 | AM21: 257 | AN21: 54 | AO21: 43 | AP21: 97 | AW21: 604 | AX21: 604
B22: PEREGRINO LOZANO | AC22: 41 | AE22: 51 | AF22: 1 | AG22: 35 | AH22: 128 | AI22: 83 | AJ22: 61 | AK22: 47 | AL22: 66 | AM22: 257 | AN22: 54 | AO22: 43 | AP22: 97 | AW22: 482 | AX22: 482
B23: SAN CARLOS | Z23: 33 | AA23: 33 | AD23: 45 | AF23: 44 | AH23: 89 | AW23: 122 | AX23: 122
B24: I.E EL DORADO | C24: 18 | D24: 18 | E24: 28 | F24: 21 | G24: 34 | H24: 29 | I24: 21 | J24: 133 | K24: 28 | L24: 32 | M24: 30 | N24: 35 | O24: 125 | P24: 18 | Q24: 9 | R24: 27 | Y24: 303 | AX24: 303
B25: AGUAS CLARAS | C25: 2 | D25: 2 | E25: 1 | F25: 4 | H25: 4 | J25: 9 | Y25: 11 | AX25: 11
B26: BELLA AURORA | C26: 1 | D26: 1 | E26: 2 | F26: 2 | G26: 1 | H26: 1 | I26: 1 | J26: 7 | Y26: 8 | AX26: 8
B27: CARMEN BALATA | F27: 1 | G27: 3 | H27: 2 | I27: 1 | J27: 7 | Y27: 7 | AX27: 7
B28: EL DORADO | C28: 5 | D28: 5 | E28: 8 | F28: 5 | G28: 15 | H28: 9 | I28: 6 | J28: 43 | K28: 23 | L28: 23 | M28: 26 | N28: 27 | O28: 99 | P28: 18 | Q28: 9 | R28: 27 | Y28: 174 | AX28: 174
B29: EL PARAISO | C29: 5 | D29: 5 | E29: 4 | F29: 2 | G29: 3 | H29: 4 | I29: 4 | J29: 17 | Y29: 22 | AX29: 22
B30: EL QUEBRADON NO 1 | H30: 1 | J30: 1 | Y30: 1 | AX30: 1
B31: LA ARGENTINA | C31: 2 | D31: 2 | E31: 2 | G31: 3 | H31: 1 | I31: 2 | J31: 8 | Y31: 10 | AX31: 10
B32: LAS MARGARITAS | C32: 2 | D32: 2 | E32: 3 | F32: 3 | G32: 3 | H32: 2 | I32: 5 | J32: 16 | Y32: 18 | AX32: 18
B33: LOS JARDINES | E33: 2 | F33: 1 | G33: 1 | H33: 2 | J33: 6 | Y33: 6 | AX33: 6
B34: VERSALLES | C34: 1 | D34: 1 | E34: 6 | F34: 3 | G34: 5 | H34: 3 | I34: 2 | J34: 19 | K34: 5 | L34: 9 | M34: 4 | N34: 8 | O34: 26 | Y34: 46 | AX34: 46
A35: BELÉN DE LOS ANDAQUIES | B35: I. E. R. PUEBLO NUEVO | C35: 20 | D35: 20 | E35: 24 | F35: 29 | G35: 23 | H35: 29 | I35: 23 | J35: 128 | K35: 10 | L35: 12 | M35: 10 | N35: 16 | O35: 48 | T35: 25 | U35: 21 | X35: 46 | Y35: 242 | AX35: 242
B36: BOCANA DE LAS VERDES | C36: 2 | D36: 2 | E36: 1 | F36: 1 | G36: 2 | H36: 4 | I36: 2 | J36: 10 | Y36: 12 | AX36: 12
B37: LA PRIMAVERA | E37: 1 | G37: 1 | H37: 2 | I37: 4 | J37: 8 | Y37: 8 | AX37: 8
B38: PRADO DE LOS ANGELES | C38: 5 | D38: 5 | E38: 4 | F38: 2 | G38: 4 | H38: 3 | I38: 6 | J38: 19 | Y38: 24 | AX38: 24
B39: PUEBLO NUEVO | C39: 11 | D39: 11 | E39: 14 | F39: 23 | G39: 15 | H39: 12 | I39: 9 | J39: 73 | K39: 10 | L39: 12 | M39: 10 | N39: 16 | O39: 48 | T39: 25 | U39: 21 | X39: 46 | Y39: 178 | AX39: 178
B40: QUISAYA | E40: 2 | H40: 5 | J40: 7 | Y40: 7 | AX40: 7
B41: SANTA TERESA | C41: 2 | D41: 2 | E41: 2 | F41: 3 | G41: 1 | H41: 3 | I41: 2 | J41: 11 | Y41: 13 | AX41: 13
B42: I.E AGROTECNICO MIXTO | Z42: 49 | AA42: 49 | AC42: 57 | AD42: 73 | AE42: 31 | AF42: 55 | AG42: 53 | AH42: 269 | AI42: 36 | AJ42: 31 | AK42: 40 | AL42: 62 | AM42: 169 | AN42: 44 | AO42: 24 | AP42: 68 | AQ42: 18 | AR42: 46 | AS42: 50 | AT42: 40 | AV42: 154 | AW42: 709 | AX42: 709
B43: AGROTECNICO MIXTO | Z43: 49 | AA43: 49 | AC43: 57 | AD43: 73 | AE43: 31 | AF43: 55 | AG43: 53 | AH43: 269 | AI43: 36 | AJ43: 31 | AK43: 40 | AL43: 62 | AM43: 169 | AN43: 44 | AO43: 24 | AP43: 68 | AQ43: 18 | AR43: 46 | AS43: 50 | AT43: 40 | AV43: 154 | AW43: 709 | AX43: 709
B44: I.E ALTO SARABANDO | C44: 14 | D44: 14 | E44: 21 | F44: 29 | G44: 18 | H44: 23 | I44: 37 | J44: 128 | K44: 3 | L44: 3 | M44: 5 | N44: 9 | O44: 20 | Y44: 162 | AX44: 162
B45: AGUA AZUL | H45: 2 | I45: 1 | J45: 3 | Y45: 3 | AX45: 3
B46: ALTO PUEBLITOS | C46: 3 | D46: 3 | E46: 2 | F46: 4 | H46: 2 | I46: 4 | J46: 12 | Y46: 15 | AX46: 15
B47: ALTO SAN JUAN | C47: 3 | D47: 3 | E47: 1 | F47: 2 | G47: 6 | H47: 5 | I47: 6 | J47: 20 | Y47: 23 | AX47: 23
B48: ALTO SARABANDO | C48: 1 | D48: 1 | E48: 1 | F48: 1 | I48: 4 | J48: 6 | K48: 3 | L48: 3 | M48: 5 | N48: 9 | O48: 20 | Y48: 27 | AX48: 27
B49: BRUSELAS | C49: 1 | D49: 1 | E49: 1 | G49: 2 | H49: 2 | I49: 1 | J49: 6 | Y49: 7 | AX49: 7
B50: CANELITOS | C50: 2 | D50: 2 | E50: 4 | F50: 2 | G50: 3 | H50: 2 | I50: 2 | J50: 13 | Y50: 15 | AX50: 15
B51: CRISTALINA | E51: 2 | F51: 7 | H51: 1 | I51: 2 | J51: 12 | Y51: 12 | AX51: 12
B52: EL CHOCHO | C52: 1 | D52: 1 | E52: 2 | F52: 3 | G52: 1 | H52: 3 | I52: 4 | J52: 13 | Y52: 14 | AX52: 14
B53: LAS PLATAS | E53: 2 | F53: 2 | G53: 1 | H53: 1 | I53: 1 | J53: 7 | Y53: 7 | AX53: 7
B54: LOS ANDES | E54: 2 | F54: 3 | G54: 1 | I54: 4 | J54: 10 | Y54: 10 | AX54: 10
B55: SAN ISIDRO | C55: 2 | D55: 2 | E55: 1 | H55: 1 | I55: 3 | J55: 5 | Y55: 7 | AX55: 7
B56: SANTA ELENA | E56: 1 | F56: 2 | G56: 1 | H56: 1 | I56: 3 | J56: 8 | Y56: 8 | AX56: 8
B57: SANTA ROSA | C57: 1 | D57: 1 | E57: 1 | F57: 3 | H57: 2 | J57: 6 | Y57: 7 | AX57: 7
B58: SARABANDO MEDIO | E58: 1 | G58: 3 | H58: 1 | I58: 2 | J58: 7 | Y58: 7 | AX58: 7
B59: I.E GABRIELA MISTRAL | Z59: 58 | AA59: 58 | AC59: 97 | AD59: 102 | AE59: 85 | AF59: 67 | AG59: 76 | AH59: 427 | AI59: 88 | AJ59: 80 | AK59: 77 | AL59: 121 | AM59: 366 | AN59: 73 | AO59: 65 | AP59: 138 | AW59: 989 | AX59: 989
B60: GABRIELA MISTRAL | AI60: 88 | AJ60: 80 | AK60: 77 | AL60: 121 | AM60: 366 | AN60: 73 | AO60: 65 | AP60: 138 | AW60: 504 | AX60: 504
B61: JOSE ACEVEDO Y GOMEZ | Z61: 58 | AA61: 58 | AC61: 97 | AD61: 102 | AE61: 85 | AF61: 67 | AG61: 76 | AH61: 427 | AW61: 485 | AX61: 485
B62: I.E RURAL EL PORTAL LA MONO | C62: 19 | D62: 19 | E62: 24 | F62: 42 | G62: 33 | H62: 28 | I62: 39 | J62: 166 | K62: 14 | L62: 21 | M62: 19 | N62: 24 | O62: 78 | P62: 9 | Q62: 11 | R62: 20 | Y62: 283 | AX62: 283
B63: AGUADULCE | C63: 2 | D63: 2 | E63: 3 | F63: 8 | G63: 5 | H63: 6 | I63: 6 | J63: 28 | Y63: 30 | AX63: 30
B64: EL CARBON | C64: 2 | D64: 2 | E64: 1 | F64: 9 | G64: 2 | H64: 1 | I64: 7 | J64: 20 | Y64: 22 | AX64: 22
B65: EL JAZMIN | C65: 1 | D65: 1 | E65: 1 | G65: 3 | H65: 1 | I65: 5 | J65: 10 | Y65: 11 | AX65: 11
B66: EL PORTAL LA MONO | C66: 8 | D66: 8 | E66: 8 | F66: 16 | G66: 13 | H66: 12 | I66: 11 | J66: 60 | K66: 14 | L66: 21 | M66: 19 | N66: 24 | O66: 78 | P66: 9 | Q66: 11 | R66: 20 | Y66: 166 | AX66: 166
B67: EL SANCHEZ | C67: 2 | D67: 2 | E67: 5 | F67: 2 | H67: 2 | I67: 4 | J67: 13 | Y67: 15 | AX67: 15
B68: GERARDO VALENCIA CANO | E68: 1 | F68: 2 | G68: 6 | H68: 1 | I68: 1 | J68: 11 | Y68: 11 | AX68: 11
B69: MONO ALTA | C69: 1 | D69: 1 | E69: 1 | G69: 2 | H69: 1 | I69: 1 | J69: 5 | Y69: 6 | AX69: 6
B70: TORTUGA ESTRELLA | C70: 2 | D70: 2 | E70: 3 | F70: 1 | G70: 1 | H70: 2 | I70: 1 | J70: 8 | Y70: 10 | AX70: 10
B71: VENADITO | C71: 1 | D71: 1 | E71: 1 | F71: 4 | G71: 1 | H71: 2 | I71: 3 | J71: 11 | Y71: 12 | AX71: 12
B72: I.E SAN LUIS | C72: 31 | D72: 31 | E72: 32 | F72: 42 | G72: 25 | H72: 32 | I72: 26 | J72: 157 | K72: 14 | L72: 18 | M72: 22 | N72: 26 | O72: 80 | P72: 12 | Q72: 10 | R72: 22 | Y72: 290 | AX72: 290
B73: BELLAVISTA | C73: 4 | D73: 4 | E73: 1 | G73: 1 | H73: 2 | I73: 2 | J73: 6 | Y73: 10 | AX73: 10
B74: EL DIAMANTE | C74: 4 | D74: 4 | E74: 3 | F74: 1 | G74: 1 | H74: 2 | I74: 2 | J74: 9 | Y74: 13 | AX74: 13
B75: EL MIRADOR | C75: 2 | D75: 2 | F75: 2 | H75: 3 | I75: 2 | J75: 7 | Y75: 9 | AX75: 9
B76: EL PORVENIR | E76: 2 | F76: 4 | G76: 1 | H76: 1 | I76: 2 | J76: 10 | Y76: 10 | AX76: 10
B77: LA ONDINA | C77: 2 | D77: 2 | E77: 1 | F77: 1 | G77: 2 | H77: 2 | I77: 1 | J77: 7 | Y77: 9 | AX77: 9
B78: LA PRADERA | C78: 2 | D78: 2 | E78: 1 | F78: 1 | H78: 4 | I78: 1 | J78: 7 | Y78: 9 | AX78: 9
B79: LA SOLEDAD | C79: 1 | D79: 1 | E79: 1 | F79: 5 | H79: 3 | J79: 9 | Y79: 10 | AX79: 10
B80: LA UNION | C80: 1 | D80: 1 | G80: 2 | H80: 1 | I80: 1 | J80: 4 | Y80: 5 | AX80: 5
B81: LAS DELICIAS | C81: 1 | D81: 1 | E81: 1 | F81: 2 | H81: 1 | I81: 1 | J81: 5 | Y81: 6 | AX81: 6
B82: LAS MINAS | E82: 3 | F82: 2 | G82: 3 | H82: 1 | I82: 1 | J82: 10 | Y82: 10 | AX82: 10
B83: LAS VENTANAS | C83: 2 | D83: 2 | E83: 2 | F83: 5 | J83: 7 | Y83: 9 | AX83: 9
B84: LOS ALETONES | C84: 1 | D84: 1 | E84: 1 | F84: 2 | H84: 1 | I84: 1 | J84: 5 | Y84: 6 | AX84: 6
B85: LOS TENDIDOS | E85: 1 | F85: 2 | G85: 1 | H85: 1 | J85: 5 | Y85: 5 | AX85: 5
B86: SAN ANTONIO | C86: 10 | D86: 10 | E86: 5 | F86: 10 | G86: 4 | H86: 5 | I86: 6 | J86: 30 | Y86: 40 | AX86: 40
B87: SAN LUIS | C87: 1 | D87: 1 | E87: 10 | F87: 5 | G87: 10 | H87: 5 | I87: 6 | J87: 36 | K87: 14 | L87: 18 | M87: 22 | N87: 26 | O87: 80 | P87: 12 | Q87: 10 | R87: 22 | Y87: 139 | AX87: 139
A88: CARTAGENA DEL CHAIRÁ | B88: I. E. R. LA ESMERALDA | C88: 22 | D88: 22 | E88: 53 | F88: 39 | G88: 42 | H88: 47 | I88: 70 | J88: 251 | K88: 11 | L88: 16 | M88: 28 | N88: 16 | O88: 71 | Y88: 344 | AX88: 344
B89: BANDERAS | C89: 2 | D89: 2 | E89: 3 | F89: 2 | G89: 1 | H89: 1 | I89: 4 | J89: 11 | Y89: 13 | AX89: 13
B90: CAMICAYA ALTO | C90: 6 | D90: 6 | E90: 1 | F90: 4 | G90: 2 | H90: 5 | I90: 5 | J90: 17 | M90: 9 | N90: 5 | O90: 14 | Y90: 37 | AX90: 37
B91: CAMICAYA MEDIO | C91: 2 | D91: 2 | E91: 3 | F91: 9 | G91: 2 | H91: 4 | I91: 6 | J91: 24 | Y91: 26 | AX91: 26
B92: COMUNEROS | E92: 2 | F92: 1 | G92: 4 | H92: 1 | I92: 3 | J92: 11 | Y92: 11 | AX92: 11
B93: EL BRILLANTE | C93: 5 | D93: 5 | E93: 2 | F93: 2 | G93: 3 | H93: 8 | I93: 4 | J93: 19 | Y93: 24 | AX93: 24
B94: GUADUALOSA | C94: 1 | D94: 1 | E94: 3 | F94: 1 | G94: 1 | H94: 1 | I94: 3 | J94: 9 | Y94: 10 | AX94: 10
B95: LA ARGENTINA | C95: 3 | D95: 3 | E95: 1 | F95: 1 | G95: 2 | H95: 6 | I95: 4 | J95: 14 | Y95: 17 | AX95: 17
B96: LA MACARENA | E96: 9 | F96: 3 | H96: 1 | I96: 5 | J96: 18 | K96: 4 | L96: 8 | M96: 4 | N96: 6 | O96: 22 | Y96: 40 | AX96: 40
B97: LA URIBE | E97: 5 | G97: 4 | H97: 3 | I97: 4 | J97: 16 | Y97: 16 | AX97: 16
B98: LA ESMERALDA | E98: 3 | F98: 7 | G98: 4 | H98: 5 | I98: 5 | J98: 24 | K98: 7 | L98: 7 | M98: 9 | N98: 1 | O98: 24 | Y98: 48 | AX98: 48
B99: LA LIBERTAD | C99: 1 | D99: 1 | E99: 2 | G99: 1 | H99: 2 | I99: 5 | J99: 10 | Y99: 11 | AX99: 11
B100: LA ORQUIDIA | E100: 3 | F100: 3 | G100: 5 | H100: 2 | J100: 13 | Y100: 13 | AX100: 13
B101: MIRAFLORES DEL SUNCILLAS | E101: 2 | F101: 2 | H101: 2 | I101: 2 | J101: 8 | Y101: 8 | AX101: 8
B102: PATIO BONITO | C102: 1 | D102: 1 | E102: 8 | F102: 2 | G102: 3 | H102: 4 | I102: 4 | J102: 21 | Y102: 22 | AX102: 22
B103: SEDE BELLAVISTA | C103: 1 | D103: 1 | E103: 3 | F103: 1 | G103: 2 | H103: 1 | I103: 7 | J103: 14 | Y103: 15 | AX103: 15
B104: VILLA COLOMBIA | E104: 3 | F104: 1 | G104: 8 | H104: 1 | I104: 9 | J104: 22 | L104: 1 | M104: 6 | N104: 4 | O104: 11 | Y104: 33 | AX104: 33
B105: I. E. R. LOS CRISTALES | C105: 45 | D105: 45 | E105: 40 | F105: 59 | G105: 37 | H105: 49 | I105: 43 | J105: 228 | K105: 4 | L105: 1 | M105: 21 | N105: 11 | O105: 37 | Y105: 310 | AX105: 310
B106: ANIBAL NUÑEZ | C106: 5 | D106: 5 | F106: 4 | G106: 2 | H106: 6 | I106: 5 | J106: 17 | Y106: 22 | AX106: 22
B107: LA CEIBA | C107: 3 | D107: 3 | E107: 7 | F107: 1 | G107: 2 | H107: 3 | I107: 4 | J107: 17 | Y107: 20 | AX107: 20
B108: LA FLORIDA # 1 | C108: 1 | D108: 1 | E108: 1 | F108: 3 | G108: 6 | I108: 3 | J108: 13 | Y108: 14 | AX108: 14
B109: LA FLORIDA # 2 | C109: 8 | D109: 8 | E109: 8 | F109: 18 | G109: 6 | H109: 8 | I109: 5 | J109: 45 | Y109: 53 | AX109: 53
B110: LLANITOS | C110: 4 | D110: 4 | E110: 4 | F110: 3 | G110: 1 | H110: 7 | I110: 2 | J110: 17 | Y110: 21 | AX110: 21
B111: LOS CRISTALES | C111: 8 | D111: 8 | E111: 6 | F111: 6 | G111: 9 | H111: 5 | I111: 8 | J111: 34 | K111: 4 | L111: 1 | M111: 21 | N111: 11 | O111: 37 | Y111: 79 | AX111: 79
B112: MONTEADENTRO | C112: 6 | D112: 6 | E112: 3 | F112: 2 | H112: 6 | I112: 7 | J112: 18 | Y112: 24 | AX112: 24
B113: PEÑAS BLANCAS | C113: 2 | D113: 2 | E113: 1 | F113: 2 | G113: 2 | H113: 2 | I113: 2 | J113: 9 | Y113: 11 | AX113: 11
B114: SABALETA ALTA | C114: 4 | D114: 4 | E114: 1 | F114: 6 | G114: 4 | H114: 3 | I114: 1 | J114: 15 | Y114: 19 | AX114: 19
B115: SEDE SAN JUAN BAUTISTA | E115: 5 | F115: 2 | G115: 2 | H115: 1 | J115: 10 | Y115: 10 | AX115: 10
B116: SEDE SIMON BOLIVAR | C116: 2 | D116: 2 | E116: 1 | F116: 7 | G116: 1 | I116: 4 | J116: 13 | Y116: 15 | AX116: 15
B117: VILLANUEVA | C117: 2 | D117: 2 | E117: 3 | F117: 5 | G117: 2 | H117: 8 | I117: 2 | J117: 20 | Y117: 22 | AX117: 22
B118: I. E. R. MONSERRATE | C118: 38 | D118: 38 | E118: 43 | F118: 83 | G118: 45 | H118: 38 | I118: 42 | J118: 251 | K118: 4 | L118: 14 | M118: 13 | N118: 24 | O118: 55 | Y118: 344 | AX118: 344
B119: BUENAVISTA | E119: 2 | F119: 3 | G119: 3 | H119: 6 | I119: 2 | J119: 16 | Y119: 16 | AX119: 16
B120: CAÑO NEGRO | C120: 3 | D120: 3 | E120: 1 | F120: 3 | G120: 2 | H120: 1 | I120: 3 | J120: 10 | Y120: 13 | AX120: 13
B121: CAÑO SANTO DOMINGO | C121: 5 | D121: 5 | E121: 6 | F121: 13 | G121: 5 | H121: 7 | I121: 9 | J121: 40 | Y121: 45 | AX121: 45
B122: EL CONVENIO | C122: 5 | D122: 5 | E122: 5 | F122: 10 | G122: 4 | H122: 2 | I122: 5 | J122: 26 | Y122: 31 | AX122: 31
B123: EL GUAMO | C123: 5 | D123: 5 | E123: 8 | F123: 5 | G123: 13 | H123: 6 | I123: 3 | J123: 35 | Y123: 40 | AX123: 40
B124: GABRIEL GARCIA MARQUEZ | C124: 4 | D124: 4 | E124: 2 | F124: 4 | I124: 6 | J124: 12 | Y124: 16 | AX124: 16
B125: LAS QUILLAS | E125: 2 | F125: 3 | G125: 3 | H125: 1 | I125: 2 | J125: 11 | Y125: 11 | AX125: 11
B126: MANUELA BELTRAN | C126: 8 | D126: 8 | E126: 1 | F126: 23 | G126: 5 | H126: 4 | I126: 2 | J126: 35 | Y126: 43 | AX126: 43
B127: MONSERRATE | C127: 5 | D127: 5 | E127: 8 | F127: 8 | G127: 5 | H127: 5 | I127: 6 | J127: 32 | K127: 4 | L127: 14 | M127: 13 | N127: 24 | O127: 55 | Y127: 92 | AX127: 92
B128: NARANJALES | C128: 2 | D128: 2 | E128: 3 | F128: 3 | G128: 2 | H128: 3 | I128: 1 | J128: 12 | Y128: 14 | AX128: 14
B129: SANTA ELENA | C129: 1 | D129: 1 | E129: 1 | F129: 5 | G129: 2 | H129: 1 | J129: 9 | Y129: 10 | AX129: 10
B130: SIMON BOLIVAR | E130: 4 | F130: 3 | G130: 1 | H130: 2 | I130: 3 | J130: 13 | Y130: 13 | AX130: 13
B131: I. E. R. PEÑAS COLORADAS | C131: 15 | D131: 15 | E131: 25 | F131: 53 | G131: 33 | H131: 59 | I131: 34 | J131: 204 | K131: 8 | L131: 10 | M131: 18 | N131: 16 | O131: 52 | Y131: 271 | AX131: 271
B132: ANIMAS ALTAS | F132: 3 | G132: 1 | H132: 4 | I132: 5 | J132: 13 | Y132: 13 | AX132: 13
B133: BELLA LUZ DE LAS ANIMAS | C133: 2 | D133: 2 | E133: 4 | F133: 8 | G133: 3 | H133: 5 | I133: 2 | J133: 22 | K133: 2 | L133: 3 | M133: 7 | N133: 4 | O133: 16 | Y133: 40 | AX133: 40
B134: CAÑO PERDIDO | C134: 2 | D134: 2 | F134: 3 | G134: 2 | I134: 3 | J134: 8 | Y134: 10 | AX134: 10
B135: DOCE DE OCTUBRE | C135: 4 | D135: 4 | E135: 6 | F135: 7 | G135: 6 | H135: 17 | I135: 5 | J135: 41 | Y135: 45 | AX135: 45
B136: EL VENADO | C136: 2 | D136: 2 | E136: 3 | G136: 5 | H136: 6 | I136: 2 | J136: 16 | K136: 2 | L136: 2 | M136: 3 | N136: 3 | O136: 10 | Y136: 28 | AX136: 28
B137: JOSE HILARIO ORTIZ | E137: 2 | F137: 5 | G137: 2 | H137: 5 | I137: 2 | J137: 16 | Y137: 16 | AX137: 16
B138: JUAN PABLO II | C138: 3 | D138: 3 | E138: 5 | F138: 2 | G138: 4 | H138: 6 | I138: 5 | J138: 22 | K138: 4 | L138: 5 | M138: 8 | N138: 9 | O138: 26 | Y138: 51 | AX138: 51
B139: LAGUNA VERDE | C139: 1 | D139: 1 | E139: 1 | F139: 9 | G139: 6 | H139: 6 | I139: 3 | J139: 25 | Y139: 26 | AX139: 26
B140: LOS ANGELES | C140: 1 | D140: 1 | E140: 4 | F140: 16 | G140: 4 | H140: 10 | I140: 7 | J140: 41 | Y140: 42 | AX140: 42
B141: I. E. R. SANTA CRUZ DEL AGUILA | C141: 22 | D141: 22 | E141: 29 | F141: 36 | G141: 20 | H141: 30 | I141: 35 | J141: 150 | K141: 9 | L141: 2 | M141: 5 | N141: 15 | O141: 31 | Y141: 203 | AX141: 203
B142: AGUAS CLARAS | C142: 5 | D142: 5 | E142: 5 | F142: 4 | G142: 4 | H142: 4 | I142: 6 | J142: 23 | Y142: 28 | AX142: 28
B143: EL AGUILA | C143: 1 | D143: 1 | E143: 5 | F143: 8 | G143: 6 | H143: 10 | I143: 8 | J143: 37 | K143: 9 | L143: 2 | M143: 5 | N143: 15 | O143: 31 | Y143: 69 | AX143: 69
B144: EL PENEYA | I144: 1 | J144: 1 | Y144: 1 | AX144: 1
B145: EL RECREO ALTO | C145: 10 | D145: 10 | E145: 11 | F145: 4 | G145: 2 | H145: 7 | I145: 7 | J145: 31 | Y145: 41 | AX145: 41
B146: FRANCISCO JOSE DE CALDAS | E146: 2 | F146: 8 | G146: 4 | H146: 2 | I146: 2 | J146: 18 | Y146: 18 | AX146: 18
B147: LAS DELICIAS | C147: 4 | D147: 4 | E147: 1 | F147: 5 | G147: 3 | H147: 1 | I147: 5 | J147: 15 | Y147: 19 | AX147: 19
B148: NUEVA FLORESTA | C148: 1 | D148: 1 | E148: 2 | F148: 5 | G148: 1 | H148: 2 | I148: 3 | J148: 13 | Y148: 14 | AX148: 14
B149: YAICOGE | C149: 1 | D149: 1 | E149: 3 | F149: 2 | H149: 4 | I149: 3 | J149: 12 | Y149: 13 | AX149: 13
B150: I. E. R. SANTAFE DEL CAGUAN | C150: 36 | D150: 36 | E150: 36 | F150: 74 | G150: 36 | H150: 45 | I150: 37 | J150: 228 | K150: 8 | L150: 21 | M150: 28 | N150: 28 | O150: 85 | P150: 15 | Q150: 9 | R150: 24 | Y150: 373 | AX150: 373
B151: EL BOLIVAR | C151: 3 | D151: 3 | F151: 7 | G151: 5 | H151: 2 | I151: 5 | J151: 19 | Y151: 22 | AX151: 22
B152: EL DANUBIO | C152: 3 | D152: 3 | E152: 3 | F152: 5 | G152: 2 | H152: 3 | I152: 1 | J152: 14 | Y152: 17 | AX152: 17
B153: EL JARDIN | C153: 2 | D153: 2 | E153: 1 | F153: 4 | G153: 2 | H153: 3 | I153: 2 | J153: 12 | Y153: 14 | AX153: 14
B154: EL MANANTIAL | C154: 1 | D154: 1 | E154: 1 | F154: 1 | H154: 6 | I154: 1 | J154: 9 | Y154: 10 | AX154: 10
B155: EL PORE | C155: 1 | D155: 1 | E155: 2 | F155: 2 | G155: 3 | H155: 3 | I155: 1 | J155: 11 | Y155: 12 | AX155: 12
B156: EL PORVENIR NO. 1 | C156: 1 | D156: 1 | E156: 4 | F156: 4 | G156: 3 | H156: 7 | I156: 2 | J156: 20 | Y156: 21 | AX156: 21
B157: EL RENACER DE ARMERO | E157: 2 | F157: 2 | G157: 1 | I157: 3 | J157: 8 | Y157: 8 | AX157: 8
B158: LA PAZ NO. 3 | E158: 1 | F158: 6 | G158: 1 | H158: 3 | J158: 11 | Y158: 11 | AX158: 11
B159: LA REDONDA | C159: 1 | D159: 1 | E159: 4 | F159: 2 | G159: 1 | H159: 1 | I159: 1 | J159: 9 | Y159: 10 | AX159: 10
B160: PAZ NO. 2 | C160: 8 | D160: 8 | E160: 2 | F160: 11 | G160: 4 | H160: 5 | I160: 3 | J160: 25 | Y160: 33 | AX160: 33
B161: SAN ISIDRO | C161: 1 | D161: 1 | F161: 1 | G161: 5 | H161: 3 | J161: 9 | Y161: 10 | AX161: 10
B162: SANTA FE DEL CAGUAN | C162: 15 | D162: 15 | E162: 16 | F162: 29 | G162: 9 | H162: 9 | I162: 18 | J162: 81 | K162: 8 | L162: 21 | M162: 28 | N162: 28 | O162: 85 | P162: 15 | Q162: 9 | R162: 24 | Y162: 205 | AX162: 205
B163: I.E AGROECOLOGICO AMAZONICO | Z163: 129 | AA163: 129 | AC163: 165 | AD163: 225 | AE163: 136 | AF163: 197 | AG163: 196 | AH163: 919 | AI163: 79 | AJ163: 94 | AK163: 125 | AL163: 158 | AM163: 456 | AN163: 65 | AO163: 42 | AP163: 107 | AQ163: 22 | AR163: 78 | AS163: 74 | AT163: 90 | AV163: 264 | AW163: 1875 | AX163: 1875
B164: AGROECOLOGICO | AC164: 45 | AD164: 36 | AE164: 44 | AF164: 37 | AG164: 33 | AH164: 195 | AI164: 79 | AJ164: 94 | AK164: 125 | AL164: 158 | AM164: 456 | AN164: 65 | AO164: 42 | AP164: 107 | AQ164: 22 | AR164: 78 | AS164: 74 | AT164: 90 | AV164: 264 | AW164: 1022 | AX164: 1022
B165: ATANASIO GIRARDOT | Z165: 66 | AA165: 66 | AC165: 42 | AD165: 73 | AE165: 38 | AF165: 75 | AG165: 71 | AH165: 299 | AW165: 365 | AX165: 365
B166: BUENOS AIRES | Z166: 30 | AA166: 30 | AC166: 42 | AD166: 42 | AE166: 25 | AF166: 39 | AG166: 46 | AH166: 194 | AW166: 224 | AX166: 224
B167: SEDE ALONSO GAITAN | Z167: 33 | AA167: 33 | AC167: 36 | AD167: 74 | AE167: 29 | AF167: 46 | AG167: 46 | AH167: 231 | AW167: 264 | AX167: 264
B168: I.E EL CHAIRA JOSE MARIA CORDOBA | C168: 57 | D168: 57 | E168: 74 | F168: 108 | G168: 72 | H168: 115 | I168: 76 | J168: 445 | K168: 30 | L168: 40 | M168: 57 | N168: 85 | O168: 212 | Y168: 714 | Z168: 81 | AA168: 81 | AB168: 26 | AC168: 110 | AD168: 102 | AE168: 90 | AF168: 69 | AG168: 94 | AH168: 491 | AI168: 111 | AJ168: 127 | AK168: 147 | AL168: 162 | AM168: 547 | AN168: 118 | AO168: 82 | AP168: 200 | AR168: 22 | AS168: 27 | AT168: 33 | AV168: 82 | AW168: 1401 | AX168: 2115
B169: EL CHAIRA | AC169: 70 | AE169: 59 | AG169: 31 | AH169: 160 | AI169: 111 | AM169: 111 | AN169: 118 | AO169: 82 | AP169: 200 | AR169: 22 | AS169: 27 | AT169: 33 | AV169: 82 | AW169: 553 | AX169: 553
B170: JOSE MARIA CORDOBA | Z170: 81 | AA170: 81 | AB170: 26 | AC170: 40 | AD170: 102 | AE170: 31 | AF170: 69 | AG170: 63 | AH170: 331 | AJ170: 127 | AK170: 147 | AL170: 162 | AM170: 436 | AW170: 848 | AX170: 848
B171: PRIMERO DE AGOSTO | C171: 57 | D171: 57 | E171: 74 | F171: 108 | G171: 72 | H171: 115 | I171: 76 | J171: 445 | K171: 30 | L171: 40 | M171: 57 | N171: 85 | O171: 212 | Y171: 714 | AX171: 714
B172: I.E. R. DIVINO NIÑO | C172: 14 | D172: 14 | E172: 39 | F172: 34 | G172: 25 | H172: 55 | I172: 37 | J172: 190 | K172: 13 | L172: 13 | M172: 16 | N172: 22 | O172: 64 | Y172: 268 | AX172: 268
B173: ALTO BONITO | C173: 1 | D173: 1 | E173: 3 | F173: 1 | H173: 3 | J173: 7 | Y173: 8 | AX173: 8
B174: BOCANA DEL ANAYA | C174: 2 | D174: 2 | E174: 4 | F174: 2 | G174: 4 | H174: 5 | I174: 1 | J174: 16 | Y174: 18 | AX174: 18
B175: CAMPOALEGRE | E175: 2 | F175: 1 | H175: 5 | I175: 7 | J175: 15 | Y175: 15 | AX175: 15
B176: DIVINO NIÑO # 2 | C176: 2 | D176: 2 | E176: 4 | F176: 5 | G176: 6 | H176: 13 | I176: 4 | J176: 32 | K176: 13 | L176: 13 | M176: 16 | N176: 22 | O176: 64 | Y176: 98 | AX176: 98
B177: EL DIAMANTE | C177: 2 | D177: 2 | E177: 4 | F177: 3 | G177: 4 | H177: 5 | I177: 1 | J177: 17 | Y177: 19 | AX177: 19
B178: EL RUBI | C178: 2 | D178: 2 | E178: 2 | F178: 1 | G178: 1 | H178: 1 | I178: 2 | J178: 7 | Y178: 9 | AX178: 9
B179: FUNDACION | C179: 4 | D179: 4 | E179: 10 | F179: 7 | G179: 5 | H179: 5 | I179: 11 | J179: 38 | Y179: 42 | AX179: 42
B180: LAS MERCEDES | E180: 1 | F180: 6 | G180: 2 | H180: 6 | I180: 2 | J180: 17 | Y180: 17 | AX180: 17
B181: RIO CLARO | C181: 1 | D181: 1 | E181: 3 | F181: 4 | G181: 1 | H181: 8 | I181: 3 | J181: 19 | Y181: 20 | AX181: 20
B182: RISARALDA | F182: 2 | G182: 1 | H182: 1 | I182: 1 | J182: 5 | Y182: 5 | AX182: 5
B183: SAN ANTONIO DEL HIGUERON | E183: 3 | F183: 2 | G183: 1 | H183: 2 | I183: 5 | J183: 13 | Y183: 13 | AX183: 13
B184: VISTA HERMOSA | E184: 3 | H184: 1 | J184: 4 | Y184: 4 | AX184: 4
B185: I.E. R. EL EDEN | C185: 18 | D185: 18 | E185: 30 | F185: 32 | G185: 18 | H185: 20 | I185: 37 | J185: 137 | K185: 13 | L185: 25 | M185: 20 | N185: 25 | O185: 83 | Y185: 238 | AX185: 238
B186: ALTO ARENOSO | E186: 2 | F186: 1 | G186: 2 | H186: 3 | I186: 4 | J186: 12 | Y186: 12 | AX186: 12
B187: EL CAIRO | E187: 3 | F187: 4 | G187: 4 | H187: 2 | I187: 1 | J187: 14 | Y187: 14 | AX187: 14
B188: EL EDEN | C188: 5 | D188: 5 | E188: 5 | F188: 9 | G188: 4 | H188: 3 | I188: 12 | J188: 33 | K188: 2 | L188: 8 | M188: 10 | N188: 2 | O188: 22 | Y188: 60 | AX188: 60
B189: EL TRIUNFO | C189: 1 | D189: 1 | E189: 1 | F189: 2 | G189: 2 | H189: 2 | I189: 2 | J189: 9 | Y189: 10 | AX189: 10
B190: LA PRIMAVERA | C190: 2 | D190: 2 | E190: 4 | F190: 1 | G190: 2 | H190: 2 | J190: 9 | Y190: 11 | AX190: 11
B191: LA REFORMA | C191: 4 | D191: 4 | E191: 3 | F191: 3 | G191: 2 | H191: 1 | I191: 6 | J191: 15 | K191: 4 | L191: 5 | M191: 2 | N191: 3 | O191: 14 | Y191: 33 | AX191: 33
B192: LAS PISCINAS | C192: 2 | D192: 2 | E192: 4 | F192: 7 | G192: 1 | H192: 4 | I192: 6 | J192: 22 | K192: 1 | L192: 4 | M192: 3 | N192: 13 | O192: 21 | Y192: 45 | AX192: 45
B193: LOS ESPEJOS | C193: 4 | D193: 4 | E193: 8 | F193: 5 | G193: 1 | H193: 3 | I193: 6 | J193: 23 | K193: 6 | L193: 8 | M193: 5 | N193: 7 | O193: 26 | Y193: 53 | AX193: 53
B194: I.E. R. LA SARDINATA | C194: 28 | D194: 28 | E194: 38 | F194: 57 | G194: 43 | H194: 72 | I194: 65 | J194: 275 | K194: 10 | L194: 21 | M194: 14 | N194: 35 | O194: 80 | Y194: 383 | AX194: 383
B195: ALTA SARDINATA | C195: 2 | D195: 2 | E195: 3 | F195: 2 | H195: 5 | I195: 4 | J195: 14 | Y195: 16 | AX195: 16
B196: ANDAKI | C196: 1 | D196: 1 | E196: 1 | F196: 2 | G196: 3 | H196: 6 | I196: 3 | J196: 15 | Y196: 16 | AX196: 16
B197: BARCELONA | C197: 3 | D197: 3 | E197: 1 | F197: 3 | G197: 3 | H197: 3 | I197: 4 | J197: 14 | Y197: 17 | AX197: 17
B198: DIVINO NIÑO 1 | C198: 3 | D198: 3 | E198: 2 | F198: 2 | H198: 4 | I198: 2 | J198: 10 | Y198: 13 | AX198: 13
B199: EL PRADO | C199: 3 | D199: 3 | E199: 1 | F199: 7 | G199: 4 | H199: 4 | J199: 16 | Y199: 19 | AX199: 19
B200: EL RETIRO | E200: 1 | F200: 2 | G200: 1 | H200: 4 | I200: 3 | J200: 11 | Y200: 11 | AX200: 11
B201: LA HOLANDA | E201: 10 | F201: 11 | G201: 4 | H201: 10 | I201: 11 | J201: 46 | Y201: 46 | AX201: 46
B202: LA SARDINATA | C202: 9 | D202: 9 | E202: 5 | F202: 11 | G202: 7 | H202: 17 | I202: 20 | J202: 60 | K202: 10 | L202: 14 | M202: 8 | N202: 28 | O202: 60 | Y202: 129 | AX202: 129
... 1178 more rows

Sheet 1.4
A1: MATRICULA NO OFICIAL POR MUNICIPIO, ZONA Y NIVELES
C4: U | AA4: Total U | AB4: Total general
C5: 1. PREESCOLAR | F5: Total 1. PREESCOLAR | G5: 2. PRIMARIA | L5: Total 2. PRIMARIA | M5: 3. SECUNDARIA | Q5: Total 3. SECUNDARIA | R5: 4. MEDIA | T5: Total 4. MEDIA | U5: 5. CICLOS | Z5: Total 5. CICLOS
A6: MUNICIPIO | B6: INSTITUCION | C6: GRADO 0 | D6: JRD I/KIND | E6: PRE-JARDIN | G6: CUARTO | H6: PRIMERO | I6: QUINTO | J6: SEGUNDO | K6: TERCERO | M6: NOVENO | N6: OCTAVO | O6: SEPTIMO | P6: SEXTO | R6: DÉCIMO | S6: ONCE | U6: CICLO 2 ADULTOS | V6: CICLO 3 ADULTOS | W6: CICLO 4 ADULTOS | X6: CICLO 5 ADULTOS | Y6: CICLO 6 ADULTOS
A7: EL DONCELLO | B7: LICEO INFANTIL WINNIE POOH | C7: 20 | D7: 15 | E7: 9 | F7: 44 | G7: 14 | H7: 20 | I7: 14 | J7: 17 | K7: 17 | L7: 82 | AA7: 126 | AB7: 126
A8: PUERTO RICO | B8: IDEHA | V8: 33 | W8: 64 | X8: 78 | Y8: 9 | Z8: 184 | AA8: 184 | AB8: 184
A9: SAN VICENTE DEL CAGUÁN | B9: CIUDADELA JUVENIL AMAZONICA DON BOSCO | Y9: 9 | Z9: 9 | AA9: 9 | AB9: 9
B10: INST FRANCISCO DE ASIS | U10: 2 | V10: 6 | W10: 14 | X10: 13 | Y10: 7 | Z10: 42 | AA10: 42 | AB10: 42
B11: LICEO MODERNO INFANTIL | C11: 16 | D11: 39 | F11: 55 | G11: 23 | H11: 44 | I11: 23 | J11: 14 | K11: 31 | L11: 135 | M11: 8 | N11: 22 | O11: 23 | P11: 30 | Q11: 83 | R11: 8 | S11: 17 | T11: 25 | AA11: 298 | AB11: 298
A12: Total general | C12: 36 | D12: 54 | E12: 9 | F12: 99 | G12: 37 | H12: 64 | I12: 37 | J12: 31 | K12: 48 | L12: 217 | M12: 8 | N12: 22 | O12: 23 | P12: 30 | Q12: 83 | R12: 8 | S12: 17 | T12: 25 | U12: 2 | V12: 39 | W12: 78 | X12: 91 | Y12: 25 | Z12: 235 | AA12: 659 | AB12: 659

Sheet 1.5
A1: MATRICULA NO OFICIAL POR MUNICIPIO, ESTABLECIMIENTO EDUCATIVO, SEDES, GRADOS, ZONA Y NIVELES
C4: U | AA4: Total U | AB4: Total general
C5: 1. PREESCOLAR | F5: Total 1. PREESCOLAR | G5: 2. PRIMARIA | L5: Total 2. PRIMARIA | M5: 3. SECUNDARIA | Q5: Total 3. SECUNDARIA | R5: 4. MEDIA | T5: Total 4. MEDIA | U5: 5. CICLOS | Z5: Total 5. CICLOS
A6: MUNICIPIO | B6: INSTITUCION | C6: GRADO 0 | D6: JRD I/KIND | E6: PRE-JARDIN | G6: CUARTO | H6: PRIMERO | I6: QUINTO | J6: SEGUNDO | K6: TERCERO | M6: NOVENO | N6: OCTAVO | O6: SEPTIMO | P6: SEXTO | R6: DÉCIMO | S6: ONCE | U6: CICLO 2 ADULTOS | V6: CICLO 3 ADULTOS | W6: CICLO 4 ADULTOS | X6: CICLO 5 ADULTOS | Y6: CICLO 6 ADULTOS
A7: EL DONCELLO | B7: LICEO INFANTIL WINNIE POOH | C7: 20 | D7: 15 | E7: 9 | F7: 44 | G7: 14 | H7: 20 | I7: 14 | J7: 17 | K7: 17 | L7: 82 | AA7: 126 | AB7: 126
B8: LICEO INFANTIL WINNIE POOH | C8: 20 | D8: 15 | E8: 9 | F8: 44 | G8: 14 | H8: 20 | I8: 14 | J8: 17 | K8: 17 | L8: 82 | AA8: 126 | AB8: 126
A9: PUERTO RICO | B9: IDEHA | V9: 33 | W9: 64 | X9: 78 | Y9: 9 | Z9: 184 | AA9: 184 | AB9: 184
B10: IDEHA_SANVICENTE | V10: 33 | W10: 64 | X10: 78 | Y10: 9 | Z10: 184 | AA10: 184 | AB10: 184
A11: SAN VICENTE DEL CAGUÁN | B11: CIUDADELA JUVENIL AMAZONICA DON BOSCO | Y11: 9 | Z11: 9 | AA11: 9 | AB11: 9
B12: I.E CIUDADELA JUVENIL AMAZONICA DON BOSCO | Y12: 9 | Z12: 9 | AA12: 9 | AB12: 9
B13: INST FRANCISCO DE ASIS | U13: 2 | V13: 6 | W13: 14 | X13: 13 | Y13: 7 | Z13: 42 | AA13: 42 | AB13: 42
B14: FRANCISCO_CARTAGENA | V14: 1 | W14: 3 | X14: 2 | Y14: 5 | Z14: 11 | AA14: 11 | AB14: 11
B15: INST FRANCISCO DE ASIS | U15: 2 | V15: 5 | W15: 11 | X15: 11 | Y15: 2 | Z15: 31 | AA15: 31 | AB15: 31
B16: LICEO MODERNO INFANTIL | C16: 16 | D16: 39 | F16: 55 | G16: 23 | H16: 44 | I16: 23 | J16: 14 | K16: 31 | L16: 135 | M16: 8 | N16: 22 | O16: 23 | P16: 30 | Q16: 83 | R16: 8 | S16: 17 | T16: 25 | AA16: 298 | AB16: 298
B17: LICEO MODERNO INFANTIL | C17: 16 | D17: 39 | F17: 55 | G17: 23 | H17: 44 | I17: 23 | J17: 14 | K17: 31 | L17: 135 | M17: 8 | N17: 22 | O17: 23 | P17: 30 | Q17: 83 | R17: 8 | S17: 17 | T17: 25 | AA17: 298 | AB17: 298
A18: Total general | C18: 36 | D18: 54 | E18: 9 | F18: 99 | G18: 37 | H18: 64 | I18: 37 | J18: 31 | K18: 48 | L18: 217 | M18: 8 | N18: 22 | O18: 23 | P18: 30 | Q18: 83 | R18: 8 | S18: 17 | T18: 25 | U18: 2 | V18: 39 | W18: 78 | X18: 91 | Y18: 25 | Z18: 235 | AA18: 659 | AB18: 659

Sheet 2
B1: MATRICULA OFICIAL Y PRIVADA POR MODELO EDUCATIVO
B4: PROGRAMA | C4: ALUMNOS
B5: ACELERACIÓN DEL APRENDIZAJE | C5: 107
B6: EDUCACIÓN TRADICIONAL | C6: 31172
B7: ESCUELA NUEVA | C7: 18975
B8: ETNOEDUCACIÓN | C8: 1392
B9: MEDIA RURAL | C9: 256
B10: POST PRIMARIA | C10: 4599
B11: PREESCOLAR ESCOLARIZADO_ | C11: 17
B12: PREESCOLAR NO ESCOLARIZADO/SEMIESCOLARIZADO | C12: 11
B13: PROGRAMA PARA JÓVENES EN EXTRAEDAD Y ADULTOS | C13: 3890
B14: SER | C14: 42
B15: TELESECUNDARIA | C15: 1160
B16: Total general | C16: 61621

Sheet 2.1
A1: MATRICULA OFICIAL Y PRIVADA POR MUNICIPIO, MODELO EDUACTIVO Y ZONA
A5: MUNICIPIO | B5: MODELO_EDUCATIVO | C5: R | D5: U | E5: Total general
A6: ALBANIA | B6: EDUCACIÓN TRADICIONAL | D6: 604 | E6: 604
B7: ESCUELA NUEVA | C7: 299 | E7: 299
B8: MEDIA RURAL | C8: 27 | E8: 27
B9: POST PRIMARIA | C9: 125 | E9: 125
A10: BELÉN DE LOS ANDAQUIES | B10: EDUCACIÓN TRADICIONAL | C10: 22 | D10: 1544 | E10: 1566
B11: ESCUELA NUEVA | C11: 652 | E11: 652
B12: MEDIA RURAL | C12: 20 | E12: 20
B13: POST PRIMARIA | C13: 226 | E13: 226
B14: PREESCOLAR NO ESCOLARIZADO/SEMIESCOLARIZADO | C14: 11 | E14: 11
B15: PROGRAMA PARA JÓVENES EN EXTRAEDAD Y ADULTOS | C15: 46 | D15: 154 | E15: 200
A16: CARTAGENA DEL CHAIRÁ | B16: ACELERACIÓN DEL APRENDIZAJE | D16: 26 | E16: 26
B17: EDUCACIÓN TRADICIONAL | C17: 764 | D17: 2904 | E17: 3668
B18: ESCUELA NUEVA | C18: 3268 | E18: 3268
B19: POST PRIMARIA | C19: 47 | E19: 47
B20: PROGRAMA PARA JÓVENES EN EXTRAEDAD Y ADULTOS | C20: 20 | D20: 346 | E20: 366
B21: TELESECUNDARIA | C21: 853 | E21: 853
A22: CURILLO | B22: ACELERACIÓN DEL APRENDIZAJE | D22: 22 | E22: 22
B23: EDUCACIÓN TRADICIONAL | C23: 66 | D23: 1418 | E23: 1484
B24: ESCUELA NUEVA | C24: 463 | E24: 463
B25: MEDIA RURAL | C25: 9 | E25: 9
B26: POST PRIMARIA | C26: 165 | E26: 165
B27: PROGRAMA PARA JÓVENES EN EXTRAEDAD Y ADULTOS | D27: 156 | E27: 156
A28: EL DONCELLO | B28: EDUCACIÓN TRADICIONAL | C28: 273 | D28: 3352 | E28: 3625
B29: ESCUELA NUEVA | C29: 687 | D29: 80 | E29: 767
B30: MEDIA RURAL | C30: 18 | E30: 18
B31: POST PRIMARIA | C31: 129 | E31: 129
B32: PROGRAMA PARA JÓVENES EN EXTRAEDAD Y ADULTOS | C32: 22 | D32: 456 | E32: 478
A33: EL PAUJIL | B33: EDUCACIÓN TRADICIONAL | C33: 718 | D33: 1309 | E33: 2027
B34: ESCUELA NUEVA | C34: 806 | E34: 806
B35: MEDIA RURAL | C35: 7 | E35: 7
B36: POST PRIMARIA | C36: 321 | E36: 321
B37: PROGRAMA PARA JÓVENES EN EXTRAEDAD Y ADULTOS | C37: 202 | D37: 143 | E37: 345
A38: LA MONTAÑITA | B38: EDUCACIÓN TRADICIONAL | C38: 693 | D38: 668 | E38: 1361
B39: ESCUELA NUEVA | C39: 2064 | E39: 2064
B40: MEDIA RURAL | C40: 36 | E40: 36
B41: POST PRIMARIA | C41: 345 | E41: 345
B42: PROGRAMA PARA JÓVENES EN EXTRAEDAD Y ADULTOS | C42: 190 | D42: 91 | E42: 281
A43: MILÁN | B43: EDUCACIÓN TRADICIONAL | C43: 507 | D43: 332 | E43: 839
B44: ESCUELA NUEVA | C44: 791 | E44: 791
B45: ETNOEDUCACIÓN | C45: 491 | E45: 491
B46: MEDIA RURAL | C46: 37 | E46: 37
B47: POST PRIMARIA | C47: 164 | E47: 164
B48: PROGRAMA PARA JÓVENES EN EXTRAEDAD Y ADULTOS | C48: 96 | E48: 96
A49: MORELIA | B49: EDUCACIÓN TRADICIONAL | D49: 475 | E49: 475
B50: ESCUELA NUEVA | C50: 195 | E50: 195
B51: POST PRIMARIA | C51: 71 | E51: 71
B52: PROGRAMA PARA JÓVENES EN EXTRAEDAD Y ADULTOS | D52: 146 | E52: 146
A53: PUERTO RICO | B53: ACELERACIÓN DEL APRENDIZAJE | D53: 17 | E53: 17
B54: EDUCACIÓN TRADICIONAL | C54: 703 | D54: 3512 | E54: 4215
B55: ESCUELA NUEVA | C55: 2315 | E55: 2315
B56: ETNOEDUCACIÓN | C56: 62 | E56: 62
B57: POST PRIMARIA | C57: 283 | E57: 283
B58: PROGRAMA PARA JÓVENES EN EXTRAEDAD Y ADULTOS | C58: 42 | D58: 340 | E58: 382
A59: SAN JOSÉ DEL FRAGUA | B59: EDUCACIÓN TRADICIONAL | C59: 487 | D59: 1693 | E59: 2180
B60: ESCUELA NUEVA | C60: 768 | E60: 768
B61: ETNOEDUCACIÓN | C61: 219 | E61: 219
B62: POST PRIMARIA | C62: 262 | E62: 262
B63: PROGRAMA PARA JÓVENES EN EXTRAEDAD Y ADULTOS | C63: 223 | D63: 177 | E63: 400
B64: TELESECUNDARIA | C64: 67 | E64: 67
A65: SAN VICENTE DEL CAGUÁN | B65: ACELERACIÓN DEL APRENDIZAJE | D65: 42 | E65: 42
B66: EDUCACIÓN TRADICIONAL | C66: 998 | D66: 5735 | E66: 6733
B67: ESCUELA NUEVA | C67: 4467 | E67: 4467
B68: ETNOEDUCACIÓN | C68: 157 | E68: 157
B69: MEDIA RURAL | C69: 22 | E69: 22
B70: POST PRIMARIA | C70: 1480 | E70: 1480
B71: PROGRAMA PARA JÓVENES EN EXTRAEDAD Y ADULTOS | C71: 213 | D71: 351 | E71: 564
B72: SER | D72: 42 | E72: 42
B73: TELESECUNDARIA | C73: 240 | E73: 240
A74: SOLANO | B74: EDUCACIÓN TRADICIONAL | C74: 65 | D74: 723 | E74: 788
B75: ESCUELA NUEVA | C75: 1030 | E75: 1030
B76: ETNOEDUCACIÓN | C76: 463 | E76: 463
B77: POST PRIMARIA | C77: 392 | E77: 392
B78: PROGRAMA PARA JÓVENES EN EXTRAEDAD Y ADULTOS | C78: 189 | D78: 106 | E78: 295
A79: SOLITA | B79: EDUCACIÓN TRADICIONAL | C79: 28 | D79: 1005 | E79: 1033
B80: ESCUELA NUEVA | C80: 447 | E80: 447
B81: MEDIA RURAL | C81: 30 | E81: 30
B82: POST PRIMARIA | C82: 278 | E82: 278
B83: PROGRAMA PARA JÓVENES EN EXTRAEDAD Y ADULTOS | D83: 91 | E83: 91
A84: VALPARAÍSO | B84: EDUCACIÓN TRADICIONAL | C84: 15 | D84: 559 | E84: 574
B85: ESCUELA NUEVA | C85: 643 | E85: 643
B86: MEDIA RURAL | C86: 50 | E86: 50
B87: POST PRIMARIA | C87: 311 | E87: 311
B88: PREESCOLAR ESCOLARIZADO_ | D88: 17 | E88: 17
B89: PROGRAMA PARA JÓVENES EN EXTRAEDAD Y ADULTOS | C89: 32 | D89: 58 | E89: 90
A90: Total general | C90: 32927 | D90: 28694 | E90: 61621

Sheet 2.2
A1: MATRICULA OFCIAL Y PRIVADA POR MUNICIPIO, MODELO EDUCATIVO, GENERO Y ZONA
C3: R | E3: Total R | F3: U | H3: Total U | I3: Total general
A4: MUNICIPIO | B4: MODELO_EDUCATIVO | C4: FEMENINO | D4: MASCULINO | F4: FEMENINO | G4: MASCULINO
A5: ALBANIA | B5: EDUCACIÓN TRADICIONAL | F5: 308 | G5: 296 | H5: 604 | I5: 604
B6: ESCUELA NUEVA | C6: 138 | D6: 161 | E6: 299 | I6: 299
B7: MEDIA RURAL | C7: 14 | D7: 13 | E7: 27 | I7: 27
B8: POST PRIMARIA | C8: 63 | D8: 62 | E8: 125 | I8: 125
A9: BELÉN DE LOS ANDAQUIES | B9: EDUCACIÓN TRADICIONAL | C9: 6 | D9: 16 | E9: 22 | F9: 772 | G9: 772 | H9: 1544 | I9: 1566
B10: ESCUELA NUEVA | C10: 315 | D10: 337 | E10: 652 | I10: 652
B11: MEDIA RURAL | C11: 9 | D11: 11 | E11: 20 | I11: 20
B12: POST PRIMARIA | C12: 108 | D12: 118 | E12: 226 | I12: 226
B13: PREESCOLAR NO ESCOLARIZADO/SEMIESCOLARIZADO | C13: 7 | D13: 4 | E13: 11 | I13: 11
B14: PROGRAMA PARA JÓVENES EN EXTRAEDAD Y ADULTOS | C14: 22 | D14: 24 | E14: 46 | F14: 95 | G14: 59 | H14: 154 | I14: 200
A15: CARTAGENA DEL CHAIRÁ | B15: ACELERACIÓN DEL APRENDIZAJE | F15: 13 | G15: 13 | H15: 26 | I15: 26
B16: EDUCACIÓN TRADICIONAL | C16: 381 | D16: 383 | E16: 764 | F16: 1536 | G16: 1368 | H16: 2904 | I16: 3668
B17: ESCUELA NUEVA | C17: 1440 | D17: 1828 | E17: 3268 | I17: 3268
B18: POST PRIMARIA | C18: 15 | D18: 32 | E18: 47 | I18: 47
B19: PROGRAMA PARA JÓVENES EN EXTRAEDAD Y ADULTOS | C19: 10 | D19: 10 | E19: 20 | F19: 212 | G19: 134 | H19: 346 | I19: 366
B20: TELESECUNDARIA | C20: 408 | D20: 445 | E20: 853 | I20: 853
A21: CURILLO | B21: ACELERACIÓN DEL APRENDIZAJE | F21: 6 | G21: 16 | H21: 22 | I21: 22
B22: EDUCACIÓN TRADICIONAL | C22: 37 | D22: 29 | E22: 66 | F22: 657 | G22: 761 | H22: 1418 | I22: 1484
B23: ESCUELA NUEVA | C23: 214 | D23: 249 | E23: 463 | I23: 463
B24: MEDIA RURAL | C24: 4 | D24: 5 | E24: 9 | I24: 9
B25: POST PRIMARIA | C25: 70 | D25: 95 | E25: 165 | I25: 165
B26: PROGRAMA PARA JÓVENES EN EXTRAEDAD Y ADULTOS | F26: 101 | G26: 55 | H26: 156 | I26: 156
A27: EL DONCELLO | B27: EDUCACIÓN TRADICIONAL | C27: 123 | D27: 150 | E27: 273 | F27: 1713 | G27: 1639 | H27: 3352 | I27: 3625
B28: ESCUELA NUEVA | C28: 299 | D28: 388 | E28: 687 | F28: 30 | G28: 50 | H28: 80 | I28: 767
B29: MEDIA RURAL | C29: 13 | D29: 5 | E29: 18 | I29: 18
B30: POST PRIMARIA | C30: 55 | D30: 74 | E30: 129 | I30: 129
B31: PROGRAMA PARA JÓVENES EN EXTRAEDAD Y ADULTOS | C31: 17 | D31: 5 | E31: 22 | F31: 231 | G31: 225 | H31: 456 | I31: 478
A32: EL PAUJIL | B32: EDUCACIÓN TRADICIONAL | C32: 345 | D32: 373 | E32: 718 | F32: 667 | G32: 642 | H32: 1309 | I32: 2027
B33: ESCUELA NUEVA | C33: 366 | D33: 440 | E33: 806 | I33: 806
B34: MEDIA RURAL | C34: 3 | D34: 4 | E34: 7 | I34: 7
B35: POST PRIMARIA | C35: 156 | D35: 165 | E35: 321 | I35: 321
B36: PROGRAMA PARA JÓVENES EN EXTRAEDAD Y ADULTOS | C36: 103 | D36: 99 | E36: 202 | F36: 80 | G36: 63 | H36: 143 | I36: 345
A37: LA MONTAÑITA | B37: EDUCACIÓN TRADICIONAL | C37: 324 | D37: 369 | E37: 693 | F37: 341 | G37: 327 | H37: 668 | I37: 1361
B38: ESCUELA NUEVA | C38: 928 | D38: 1136 | E38: 2064 | I38: 2064
B39: MEDIA RURAL | C39: 14 | D39: 22 | E39: 36 | I39: 36
B40: POST PRIMARIA | C40: 181 | D40: 164 | E40: 345 | I40: 345
B41: PROGRAMA PARA JÓVENES EN EXTRAEDAD Y ADULTOS | C41: 102 | D41: 88 | E41: 190 | F41: 41 | G41: 50 | H41: 91 | I41: 281
A42: MILÁN | B42: EDUCACIÓN TRADICIONAL | C42: 243 | D42: 264 | E42: 507 | F42: 160 | G42: 172 | H42: 332 | I42: 839
B43: ESCUELA NUEVA | C43: 341 | D43: 450 | E43: 791 | I43: 791
B44: ETNOEDUCACIÓN | C44: 226 | D44: 265 | E44: 491 | I44: 491
B45: MEDIA RURAL | C45: 15 | D45: 22 | E45: 37 | I45: 37
B46: POST PRIMARIA | C46: 76 | D46: 88 | E46: 164 | I46: 164
B47: PROGRAMA PARA JÓVENES EN EXTRAEDAD Y ADULTOS | C47: 59 | D47: 37 | E47: 96 | I47: 96
A48: MORELIA | B48: EDUCACIÓN TRADICIONAL | F48: 245 | G48: 230 | H48: 475 | I48: 475
B49: ESCUELA NUEVA | C49: 103 | D49: 92 | E49: 195 | I49: 195
B50: POST PRIMARIA | C50: 32 | D50: 39 | E50: 71 | I50: 71
B51: PROGRAMA PARA JÓVENES EN EXTRAEDAD Y ADULTOS | F51: 85 | G51: 61 | H51: 146 | I51: 146
A52: PUERTO RICO | B52: ACELERACIÓN DEL APRENDIZAJE | F52: 5 | G52: 12 | H52: 17 | I52: 17
B53: EDUCACIÓN TRADICIONAL | C53: 355 | D53: 348 | E53: 703 | F53: 1783 | G53: 1729 | H53: 3512 | I53: 4215
B54: ESCUELA NUEVA | C54: 1044 | D54: 1271 | E54: 2315 | I54: 2315
B55: ETNOEDUCACIÓN | C55: 28 | D55: 34 | E55: 62 | I55: 62
B56: POST PRIMARIA | C56: 138 | D56: 145 | E56: 283 | I56: 283
B57: PROGRAMA PARA JÓVENES EN EXTRAEDAD Y ADULTOS | C57: 26 | D57: 16 | E57: 42 | F57: 177 | G57: 163 | H57: 340 | I57: 382
A58: SAN JOSÉ DEL FRAGUA | B58: EDUCACIÓN TRADICIONAL | C58: 248 | D58: 239 | E58: 487 | F58: 863 | G58: 830 | H58: 1693 | I58: 2180
B59: ESCUELA NUEVA | C59: 358 | D59: 409 | E59: 767 | I59: 767
B60: ETNOEDUCACIÓN | C60: 96 | D60: 123 | E60: 219 | I60: 219
B61: POST PRIMARIA | C61: 126 | D61: 136 | E61: 262 | I61: 262
B62: PROGRAMA PARA JÓVENES EN EXTRAEDAD Y ADULTOS | C62: 120 | D62: 103 | E62: 223 | F62: 106 | G62: 71 | H62: 177 | I62: 400
B63: TELESECUNDARIA | C63: 33 | D63: 34 | E63: 67 | I63: 67
A64: SAN VICENTE DEL CAGUÁN | B64: ACELERACIÓN DEL APRENDIZAJE | F64: 17 | G64: 25 | H64: 42 | I64: 42
B65: EDUCACIÓN TRADICIONAL | C65: 482 | D65: 516 | E65: 998 | F65: 2930 | G65: 2805 | H65: 5735 | I65: 6733
B66: ESCUELA NUEVA | C66: 2116 | D66: 2351 | E66: 4467 | I66: 4467
B67: ETNOEDUCACIÓN | C67: 62 | D67: 95 | E67: 157 | I67: 157
B68: MEDIA RURAL | C68: 8 | D68: 14 | E68: 22 | I68: 22
B69: POST PRIMARIA | C69: 713 | D69: 767 | E69: 1480 | I69: 1480
B70: PROGRAMA PARA JÓVENES EN EXTRAEDAD Y ADULTOS | C70: 98 | D70: 115 | E70: 213 | F70: 205 | G70: 146 | H70: 351 | I70: 564
B71: SER | F71: 21 | G71: 21 | H71: 42 | I71: 42
B72: TELESECUNDARIA | C72: 101 | D72: 139 | E72: 240 | I72: 240
A73: SOLANO | B73: EDUCACIÓN TRADICIONAL | C73: 30 | D73: 35 | E73: 65 | F73: 370 | G73: 353 | H73: 723 | I73: 788
B74: ESCUELA NUEVA | C74: 477 | D74: 553 | E74: 1030 | I74: 1030
B75: ETNOEDUCACIÓN | C75: 202 | D75: 261 | E75: 463 | I75: 463
B76: POST PRIMARIA | C76: 178 | D76: 214 | E76: 392 | I76: 392
B77: PROGRAMA PARA JÓVENES EN EXTRAEDAD Y ADULTOS | C77: 105 | D77: 84 | E77: 189 | F77: 56 | G77: 50 | H77: 106 | I77: 295
A78: SOLITA | B78: EDUCACIÓN TRADICIONAL | C78: 14 | D78: 14 | E78: 28 | F78: 515 | G78: 490 | H78: 1005 | I78: 1033
B79: ESCUELA NUEVA | C79: 221 | D79: 226 | E79: 447 | I79: 447
B80: MEDIA RURAL | C80: 17 | D80: 13 | E80: 30 | I80: 30
B81: POST PRIMARIA | C81: 126 | D81: 152 | E81: 278 | I81: 278
B82: PROGRAMA PARA JÓVENES EN EXTRAEDAD Y ADULTOS | F82: 63 | G82: 28 | H82: 91 | I82: 91
A83: VALPARAÍSO | B83: EDUCACIÓN TRADICIONAL | C83: 11 | D83: 4 | E83: 15 | F83: 292 | G83: 267 | H83: 559 | I83: 574
B84: ESCUELA NUEVA | C84: 292 | D84: 351 | E84: 643 | I84: 643
B85: MEDIA RURAL | C85: 25 | D85: 25 | E85: 50 | I85: 50
B86: POST PRIMARIA | C86: 143 | D86: 168 | E86: 311 | I86: 311
B87: PREESCOLAR ESCOLARIZADO_ | F87: 7 | G87: 10 | H87: 17 | I87: 17
B88: PROGRAMA PARA JÓVENES EN EXTRAEDAD Y ADULTOS | C88: 10 | D88: 22 | E88: 32 | F88: 34 | G88: 24 | H88: 58 | I88: 90
A89: Total general | C89: 15388 | D89: 17538 | E89: 32926 | F89: 14737 | G89: 13957 | H89: 28694 | I89: 61620

Sheet 3
B1: MATRICULA OFICIAL Y PRIVADA POR MUNICIPIO Y EDAD EN GRUPOS ETAREOS
B3: MUNICIPIO | C3: EDAD | I3: TOTAL GENERAL
C4: (3 A 4) | D4: (5 A) | E4: (6 A 10) | F4: (11 A 14) | G4: (15 A 17) | H4: (18 A 73)
B5: ALBANIA | C5: 42 | D5: 53 | E5: 357 | F5: 410 | G5: 169 | H5: 24 | I5: =SUM(C5:H5) -> 1055
B6: BELÉN DE LOS ANDAQUIES | C6: 68 | D6: 168 | E6: 1010 | F6: 784 | G6: 459 | H6: 186 | I6: =SUM(C6:H6) -> 2675
B7: CARTAGENA DEL CHAIRÁ | C7: 201 | D7: 556 | E7: 3532 | F7: 2600 | G7: 1014 | H7: 325 | I7: 8228
B8: CURILLO | C8: 27 | D8: 152 | E8: 856 | F8: 720 | G8: 388 | H8: 156 | I8: 2299
B9: EL DONCELLO | C9: 124 | D9: 297 | E9: 1737 | F9: 1655 | G9: 877 | H9: 327 | I9: 5017
B10: EL PAUJIL | C10: 33 | D10: 205 | E10: 1340 | F10: 1151 | G10: 544 | H10: 233 | I10: 3506
B11: LA MONTAÑITA | C11: 92 | D11: 253 | E11: 1625 | F11: 1316 | G11: 534 | H11: 267 | I11: 4087
B12: MILÁN | C12: 50 | D12: 181 | E12: 974 | F12: 725 | G12: 324 | H12: 164 | I12: 2418
B13: MORELIA | C13: 17 | D13: 41 | E13: 316 | F13: 286 | G13: 123 | H13: 104 | I13: 887
B14: PUERTO RICO | C14: 210 | D14: 476 | E14: 2830 | F14: 2319 | G14: 1135 | H14: 304 | I14: 7274
B15: SAN JOSÉ DEL FRAGUA | C15: 86 | D15: 243 | E15: 1341 | F15: 1240 | G15: 667 | H15: 319 | I15: 3896
B16: SAN VICENTE DEL CAGUÁN | C16: 314 | D16: 902 | E16: 5552 | F16: 4503 | G16: 1913 | H16: 563 | I16: 13747
B17: SOLANO | C17: 54 | D17: 143 | E17: 1146 | F17: 879 | G17: 439 | H17: 307 | I17: 2968
B18: SOLITA | C18: 46 | D18: 119 | E18: 692 | F18: 631 | G18: 293 | H18: 98 | I18: 1879
B19: VALPARAÍSO | C19: 39 | D19: 103 | E19: 665 | F19: 542 | G19: 257 | H19: 79 | I19: 1685
B20: TOTAL GENERAL | C20: 1403 | D20: 3892 | E20: 23973 | F20: 19761 | G20: 9136 | H20: 3456 | I20: 61621

Sheet 3.1
A1: MATRICULA OFICIAL Y PRIVADA POR MUNICIPIO Y EDAD
A3: MUNICIPIO | B3: 3 | C3: 4 | D3: 3 A 4 | E3: 5 | F3: 5A | G3: 6 | H3: 7 | I3: 8 | J3: 9 | K3: 10 | L3: 6 A 10 | M3: 11 | N3: 12 | O3: 13 | P3: 14 | Q3: 11 A 14 | R3: 15 | S3: 16 | T3: 17 | U3: 15 A 17 | V3: 18 | W3: 19 | X3: 20 | Y3: 21 | Z3: 22 | AA3: 23 | AB3: 24 | AC3: 25 | AD3: 26 | AE3: 27 | AF3: 28 | AG3: 29 | AH3: 30 | AI3: 31 | AJ3: 32 | AK3: 33 | AL3: 34 | AM3: 35 | AN3: 36 | AO3: 37 | AP3: 38 | AQ3: 39 | AR3: 40 | AS3: 41 | AT3: 42 | AU3: 43 | AV3: 44 | AW3: 45 | AX3: 46 | AY3: 47 | AZ3: 48 | BA3: 49 | BB3: 50 | BC3: 51 | BD3: 52 | BE3: 53 | BF3: 54 | BG3: 55 | BH3: 56 | BI3: 57 | BJ3: 58 | BK3: 59 | BL3: 60 | BM3: 61 | BN3: 63 | BO3: 64 | BP3: 65 | BQ3: 68 | BR3: 70 | BS3: 72 | BT3: 73 | BU3: 18 A 73 | BV3: Total general
A4: ALBANIA | B4: 3 | C4: 39 | D4: =SUM(B4:C4) -> 42 | E4: 53 | F4: 53 | G4: 65 | H4: 75 | I4: 61 | J4: 77 | K4: 79 | L4: =SUM(G4:K4) -> 357 | M4: 81 | N4: 115 | O4: 87 | P4: 127 | Q4: =SUM(M4:P4) -> 410 | R4: 76 | S4: 67 | T4: 26 | U4: =SUM(R4:T4) -> 169 | V4: 13 | W4: 6 | X4: 3 | Z4: 1 | AA4: 1 | BU4: =SUM(V4:BT4) -> 24 | BV4: 1055
A5: BELÉN DE LOS ANDAQUIES | C5: 68 | D5: =SUM(B5:C5) -> 68 | E5: 168 | F5: 168 | G5: 181 | H5: 196 | I5: 205 | J5: 215 | K5: 213 | L5: =SUM(G5:K5) -> 1010 | M5: 208 | N5: 210 | O5: 194 | P5: 172 | Q5: =SUM(M5:P5) -> 784 | R5: 213 | S5: 158 | T5: 88 | U5: =SUM(R5:T5) -> 459 | V5: 63 | W5: 26 | X5: 8 | Y5: 10 | Z5: 4 | AA5: 3 | AB5: 5 | AC5: 6 | AD5: 3 | AE5: 8 | AF5: 8 | AG5: 3 | AH5: 4 | AI5: 9 | AJ5: 4 | AK5: 1 | AL5: 4 | AM5: 1 | AN5: 2 | AO5: 1 | AP5: 2 | AR5: 2 | AS5: 1 | AU5: 2 | AX5: 1 | AZ5: 1 | BC5: 1 | BE5: 1 | BH5: 1 | BJ5: 1 | BU5: =SUM(V5:BT5) -> 186 | BV5: 2675
A6: CARTAGENA DEL CHAIRÁ | B6: 5 | C6: 196 | D6: 201 | E6: 556 | F6: 556 | G6: 677 | H6: 684 | I6: 731 | J6: 701 | K6: 739 | L6: 3532 | M6: 737 | N6: 737 | O6: 647 | P6: 479 | Q6: 2600 | R6: 420 | S6: 369 | T6: 225 | U6: 1014 | V6: 131 | W6: 50 | X6: 33 | Y6: 24 | Z6: 11 | AA6: 6 | AB6: 6 | AC6: 7 | AD6: 2 | AE6: 2 | AF6: 5 | AG6: 8 | AH6: 2 | AI6: 2 | AJ6: 5 | AK6: 4 | AL6: 5 | AM6: 2 | AN6: 2 | AP6: 2 | AQ6: 3 | AS6: 3 | AT6: 3 | AU6: 1 | AX6: 1 | AY6: 1 | BA6: 1 | BD6: 1 | BK6: 1 | BO6: 1 | BU6: 325 | BV6: 8228
A7: CURILLO | B7: 2 | C7: 25 | D7: 27 | E7: 152 | F7: 152 | G7: 158 | H7: 192 | I7: 174 | J7: 169 | K7: 163 | L7: 856 | M7: 168 | N7: 181 | O7: 199 | P7: 172 | Q7: 720 | R7: 167 | S7: 137 | T7: 84 | U7: 388 | V7: 56 | W7: 23 | X7: 18 | Y7: 7 | Z7: 4 | AA7: 4 | AB7: 6 | AC7: 6 | AD7: 3 | AE7: 5 | AF7: 2 | AG7: 2 | AH7: 4 | AI7: 3 | AJ7: 1 | AK7: 1 | AL7: 3 | AM7: 2 | AP7: 1 | AQ7: 2 | AR7: 1 | BA7: 1 | BO7: 1 | BU7: 156 | BV7: 2299
A8: EL DONCELLO | B8: 18 | C8: 106 | D8: 124 | E8: 297 | F8: 297 | G8: 341 | H8: 363 | I8: 332 | J8: 333 | K8: 368 | L8: 1737 | M8: 393 | N8: 439 | O8: 451 | P8: 372 | Q8: 1655 | R8: 364 | S8: 296 | T8: 217 | U8: 877 | V8: 100 | W8: 46 | X8: 29 | Y8: 22 | Z8: 7 | AA8: 17 | AB8: 15 | AC8: 8 | AD8: 7 | AE8: 7 | AF8: 12 | AG8: 8 | AH8: 7 | AI8: 5 | AJ8: 2 | AK8: 8 | AL8: 3 | AM8: 5 | AN8: 1 | AO8: 1 | AP8: 2 | AQ8: 2 | AR8: 1 | AS8: 2 | AT8: 2 | AX8: 3 | AY8: 1 | AZ8: 1 | BA8: 1 | BE8: 2 | BU8: 327 | BV8: 5017
A9: EL PAUJIL | B9: 1 | C9: 32 | D9: 33 | E9: 205 | F9: 205 | G9: 231 | H9: 321 | I9: 274 | J9: 242 | K9: 272 | L9: 1340 | M9: 322 | N9: 289 | O9: 260 | P9: 280 | Q9: 1151 | R9: 220 | S9: 186 | T9: 138 | U9: 544 | V9: 63 | W9: 35 | X9: 17 | Y9: 15 | Z9: 8 | AA9: 8 | AB9: 5 | AC9: 7 | AD9: 5 | AE9: 4 | AF9: 3 | AG9: 7 | AH9: 5 | AI9: 4 | AJ9: 3 | AK9: 3 | AL9: 7 | AM9: 3 | AN9: 4 | AO9: 5 | AP9: 2 | AQ9: 4 | AR9: 2 | AS9: 3 | AT9: 2 | AU9: 1 | AW9: 1 | BB9: 1 | BC9: 1 | BE9: 1 | BG9: 1 | BH9: 1 | BI9: 1 | BK9: 1 | BU9: 233 | BV9: 3506
A10: LA MONTAÑITA | B10: 2 | C10: 90 | D10: 92 | E10: 253 | F10: 253 | G10: 308 | H10: 329 | I10: 309 | J10: 326 | K10: 353 | L10: 1625 | M10: 346 | N10: 390 | O10: 325 | P10: 255 | Q10: 1316 | R10: 239 | S10: 182 | T10: 113 | U10: 534 | V10: 76 | W10: 30 | X10: 29 | Y10: 14 | Z10: 6 | AA10: 12 | AB10: 8 | AC10: 12 | AD10: 2 | AE10: 2 | AF10: 5 | AG10: 10 | AH10: 4 | AI10: 6 | AJ10: 3 | AK10: 5 | AL10: 1 | AM10: 8 | AN10: 6 | AO10: 3 | AP10: 4 | AQ10: 4 | AR10: 2 | AS10: 2 | AT10: 1 | AU10: 1 | AV10: 3 | AW10: 2 | AX10: 1 | AY10: 1 | AZ10: 2 | BH10: 1 | BM10: 1 | BU10: 267 | BV10: 4087
A11: MILÁN | B11: 1 | C11: 49 | D11: 50 | E11: 181 | F11: 181 | G11: 187 | H11: 190 | I11: 194 | J11: 184 | K11: 219 | L11: 974 | M11: 187 | N11: 187 | O11: 184 | P11: 167 | Q11: 725 | R11: 137 | S11: 127 | T11: 60 | U11: 324 | V11: 46 | W11: 27 | X11: 16 | Y11: 12 | Z11: 5 | AA11: 4 | AB11: 6 | AC11: 4 | AD11: 1 | AE11: 4 | AF11: 2 | AG11: 1 | AH11: 1 | AI11: 2 | AJ11: 4 | AK11: 1 | AL11: 2 | AM11: 1 | AN11: 2 | AO11: 2 | AP11: 4 | AQ11: 1 | AR11: 4 | AS11: 2 | AU11: 2 | AY11: 1 | AZ11: 2 | BB11: 1 | BE11: 1 | BF11: 1 | BH11: 1 | BO11: 1 | BU11: 164 | BV11: 2418
A12: MORELIA | B12: 1 | C12: 16 | D12: 17 | E12: 41 | F12: 41 | G12: 69 | H12: 49 | I12: 45 | J12: 68 | K12: 85 | L12: 316 | M12: 79 | N12: 80 | O12: 66 | P12: 61 | Q12: 286 | R12: 63 | S12: 37 | T12: 23 | U12: 123 | V12: 18 | W12: 11 | X12: 8 | Y12: 4 | Z12: 4 | AA12: 4 | AB12: 2 | AC12: 5 | AD12: 2 | AF12: 4 | AG12: 1 | AH12: 4 | AI12: 2 | AJ12: 4 | AK12: 2 | AL12: 4 | AN12: 3 | AP12: 1 | AQ12: 1 | AR12: 3 | AS12: 1 | AT12: 1 | AU12: 2 | AW12: 1 | AX12: 2 | AY12: 2 | AZ12: 1 | BA12: 1 | BB12: 1 | BC12: 2 | BD12: 1 | BE12: 1 | BN12: 1 | BU12: 104 | BV12: 887
A13: PUERTO RICO | B13: 11 | C13: 199 | D13: 210 | E13: 476 | F13: 476 | G13: 522 | H13: 573 | I13: 562 | J13: 508 | K13: 665 | L13: 2830 | M13: 598 | N13: 650 | O13: 555 | P13: 516 | Q13: 2319 | R13: 483 | S13: 400 | T13: 252 | U13: 1135 | V13: 130 | W13: 59 | X13: 33 | Y13: 14 | Z13: 8 | AA13: 8 | AB13: 8 | AC13: 9 | AD13: 7 | AE13: 3 | AF13: 2 | AG13: 5 | AH13: 5 | AI13: 2 | AK13: 1 | AM13: 2 | AP13: 1 | AQ13: 2 | AU13: 2 | AV13: 1 | BD13: 1 | BL13: 1 | BU13: 304 | BV13: 7274
A14: SAN JOSÉ DEL FRAGUA | B14: 1 | C14: 85 | D14: 86 | E14: 243 | F14: 243 | G14: 205 | H14: 291 | I14: 269 | J14: 278 | K14: 298 | L14: 1341 | M14: 309 | N14: 313 | O14: 321 | P14: 297 | Q14: 1240 | R14: 279 | S14: 235 | T14: 153 | U14: 667 | V14: 92 | W14: 50 | X14: 18 | Y14: 20 | Z14: 12 | AA14: 12 | AB14: 10 | AC14: 15 | AD14: 6 | AE14: 9 | AF14: 8 | AG14: 11 | AH14: 6 | AI14: 5 | AJ14: 5 | AK14: 2 | AL14: 5 | AM14: 3 | AN14: 4 | AO14: 5 | AP14: 3 | AS14: 4 | AT14: 1 | AU14: 2 | AX14: 1 | AZ14: 1 | BA14: 3 | BE14: 3 | BG14: 2 | BK14: 1 | BU14: 319 | BV14: 3896
A15: SAN VICENTE DEL CAGUÁN | B15: 20 | C15: 294 | D15: 314 | E15: 902 | F15: 902 | G15: 1075 | H15: 1028 | I15: 1152 | J15: 1114 | K15: 1183 | L15: 5552 | M15: 1249 | N15: 1236 | O15: 1105 | P15: 913 | Q15: 4503 | R15: 851 | S15: 648 | T15: 414 | U15: 1913 | V15: 206 | W15: 113 | X15: 49 | Y15: 44 | Z15: 20 | AA15: 17 | AB15: 15 | AC15: 16 | AD15: 7 | AE15: 6 | AF15: 3 | AG15: 7 | AH15: 2 | AI15: 13 | AJ15: 3 | AK15: 3 | AL15: 3 | AM15: 7 | AN15: 7 | AO15: 2 | AP15: 1 | AR15: 4 | AS15: 1 | AT15: 1 | AU15: 2 | AV15: 2 | AX15: 2 | AY15: 1 | AZ15: 1 | BA15: 2 | BK15: 2 | BL15: 1 | BU15: 563 | BV15: 13747
A16: SOLANO | B16: 3 | C16: 51 | D16: 54 | E16: 143 | F16: 143 | G16: 202 | H16: 209 | I16: 252 | J16: 207 | K16: 276 | L16: 1146 | M16: 249 | N16: 242 | O16: 211 | P16: 177 | Q16: 879 | R16: 186 | S16: 165 | T16: 88 | U16: 439 | V16: 66 | W16: 30 | X16: 19 | Y16: 21 | Z16: 13 | AA16: 12 | AB16: 7 | AC16: 7 | AD16: 11 | AE16: 8 | AF16: 6 | AG16: 5 | AH16: 1 | AI16: 8 | AJ16: 9 | AK16: 7 | AL16: 7 | AM16: 6 | AN16: 7 | AO16: 3 | AP16: 3 | AQ16: 2 | AR16: 6 | AS16: 1 | AT16: 7 | AU16: 4 | AV16: 4 | AX16: 2 | AY16: 3 | AZ16: 3 | BA16: 3 | BB16: 3 | BD16: 1 | BE16: 2 | BH16: 1 | BJ16: 1 | BK16: 2 | BL16: 1 | BP16: 1 | BQ16: 1 | BR16: 1 | BS16: 1 | BT16: 1 | BU16: 307 | BV16: 2968
A17: SOLITA | C17: 46 | D17: 46 | E17: 119 | F17: 119 | G17: 142 | H17: 155 | I17: 143 | J17: 141 | K17: 111 | L17: 692 | M17: 153 | N17: 168 | O17: 173 | P17: 137 | Q17: 631 | R17: 141 | S17: 93 | T17: 59 | U17: 293 | V17: 39 | W17: 17 | X17: 9 | Y17: 4 | Z17: 5 | AA17: 4 | AB17: 2 | AC17: 1 | AD17: 3 | AE17: 2 | AF17: 1 | AG17: 1 | AH17: 3 | AJ17: 2 | AK17: 2 | AM17: 1 | AR17: 1 | AU17: 1 | BU17: 98 | BV17: 1879
A18: VALPARAÍSO | C18: 39 | D18: 39 | E18: 103 | F18: 103 | G18: 129 | H18: 136 | I18: 150 | J18: 112 | K18: 138 | L18: 665 | M18: 131 | N18: 147 | O18: 136 | P18: 128 | Q18: 542 | R18: 104 | S18: 98 | T18: 55 | U18: 257 | V18: 28 | W18: 22 | X18: 7 | Y18: 4 | Z18: 3 | AA18: 1 | AC18: 1 | AD18: 1 | AE18: 1 | AF18: 1 | AG18: 3 | AI18: 1 | AL18: 1 | AM18: 1 | AO18: 1 | AQ18: 1 | AU18: 1 | BB18: 1 | BU18: 79 | BV18: 1685
A19: Total general | B19: 68 | C19: 1335 | D19: 1403 | E19: 3892 | F19: 3892 | G19: 4492 | H19: 4791 | I19: 4853 | J19: 4675 | K19: 5162 | L19: 23973 | M19: 5210 | N19: 5384 | O19: 4914 | P19: 4253 | Q19: 19761 | R19: 3943 | S19: 3198 | T19: 1995 | U19: 9136 | V19: 1127 | W19: 545 | X19: 296 | Y19: 215 | Z19: 111 | AA19: 113 | AB19: 95 | AC19: 104 | AD19: 60 | AE19: 61 | AF19: 62 | AG19: 72 | AH19: 48 | AI19: 62 | AJ19: 45 | AK19: 40 | AL19: 45 | AM19: 42 | AN19: 38 | AO19: 23 | AP19: 26 | AQ19: 22 | AR19: 26 | AS19: 20 | AT19: 18 | AU19: 21 | AV19: 10 | AW19: 4 | AX19: 13 | AY19: 10 | AZ19: 12 | BA19: 12 | BB19: 7 | BC19: 4 | BD19: 4 | BE19: 11 | BF19: 1 | BG19: 3 | BH19: 5 | BI19: 1 | BJ19: 2 | BK19: 7 | BL19: 3 | BM19: 1 | BN19: 1 | BO19: 3 | BP19: 1 | BQ19: 1 | BR19: 1 | BS19: 1 | BT19: 1 | BU19: 3456 | BV19: 61621

Sheet 4
A1: MATRICULA POR MUNICIPIO Y CON HECHOS VICTIMIZANTES
A3: MUNICIPIO | B3: DESVINCULADOS DE GRUPOS ARMADOS | C3: EN SITUACIÓN DE DESPLAZAMIENTO | D3: HIJOS DE ADULTOS DESMOVILIZADOS | E3: Total general
A4: ALBANIA | B4: 1 | C4: 189 | E4: 190
A5: BELÉN DE LOS ANDAQUIES | B5: 1 | C5: 714 | D5: 4 | E5: 719
A6: CARTAGENA DEL CHAIRÁ | C6: 1634 | D6: 9 | E6: 1643
A7: CURILLO | C7: 670 | D7: 1 | E7: 671
A8: EL DONCELLO | B8: 3 | C8: 577 | D8: 12 | E8: 592
A9: EL PAUJIL | B9: 1 | C9: 954 | D9: 10 | E9: 965
A10: LA MONTAÑITA | B10: 1 | C10: 608 | D10: 3 | E10: 612
A11: MILÁN | C11: 79 | D11: 4 | E11: 83
A12: MORELIA | C12: 191 | E12: 191
A13: PUERTO RICO | C13: 1210 | D13: 5 | E13: 1215
A14: SAN JOSÉ DEL FRAGUA | B14: 1 | C14: 529 | E14: 530
A15: SAN VICENTE DEL CAGUÁN | B15: 2 | C15: 1099 | D15: 9 | E15: 1110
A16: SOLANO | C16: 106 | D16: 6 | E16: 112
A17: SOLITA | B17: 2 | C17: 465 | D17: 2 | E17: 469
A18: VALPARAÍSO | B18: 1 | C18: 491 | E18: 492
A19: Total general | B19: 13 | C19: 9516 | D19: 65 | E19: 9594

Sheet 4.1
B1: MATRICULA OFICIAL POR MUNICIPIO, CON HECHOS VICTIMIZANTES, ZONA Y GENERO
B4: DESVINCULADOS DE GRUPOS ARMADOS | G4: Total DESVINCULADOS DE GRUPOS ARMADOS | H4: EN SITUACIÓN DE DESPLAZAMIENTO | N4: Total EN SITUACIÓN DE DESPLAZAMIENTO | O4: HIJOS DE ADULTOS DESMOVILIZADOS | U4: Total HIJOS DE ADULTOS DESMOVILIZADOS | V4: Total general
B5: R | D5: Total R | E5: U | F5: Total U | H5: R | J5: Total R | K5: U | M5: Total U | O5: R | Q5: Total R | R5: U | T5: Total U
A6: MUNICIPIO | B6: FEMENINO | C6: MASCULINO | E6: MASCULINO | H6: FEMENINO | I6: MASCULINO | K6: FEMENINO | L6: MASCULINO | O6: FEMENINO | P6: MASCULINO | R6: FEMENINO | S6: MASCULINO
A7: ALBANIA | C7: 1 | D7: 1 | G7: 1 | H7: 15 | I7: 18 | J7: 33 | K7: 75 | L7: 81 | M7: 156 | N7: 189 | V7: 190
A8: BELÉN DE LOS ANDAQUIES | C8: 1 | D8: 1 | G8: 1 | H8: 76 | I8: 76 | J8: 152 | K8: 272 | L8: 290 | M8: 562 | N8: 714 | O8: 1 | Q8: 1 | R8: 1 | S8: 2 | T8: 3 | U8: 4 | V8: 719
A9: CARTAGENA DEL CHAIRÁ | H9: 373 | I9: 425 | J9: 798 | K9: 472 | L9: 364 | M9: 836 | N9: 1634 | O9: 2 | P9: 4 | Q9: 6 | R9: 1 | S9: 2 | T9: 3 | U9: 9 | V9: 1643
A10: CURILLO | H10: 27 | I10: 41 | J10: 68 | K10: 291 | L10: 311 | M10: 602 | N10: 670 | O10: 1 | Q10: 1 | U10: 1 | V10: 671
A11: EL DONCELLO | E11: 3 | F11: 3 | G11: 3 | H11: 43 | I11: 39 | J11: 82 | K11: 273 | L11: 222 | M11: 495 | N11: 577 | P11: 2 | Q11: 2 | R11: 7 | S11: 3 | T11: 10 | U11: 12 | V11: 592
A12: EL PAUJIL | B12: 1 | D12: 1 | G12: 1 | H12: 204 | I12: 223 | J12: 427 | K12: 254 | L12: 273 | M12: 527 | N12: 954 | P12: 3 | Q12: 3 | R12: 1 | S12: 6 | T12: 7 | U12: 10 | V12: 965
A13: LA MONTAÑITA | C13: 1 | D13: 1 | G13: 1 | H13: 176 | I13: 186 | J13: 362 | K13: 126 | L13: 120 | M13: 246 | N13: 608 | O13: 3 | Q13: 3 | U13: 3 | V13: 612
A14: MILÁN | H14: 30 | I14: 27 | J14: 57 | K14: 14 | L14: 8 | M14: 22 | N14: 79 | O14: 2 | P14: 1 | Q14: 3 | R14: 1 | T14: 1 | U14: 4 | V14: 83
A15: MORELIA | H15: 13 | I15: 13 | J15: 26 | K15: 79 | L15: 86 | M15: 165 | N15: 191 | V15: 191
A16: PUERTO RICO | H16: 61 | I16: 84 | J16: 145 | K16: 525 | L16: 518 | M16: 1043 | N16: 1188 | O16: 1 | P16: 2 | Q16: 3 | S16: 2 | T16: 2 | U16: 5 | V16: 1193
A17: SAN JOSÉ DEL FRAGUA | C17: 1 | D17: 1 | G17: 1 | H17: 76 | I17: 78 | J17: 154 | K17: 196 | L17: 179 | M17: 375 | N17: 529 | V17: 530
A18: SAN VICENTE DEL CAGUÁN | B18: 1 | D18: 1 | E18: 1 | F18: 1 | G18: 2 | H18: 167 | I18: 205 | J18: 372 | K18: 379 | L18: 344 | M18: 723 | N18: 1095 | O18: 1 | P18: 3 | Q18: 4 | R18: 4 | S18: 1 | T18: 5 | U18: 9 | V18: 1106
A19: SOLANO | H19: 31 | I19: 40 | J19: 71 | K19: 23 | L19: 12 | M19: 35 | N19: 106 | O19: 3 | P19: 2 | Q19: 5 | S19: 1 | T19: 1 | U19: 6 | V19: 112
A20: SOLITA | C20: 1 | D20: 1 | E20: 1 | F20: 1 | G20: 2 | H20: 31 | I20: 31 | J20: 62 | K20: 221 | L20: 182 | M20: 403 | N20: 465 | O20: 1 | Q20: 1 | R20: 1 | T20: 1 | U20: 2 | V20: 469
A21: VALPARAÍSO | B21: 1 | D21: 1 | G21: 1 | H21: 75 | I21: 78 | J21: 153 | K21: 170 | L21: 168 | M21: 338 | N21: 491 | V21: 492
A22: Total general | B22: 3 | C22: 5 | D22: 8 | E22: 5 | F22: 5 | G22: 13 | H22: 1398 | I22: 1564 | J22: 2962 | K22: 3370 | L22: 3158 | M22: 6528 | N22: 9490 | O22: 15 | P22: 17 | Q22: 32 | R22: 16 | S22: 17 | T22: 33 | U22: 65 | V22: 9568

Sheet 4.2
A1: MATRICULA NO OFICIAL POR MUNICIPIO, CON HECHOS VICTIMIZANTES, ZONA Y GENERO
B4: EN SITUACIÓN DE DESPLAZAMIENTO | E4: Total EN SITUACIÓN DE DESPLAZAMIENTO | F4: Total general
B5: U | D5: Total U
A6: MUNICIPIO | B6: FEMENINO | C6: MASCULINO
A7: PUERTO RICO | B7: 13 | C7: 9 | D7: 22 | E7: 22 | F7: 22
A8: SAN VICENTE DEL CAGUÁN | B8: 3 | C8: 1 | D8: 4 | E8: 4 | F8: 4
A9: Total general | B9: 16 | C9: 10 | D9: 26 | E9: 26 | F9: 26

Sheet 4.3
A1: MATRICULA INDIGENA POR MUNICIPIO, GENERO Y ZONA
B3: R | AT3: Total R | AU3: U | CE3: Total U | CF3: Total general
B4: FEMENINO | X4: Total FEMENINO | Y4: MASCULINO | AS4: Total MASCULINO | AU4: FEMENINO | BL4: Total FEMENINO | BM4: MASCULINO | CD4: Total MASCULINO
A5: MUNICIPIO | B5: ACHAGUA | C5: COCONUCO | D5: COYAIMA-NATAGAIMA | E5: EMBERA | F5: EMBERA CATIO | G5: EMBERACHAMI | H5: GUAMBIANO | I5: INGA | J5: KAMSA | K5: KATIO | L5: KOREGUAJE | M5: LETUAMA | N5: MACAGUAJE | O5: MUINANE | P5: MURA | Q5: OCAINA | R5: OTRAS ETNIAS | S5: PAÉZ | T5: PIJAOS | U5: PIRATAPUYO | V5: TANIMUKA | W5: WITOTO | Y5: ACHAGUA | Z5: CHIMILA | AA5: EMBERA CATIO | AB5: EMBERACHAMI | AC5: GUAMBIANO | AD5: HITNÚ | AE5: INGA | AF5: KAMSA | AG5: KANKUAMO | AH5: KOREGUAJE | AI5: MACAGUAJE | AJ5: MUINANE | AK5: NONUYA | AL5: OTRAS ETNIAS | AM5: PAÉZ | AN5: PASTOS | AO5: SIKUANI | AP5: WITOTO | AQ5: YAGUA | AR5: YUCUNA | AU5: ACHAGUA | AV5: BARAZANA | AW5: BETOYE | AX5: BORA | AY5: EMBERA CATIO | AZ5: EMBERACHAMI | BA5: INGA | BB5: KOREGUAJE | BC5: MASIGUARE | BD5: MUINANE | BE5: NONUYA | BF5: OTRAS ETNIAS | BG5: PAÉZ | BH5: PUINAVE | BI5: TATUYO | BJ5: WITOTO | BK5: ZENÚ | BM5: ANDOQUE | BN5: AWA | BO5: BETOYE | BP5: CHIMILA | BQ5: CUBEO | BR5: EMBERA CATIO | BS5: EMBERACHAMI | BT5: GUAMBIANO | BU5: INGA | BV5: KOREGUAJE | BW5: MUISCA | BX5: NONUYA | BY5: OTRAS ETNIAS | BZ5: PAÉZ | CA5: PASTOS | CB5: WAYUU | CC5: WITOTO
A6: ALBANIA | D6: 1 | X6: 1 | AH6: 1 | AM6: 1 | AS6: 2 | AT6: 3 | BU6: 2 | CD6: 2 | CE6: 2 | CF6: 5
A7: BELÉN DE LOS ANDAQUIES | G7: 2 | H7: 1 | R7: 1 | S7: 1 | X7: 5 | AA7: 1 | AC7: 4 | AL7: 2 | AS7: 7 | AT7: 12 | BJ7: 1 | BL7: 1 | BT7: 1 | BU7: 1 | BY7: 1 | CD7: 3 | CE7: 4 | CF7: 16
A8: CARTAGENA DEL CHAIRÁ | F8: 1 | I8: 1 | Q8: 1 | R8: 2 | S8: 2 | U8: 1 | W8: 2 | X8: 10 | AH8: 1 | AL8: 1 | AN8: 1 | AO8: 1 | AP8: 3 | AQ8: 1 | AS8: 8 | AT8: 18 | BD8: 1 | BF8: 1 | BG8: 3 | BH8: 1 | BK8: 1 | BL8: 7 | BQ8: 1 | BU8: 1 | BY8: 1 | BZ8: 1 | CB8: 1 | CD8: 5 | CE8: 12 | CF8: 30
A9: CURILLO | Y9: 1 | AS9: 1 | AT9: 1 | AV9: 1 | AW9: 1 | BF9: 1 | BL9: 3 | BM9: 1 | BN9: 1 | BP9: 1 | CD9: 3 | CE9: 6 | CF9: 7
A10: EL DONCELLO | L10: 1 | X10: 1 | AL10: 1 | AS10: 1 | AT10: 2 | BC10: 1 | BF10: 1 | BL10: 2 | BV10: 1 | CD10: 1 | CE10: 3 | CF10: 5
A11: EL PAUJIL | B11: 1 | X11: 1 | AE11: 2 | AH11: 1 | AK11: 1 | AL11: 1 | AS11: 5 | AT11: 6 | AU11: 1 | BA11: 1 | BG11: 1 | BL11: 3 | BO11: 1 | CD11: 1 | CE11: 4 | CF11: 10
A12: LA MONTAÑITA | AL12: 1 | AS12: 1 | AT12: 1 | CF12: 1
A13: MILÁN | G13: 1 | L13: 188 | M13: 1 | S13: 1 | X13: 191 | AB13: 1 | AG13: 1 | AH13: 232 | AJ13: 1 | AP13: 2 | AS13: 237 | AT13: 428 | BB13: 1 | BG13: 1 | BL13: 2 | BV13: 1 | CD13: 1 | CE13: 3 | CF13: 431
A14: MORELIA | L14: 1 | X14: 1 | AT14: 1 | CF14: 1
A15: PUERTO RICO | P15: 1 | R15: 6 | S15: 9 | X15: 16 | AL15: 5 | AM15: 9 | AS15: 14 | AT15: 30 | BG15: 4 | BJ15: 2 | BL15: 6 | BS15: 1 | BZ15: 5 | CD15: 6 | CE15: 12 | CF15: 42
A16: SAN JOSÉ DEL FRAGUA | E16: 1 | G16: 4 | H16: 11 | I16: 43 | J16: 1 | R16: 2 | S16: 5 | T16: 1 | W16: 1 | X16: 69 | Z16: 1 | AB16: 6 | AC16: 7 | AD16: 1 | AE16: 46 | AF16: 1 | AH16: 2 | AL16: 6 | AM16: 6 | AN16: 1 | AP16: 4 | AS16: 81 | AT16: 150 | AZ16: 1 | BE16: 1 | BG16: 1 | BI16: 1 | BL16: 4 | BN16: 1 | BU16: 2 | BY16: 3 | BZ16: 1 | CA16: 1 | CD16: 8 | CE16: 12 | CF16: 162
A17: SAN VICENTE DEL CAGUÁN | B17: 1 | C17: 1 | F17: 6 | G17: 6 | K17: 2 | Q17: 1 | R17: 3 | S17: 56 | T17: 1 | U17: 1 | X17: 78 | AA17: 17 | AB17: 8 | AL17: 1 | AM17: 65 | AS17: 91 | AT17: 169 | AY17: 1 | BF17: 1 | BG17: 7 | BL17: 9 | BR17: 2 | BS17: 1 | BW17: 1 | BX17: 1 | BY17: 1 | BZ17: 5 | CD17: 11 | CE17: 20 | CF17: 189
A18: SOLANO | I18: 2 | L18: 62 | N18: 1 | O18: 3 | R18: 2 | S18: 4 | V18: 1 | W18: 99 | X18: 174 | AD18: 1 | AE18: 4 | AH18: 74 | AI18: 1 | AJ18: 7 | AL18: 2 | AM18: 4 | AP18: 101 | AR18: 5 | AS18: 199 | AT18: 373 | AX18: 1 | BB18: 11 | BG18: 2 | BJ18: 18 | BL18: 32 | BV18: 7 | CC18: 7 | CD18: 14 | CE18: 46 | CF18: 419
A19: SOLITA | I19: 5 | S19: 1 | W19: 1 | X19: 7 | Y19: 1 | AE19: 6 | AK19: 1 | AS19: 8 | AT19: 15 | BA19: 1 | BF19: 1 | BG19: 6 | BJ19: 1 | BL19: 9 | BZ19: 3 | CC19: 1 | CD19: 4 | CE19: 13 | CF19: 28
A20: VALPARAÍSO | AJ20: 1 | AN20: 1 | AS20: 2 | AT20: 2 | CF20: 2
A21: Total general | B21: 2 | C21: 1 | D21: 1 | E21: 1 | F21: 7 | G21: 13 | H21: 12 | I21: 51 | J21: 1 | K21: 2 | L21: 252 | M21: 1 | N21: 1 | O21: 3 | P21: 1 | Q21: 2 | R21: 16 | S21: 79 | T21: 2 | U21: 2 | V21: 1 | W21: 103 | X21: 554 | Y21: 2 | Z21: 1 | AA21: 18 | AB21: 15 | AC21: 11 | AD21: 2 | AE21: 58 | AF21: 1 | AG21: 1 | AH21: 311 | AI21: 1 | AJ21: 9 | AK21: 2 | AL21: 20 | AM21: 85 | AN21: 3 | AO21: 1 | AP21: 110 | AQ21: 1 | AR21: 5 | AS21: 657 | AT21: 1211 | AU21: 1 | AV21: 1 | AW21: 1 | AX21: 1 | AY21: 1 | AZ21: 1 | BA21: 2 | BB21: 12 | BC21: 1 | BD21: 1 | BE21: 1 | BF21: 5 | BG21: 25 | BH21: 1 | BI21: 1 | BJ21: 22 | BK21: 1 | BL21: 78 | BM21: 1 | BN21: 2 | BO21: 1 | BP21: 1 | BQ21: 1 | BR21: 2 | BS21: 2 | BT21: 1 | BU21: 6 | BV21: 9 | BW21: 1 | BX21: 1 | BY21: 6 | BZ21: 15 | CA21: 1 | CB21: 1 | CC21: 8 | CD21: 59 | CE21: 137 | CF21: 1348

Sheet 4.4
A1: MATRICULA OFICIAL INDIGENA POR MUNICIPIO CON HECHOS VICTIMIZANTES
B3: R | P3: Total R | Q3: U | AC3: Total U | AD3: Total general
B4: FEMENINO | H4: Total FEMENINO | I4: MASCULINO | O4: Total MASCULINO | Q4: FEMENINO | U4: Total FEMENINO | V4: MASCULINO | AB4: Total MASCULINO
B5: EMBERA CATIO | C5: INGA | D5: KAMSA | E5: KOREGUAJE | F5: OTRAS ETNIAS | G5: PAÉZ | I5: INGA | J5: KOREGUAJE | K5: OTRAS ETNIAS | L5: PAÉZ | M5: WITOTO | Q5: KOREGUAJE | R5: OTRAS ETNIAS | S5: PAÉZ | T5: PUINAVE | V5: CUBEO | W5: EMBERACHAMI | X5: OTRAS ETNIAS | Y5: PAÉZ | Z5: PASTOS | AA5: WITOTO
A6: MUNICIPIO | B6: EN SITUACIÓN DE DESPLAZAMIENTO | C6: EN SITUACIÓN DE DESPLAZAMIENTO | D6: EN SITUACIÓN DE DESPLAZAMIENTO | E6: EN SITUACIÓN DE DESPLAZAMIENTO | F6: EN SITUACIÓN DE DESPLAZAMIENTO | G6: EN SITUACIÓN DE DESPLAZAMIENTO | I6: EN SITUACIÓN DE DESPLAZAMIENTO | J6: EN SITUACIÓN DE DESPLAZAMIENTO | K6: EN SITUACIÓN DE DESPLAZAMIENTO | L6: EN SITUACIÓN DE DESPLAZAMIENTO | M6: EN SITUACIÓN DE DESPLAZAMIENTO | N6: HIJOS DE ADULTOS DESMOVILIZADOS | Q6: EN SITUACIÓN DE DESPLAZAMIENTO | R6: EN SITUACIÓN DE DESPLAZAMIENTO | S6: EN SITUACIÓN DE DESPLAZAMIENTO | T6: EN SITUACIÓN DE DESPLAZAMIENTO | V6: EN SITUACIÓN DE DESPLAZAMIENTO | W6: EN SITUACIÓN DE DESPLAZAMIENTO | X6: EN SITUACIÓN DE DESPLAZAMIENTO | Y6: EN SITUACIÓN DE DESPLAZAMIENTO | Z6: EN SITUACIÓN DE DESPLAZAMIENTO | AA6: EN SITUACIÓN DE DESPLAZAMIENTO
A7: CARTAGENA DEL CHAIRÁ | B7: 1 | F7: 1 | H7: 2 | P7: 2 | T7: 1 | U7: 1 | V7: 1 | AB7: 1 | AC7: 2 | AD7: 4
A8: CURILLO | R8: 1 | U8: 1 | AC8: 1 | AD8: 1
A9: EL PAUJIL | I9: 1 | O9: 1 | P9: 1 | AD9: 1
A10: MILÁN | E10: 1 | H10: 1 | J10: 1 | O10: 1 | P10: 2 | AD10: 2
A11: PUERTO RICO | S11: 2 | U11: 2 | W11: 1 | AB11: 1 | AC11: 3 | AD11: 3
A12: SAN JOSÉ DEL FRAGUA | C12: 4 | D12: 1 | G12: 1 | H12: 6 | I12: 3 | K12: 1 | M12: 1 | O12: 5 | P12: 11 | X12: 1 | Z12: 1 | AB12: 2 | AC12: 2 | AD12: 13
A13: SAN VICENTE DEL CAGUÁN | F13: 1 | G13: 1 | H13: 2 | L13: 1 | O13: 1 | P13: 3 | S13: 1 | U13: 1 | Y13: 1 | AB13: 1 | AC13: 2 | AD13: 5
A14: SOLANO | E14: 1 | H14: 1 | I14: 1 | J14: 2 | L14: 1 | N14: 1 | O14: 5 | P14: 6 | Q14: 2 | U14: 2 | AA14: 1 | AB14: 1 | AC14: 3 | AD14: 9
A15: SOLITA | C15: 1 | H15: 1 | P15: 1 | R15: 1 | S15: 1 | U15: 2 | AC15: 2 | AD15: 3
A16: Total general | B16: 1 | C16: 5 | D16: 1 | E16: 2 | F16: 2 | G16: 2 | H16: 13 | I16: 5 | J16: 3 | K16: 1 | L16: 2 | M16: 1 | N16: 1 | O16: 13 | P16: 26 | Q16: 2 | R16: 2 | S16: 4 | T16: 1 | U16: 9 | V16: 1 | W16: 1 | X16: 1 | Y16: 1 | Z16: 1 | AA16: 1 | AB16: 6 | AC16: 15 | AD16: 41

Sheet 4.5
B1: MATRICULA OFICIAL NEGRITUDES POR MUNICIPIO, ZONA Y GENERO
C3: R | J3: Total R | K3: U | Q3: Total U | R3: Total general
C4: FEMENINO | E4: Total FEMENINO | F4: MASCULINO | I4: Total MASCULINO | K4: FEMENINO | M4: Total FEMENINO | N4: MASCULINO | P4: Total MASCULINO
B5: MUNICIPIO | C5: AFRODESCENDIENTE | D5: NEGRITUDES | F5: AFRODESCENDIENTE | G5: NEGRITUDES | H5: PALANQUERO | K5: AFRODESCENDIENTE | L5: NEGRITUDES | N5: AFRODESCENDIENTE | O5: NEGRITUDES
B6: BELÉN DE LOS ANDAQUIES | G6: 2 | I6: 2 | J6: 2 | L6: 3 | M6: 3 | O6: 2 | P6: 2 | Q6: 5 | R6: 7
B7: CARTAGENA DEL CHAIRÁ | C7: 1 | D7: 6 | E7: 7 | F7: 1 | G7: 11 | I7: 12 | J7: 19 | L7: 17 | M7: 17 | O7: 8 | P7: 8 | Q7: 25 | R7: 44
B8: CURILLO | C8: 1 | D8: 2 | E8: 3 | G8: 1 | I8: 1 | J8: 4 | K8: 11 | L8: 3 | M8: 14 | N8: 7 | O8: 2 | P8: 9 | Q8: 23 | R8: 27
B9: EL DONCELLO | D9: 1 | E9: 1 | G9: 2 | I9: 2 | J9: 3 | L9: 3 | M9: 3 | O9: 6 | P9: 6 | Q9: 9 | R9: 12
B10: EL PAUJIL | D10: 3 | E10: 3 | G10: 1 | I10: 1 | J10: 4 | L10: 3 | M10: 3 | O10: 3 | P10: 3 | Q10: 6 | R10: 10
B11: LA MONTAÑITA | F11: 1 | G11: 1 | I11: 2 | J11: 2 | O11: 1 | P11: 1 | Q11: 1 | R11: 3
B12: MILÁN | D12: 1 | E12: 1 | G12: 3 | I12: 3 | J12: 4 | R12: 4
B13: MORELIA | D13: 1 | E13: 1 | J13: 1 | O13: 1 | P13: 1 | Q13: 1 | R13: 2
B14: PUERTO RICO | D14: 10 | E14: 10 | G14: 12 | I14: 12 | J14: 22 | L14: 3 | M14: 3 | Q14: 3 | R14: 25
B15: SAN JOSÉ DEL FRAGUA | D15: 2 | E15: 2 | G15: 2 | I15: 2 | J15: 4 | L15: 2 | M15: 2 | O15: 1 | P15: 1 | Q15: 3 | R15: 7
B16: SAN VICENTE DEL CAGUÁN | C16: 2 | D16: 3 | E16: 5 | F16: 3 | G16: 7 | I16: 10 | J16: 15 | L16: 16 | M16: 16 | O16: 14 | P16: 14 | Q16: 30 | R16: 45
B17: SOLANO | D17: 1 | E17: 1 | G17: 1 | I17: 1 | J17: 2 | L17: 3 | M17: 3 | O17: 1 | P17: 1 | Q17: 4 | R17: 6
B18: SOLITA | D18: 3 | E18: 3 | G18: 3 | I18: 3 | J18: 6 | K18: 1 | L18: 3 | M18: 4 | O18: 5 | P18: 5 | Q18: 9 | R18: 15
B19: VALPARAÍSO | D19: 1 | E19: 1 | H19: 1 | I19: 1 | J19: 2 | L19: 1 | M19: 1 | O19: 1 | P19: 1 | Q19: 2 | R19: 4
B20: Total general | C20: 4 | D20: 34 | E20: 38 | F20: 5 | G20: 46 | H20: 1 | I20: 52 | J20: 90 | K20: 12 | L20: 57 | M20: 69 | N20: 7 | O20: 45 | P20: 52 | Q20: 121 | R20: 211

Sheet 4.6
B1: MATRICULA OFICIAL DE NEGRITUDES POR MUNICIPIO CON HECHOS VICTIMIZANTES
C3: R | I3: Total R | J3: U | P3: Total U | Q3: Total general
C4: FEMENINO | E4: Total FEMENINO | F4: MASCULINO | H4: Total MASCULINO | J4: FEMENINO | L4: Total FEMENINO | M4: MASCULINO | O4: Total MASCULINO
C5: AFRODESCENDIENTE | D5: NEGRITUDES | F5: NEGRITUDES | G5: PALANQUERO | J5: AFRODESCENDIENTE | K5: NEGRITUDES | M5: AFRODESCENDIENTE | N5: NEGRITUDES
B6: MUNICIPIO | C6: EN SITUACIÓN DE DESPLAZAMIENTO | D6: EN SITUACIÓN DE DESPLAZAMIENTO | F6: EN SITUACIÓN DE DESPLAZAMIENTO | G6: EN SITUACIÓN DE DESPLAZAMIENTO | J6: EN SITUACIÓN DE DESPLAZAMIENTO | K6: EN SITUACIÓN DE DESPLAZAMIENTO | M6: EN SITUACIÓN DE DESPLAZAMIENTO | N6: EN SITUACIÓN DE DESPLAZAMIENTO
B7: BELÉN DE LOS ANDAQUIES | K7: 1 | L7: 1 | P7: 1 | Q7: 1
B8: CARTAGENA DEL CHAIRÁ | D8: 3 | E8: 3 | F8: 6 | H8: 6 | I8: 9 | K8: 4 | L8: 4 | N8: 2 | O8: 2 | P8: 6 | Q8: 15
B9: CURILLO | C9: 1 | D9: 1 | E9: 2 | I9: 2 | J9: 7 | K9: 1 | L9: 8 | M9: 3 | O9: 3 | P9: 11 | Q9: 13
B10: EL DONCELLO | K10: 1 | L10: 1 | N10: 1 | O10: 1 | P10: 2 | Q10: 2
B11: EL PAUJIL | D11: 2 | E11: 2 | I11: 2 | Q11: 2
B12: LA MONTAÑITA | N12: 1 | O12: 1 | P12: 1 | Q12: 1
B13: PUERTO RICO | F13: 1 | H13: 1 | I13: 1 | K13: 2 | L13: 2 | P13: 2 | Q13: 3
B14: SAN JOSÉ DEL FRAGUA | F14: 1 | H14: 1 | I14: 1 | Q14: 1
B15: SAN VICENTE DEL CAGUÁN | K15: 2 | L15: 2 | N15: 3 | O15: 3 | P15: 5 | Q15: 5
B16: SOLANO | D16: 1 | E16: 1 | I16: 1 | Q16: 1
B17: SOLITA | D17: 1 | E17: 1 | I17: 1 | J17: 1 | L17: 1 | N17: 2 | O17: 2 | P17: 3 | Q17: 4
B18: VALPARAÍSO | G18: 1 | H18: 1 | I18: 1 | N18: 1 | O18: 1 | P18: 1 | Q18: 2
B19: Total general | C19: 1 | D19: 8 | E19: 9 | F19: 8 | G19: 1 | H19: 9 | I19: 18 | J19: 8 | K19: 11 | L19: 19 | M19: 3 | N19: 10 | O19: 13 | P19: 32 | Q19: 50

Sheet 4.7
A1: POBLACION INDIGENA POR MUNICIPIO, E.E, SEDE, ETNIA, RESGUARDO, ZONA Y GENERO
D4: R | FR4: Total R | FS4: U | IL4: Total U | IM4: Total general
D5: FEMENINO | CF5: Total FEMENINO | CG5: MASCULINO | FQ5: Total MASCULINO | FS5: FEMENINO | GZ5: Total FEMENINO | HA5: MASCULINO | IK5: Total MASCULINO
D6: ACHAGUA | E6: COCONUCO | F6: COYAIMA-NATAGAIMA | G6: EMBERACHAMI | K6: GUAMBIANO | M6: INGA | X6: KAMSA | Y6: KOREGUAJE | AS6: LETUAMA | AT6: MACAGUAJE | AU6: MUINANE | AX6: OTRAS ETNIAS | BA6: PAÉZ | BQ6: PIJAOS | BS6: PIRATAPUYO | BT6: WITOTO | CG6: ACHAGUA | CI6: CHIMILA | CJ6: EMBERA CATIO | CK6: EMBERACHAMI | CN6: GUAMBIANO | CO6: HITNÚ | CP6: INGA | DE6: KAMSA | DF6: KANKUAMO | DG6: KOREGUAJE | EE6: MACAGUAJE | EF6: MUINANE | EH6: NONUYA | EI6: OTRAS ETNIAS | EM6: PAÉZ | EZ6: PASTOS | FA6: SIKUANI | FB6: WITOTO | FO6: YUCUNA | FS6: BARAZANA | FT6: BETOYE | FU6: BORA | FV6: EMBERA CATIO | FW6: EMBERACHAMI | FX6: INGA | FY6: KOREGUAJE | GF6: OTRAS ETNIAS | GH6: PAÉZ | GP6: WITOTO | GY6: ZENÚ | HA6: ANDOQUE | HB6: AWA | HD6: BETOYE | HE6: CHIMILA | HF6: CUBEO | HG6: EMBERA CATIO | HH6: EMBERACHAMI | HI6: GUAMBIANO | HJ6: INGA | HM6: KOREGUAJE | HU6: MUISCA | HV6: NONUYA | HW6: OTRAS ETNIAS | HX6: PAÉZ | IF6: PASTOS | IG6: WAYUU | IH6: WITOTO
B7: MUNICIPIO | C7: INSTITUCION | D7: ABEJERO | E7: COCONUCO | F7: LOS PIJAOS | G7: EMBERA-DRUA | H7: LA CERINDA | I7: LA ITALIA | J7: SAN PABLO EL PARA | K7: GUAMBIA | L7: NASA KIWE | M7: CHAGÜI,CHIMBUZA,VEGAS, SAN ANTONIO,OTROS | N7: CUSUMBE-AGUA BLANCA | O7: GUADUALITO | P7: NIÑERAS | Q7: PAEZ DE QUINTANA | R7: PREDIO PUTUMAYO | S7: SAN ANTONIO DE FRAGUA | T7: SAN MIGUEL | U7: SAN RAFAEL | V7: YUNGUILLO | W7: YURAYACO | X7: KAMENTZA-BIYA | Y7: AGUA NEGRA | Z7: AGUANEGRA | AA7: COROPOYA | AB7: CUERAZO | AC7: EL DIAMANTE | AD7: EL TRIUNFO | AE7: GETUCHA | AF7: GORGONIA | AG7: HERICHA | AH7: JACOME | AI7: JERICO-CONSAYA-PEÑAS ALTAS | AJ7: LA ESPERANZA | AK7: MATICURU | AL7: PEÑAS ROJAS | AM7: POCARA | AN7: PORVENIR-KANANGUCHAL | AO7: PUERTO NARANJO | AP7: SAN FRANCISCO | AQ7: SAN LUIS | AR7: SAN MIGUEL | AS7: MATICURU | AT7: JERICO-CONSAYA-PEÑAS ALTAS | AU7: JIRIJIRI | AV7: PUERTO ZABALO-LOS MONOS | AW7: WITORA O HUITORA | AX7: CALARCA | AY7: LOS PIJAOS | AZ7: PUERTO NARANJO | BA7: ALTAMIRA | BB7: ALTO DEL REY | BC7: CABECERAS | BD7: COHETANDO | BE7: EL TRIUNFO | BF7: HONDURAS | BG7: LA ESPERANZA | BH7: LA PAILA-NAYA | BI7: NASA KIWE | BJ7: NASA KWE´S KIWE | BK7: SAN LORENZO DE CALDONO | BL7: SANTA ROSA DE CAPISCO | BM7: TACUEYO | BN7: TIGRES Y MUNCHIQUE | BO7: TORIBIO | BP7: ZIT-SEK DEL QUECAL | BQ7: ALBANIA | BR7: YAGUARA II-LLANOS DEL YARI | BS7: YAGUARA II-LLANOS DEL YARI | BT7: AGUA NEGRA | BU7: AGUANEGRA | BV7: CAÑO BOCON BRAZO AMANAVEN | BW7: EL QUINCE | BX7: JERICO-CONSAYA-PEÑAS ALTAS | BY7: LA ESPERANZA | BZ7: PEÑAS ROJAS | CA7: PREDIO PUTUMAYO | CB7: PREDIO PUTUMAYO (PUERTO LIMÓN) | CC7: PUERTO ZABALO-LOS MONOS | CD7: WITORA O HUITORA | CE7: WITOTO DE TUKUNARE | CG7: ABEJERO | CH7: INGA DE PUERTO LIMON | CI7: AICO | CJ7: LA CERINDA | CK7: LA CERINDA | CL7: LA ESPERANZA | CM7: LA ITALIA | CN7: GUAMBIA | CO7: NIÑERAS | CP7: AGUA BLANCA | CQ7: CHAGÜI,CHIMBUZA,VEGAS, SAN ANTONIO,OTROS | CR7: COROPOYA | CS7: CUSUMBE-AGUA BLANCA | CT7: GUADUALITO | CU7: GUAYUYACO | CV7: INGA DE PUERTO LIMON | CW7: LAS BRISAS | CX7: NIÑERAS | CY7: PAEZ DE QUINTANA | CZ7: SAN ANTONIO DE FRAGUA | DA7: SAN MIGUEL | DB7: SAN RAFAEL | DC7: YUNGUILLO | DD7: YURAYACO | DE7: SAN ANTONIO DE FRAGUA | DF7: AGUA NEGRA | DG7: AGUA NEGRA | DH7: AGUANEGRA | DI7: ALBANIA | DJ7: CAMPOALEGRE | DK7: CUERAZO | DL7: DIAMANTE | DM7: EL DIAMANTE | DN7: EL TRIUNFO | DO7: GETUCHA | DP7: GORGONIA | DQ7: HERICHA | DR7: HUITOTO DE MONOCHOA | DS7: JACOME | DT7: JERICO-CONSAYA-PEÑAS ALTAS | DU7: LA ESPERANZA | DV7: LOS NIASA | DW7: MATICURU | DX7: PALMA ALTA | DY7: PEÑAS ROJAS | DZ7: PORVENIR-KANANGUCHAL | EA7: SAN FRANCISCO | EB7: SAN LUIS | EC7: SAN MIGUEL | ED7: WITOTO DE TUKUNARE | EE7: JERICO-CONSAYA-PEÑAS ALTAS | EF7: PREDIO PUTUMAYO | EG7: PUERTO ZABALO-LOS MONOS | EH7: LOMITA DE CURUNDO | EI7: ALBANIA | EJ7: CALARCA | EK7: LOS PIJAOS | EL7: PUERTO NARANJO | EM7: ALTAMIRA | EN7: GAITANIA | EO7: GUAYABAL DE PARTADO | EP7: HONDURAS | EQ7: LA ESPERANZA | ER7: NASA KIWE | ES7: NIÑERAS | ET7: NUEVA ESPERANZA | EU7: SAN FRANCISCO | EV7: TALAGA | EW7: TORIBIO | EX7: YAGUARA II-LLANOS DEL YARI | EY7: YAQUIVA | EZ7: CUMBAL | FA7: CAÑO OVEJAS | FB7: COROPOYA | FC7: EL DIAMANTE | FD7: EL QUINCE | FE7: EL TRIUNFO | FF7: LA ESPERANZA | FG7: NUNUYA DE VILLA AZUL | FH7: PEÑAS ROJAS | FI7: PREDIO PUTUMAYO | FJ7: PREDIO PUTUMAYO (PUERTO LIMÓN) | FK7: PUERTO TRIUNFO | FL7: PUERTO ZABALO-LOS MONOS | FM7: VALDIVIA | FN7: WITORA O HUITORA | FO7: PREDIO PUTUMAYO (PUERTO LIMÓN) | FP7: PUERTO ZABALO-LOS MONOS | FS7: AGUAS NEGRAS | FT7: ALBANIA | FU7: HERICHA | FV7: AME | FW7: CAÑON RIO SAN QUININI | FX7: CUSUMBE-AGUA BLANCA | FY7: COROPOYA | FZ7: CUERAZO | GA7: EL DIAMANTE | GB7: GORGONIA | GC7: JERICO-CONSAYA-PEÑAS ALTAS | GD7: PEÑAS ROJAS | GE7: SAN LUIS | GF7: NASA KIWE | GG7: PARTE ORIENTAL DEL VAUPES | GH7: ALTAMIRA | GI7: BELALCAZAR | GJ7: COHETANDO | GK7: EL VENADO | GL7: NASA KIWE | GM7: QUIZGO | GN7: RIO BEBARA | GO7: TACUEYO | GP7: AGUA NEGRA | GQ7: EL DIAMANTE | GR7: EL QUINCE | GS7: EL TRIUNFO | GT7: EL VENADO | GU7: NUSIDO | GV7: PEÑAS ROJAS | GW7: PUERTO ZABALO-LOS MONOS | GX7: WITORA O HUITORA | GY7: SAN ANDRES DE SOTAVENTO | HA7: AGUA NEGRA | HB7: AGUA NEGRA | HC7: EL SANDE | HD7: ALBANIA | HE7: ALTAMIRA | HF7: BACATI-ARARA | HG7: AME | HH7: SAN PABLO EL PARA | HI7: GUAMBIA | HJ7: LA LEONA | HK7: PAEZ DE QUINTANA | HL7: SAN RAFAEL | HM7: CUERAZO | HN7: EL DIAMANTE | HO7: GORGONIA | HP7: JERICO-CONSAYA-PEÑAS ALTAS | HQ7: PEÑAS ROJAS | HR7: PORVENIR-KANANGUCHAL | HS7: SAN LUIS | HT7: SAN MIGUEL | HU7: POTRERITO | HV7: LOMITA DE CURUNDO | HW7: LOS PIJAOS | HX7: ALTAMIRA | HY7: BELALCAZAR | HZ7: COHETANDO | IA7: INGA DE CONDAGUA | IB7: NASA KIWE | IC7: RIO BEBARA | ID7: TORIBIO | IE7: ZIT-SEK DEL QUECAL | IF7: TUQUERRES | IG7: ALTA Y MEDIA GUAJIRA | IH7: EL QUINCE | II7: NASA KIWE | IJ7: PUERTO ZABALO-LOS MONOS
B8: ALBANIA | C8: C.E LA CHORROSA | F8: 1 | CF8: 1 | FR8: 1 | IM8: 1
C9: ALTO CASTAÑAL | F9: 1 | CF9: 1 | FR9: 1 | IM9: 1
C10: I.E ALBANIA | HJ10: 2 | IK10: 2 | IL10: 2 | IM10: 2
C11: PEREGRINO LOZANO | HJ11: 2 | IK11: 2 | IL11: 2 | IM11: 2
C12: I.E EL DORADO | DI12: 1 | FQ12: 1 | FR12: 1 | IM12: 1
C13: EL DORADO | DI13: 1 | FQ13: 1 | FR13: 1 | IM13: 1
B14: BELÉN DE LOS ANDAQUIES | C14: I. E. R. PUEBLO NUEVO | H14: 2 | L14: 1 | CF14: 3 | CJ14: 1 | FQ14: 1 | FR14: 4 | IM14: 4
C15: PUEBLO NUEVO | H15: 2 | L15: 1 | CF15: 3 | CJ15: 1 | FQ15: 1 | FR15: 4 | IM15: 4
C16: I.E AGROTECNICO MIXTO | GU16: 1 | GZ16: 1 | IL16: 1 | IM16: 1
C17: AGROTECNICO MIXTO | GU17: 1 | GZ17: 1 | IL17: 1 | IM17: 1
C18: I.E GABRIELA MISTRAL | HI18: 1 | IK18: 1 | IL18: 1 | IM18: 1
C19: JOSE ACEVEDO Y GOMEZ | HI19: 1 | IK19: 1 | IL19: 1 | IM19: 1
C20: I.E SAN LUIS | BB20: 1 | CF20: 1 | FR20: 1 | IM20: 1
C21: SAN LUIS | BB21: 1 | CF21: 1 | FR21: 1 | IM21: 1
B22: CARTAGENA DEL CHAIRÁ | C22: I. E. R. LA ESMERALDA | DQ22: 1 | FQ22: 1 | FR22: 1 | IM22: 1
C23: LA MACARENA | DQ23: 1 | FQ23: 1 | FR23: 1 | IM23: 1
C24: I. E. R. MONSERRATE | CC24: 1 | CF24: 1 | FH24: 1 | FM24: 1 | FQ24: 2 | FR24: 3 | IM24: 3
C25: CAÑO SANTO DOMINGO | FM25: 1 | FQ25: 1 | FR25: 1 | IM25: 1
C26: EL GUAMO | CC26: 1 | CF26: 1 | FH26: 1 | FQ26: 1 | FR26: 2 | IM26: 2
C27: I.E AGROECOLOGICO AMAZONICO | GO27: 2 | GY27: 1 | GZ27: 3 | HK27: 1 | IA27: 1 | IK27: 2 | IL27: 5 | IM27: 5
C28: AGROECOLOGICO | HK28: 1 | IA28: 1 | IK28: 2 | IL28: 2 | IM28: 2
C29: BUENOS AIRES | GO29: 2 | GY29: 1 | GZ29: 3 | IL29: 3 | IM29: 3
C30: I.E EL CHAIRA JOSE MARIA CORDOBA | FA30: 1 | FQ30: 1 | FR30: 1 | HF30: 1 | IG30: 1 | IK30: 2 | IL30: 2 | IM30: 3
C31: EL CHAIRA | IG31: 1 | IK31: 1 | IL31: 1 | IM31: 1
C32: JOSE MARIA CORDOBA | HF32: 1 | IK32: 1 | IL32: 1 | IM32: 1
C33: PRIMERO DE AGOSTO | FA33: 1 | FQ33: 1 | FR33: 1 | IM33: 1
C34: I.E. R. DIVINO NIÑO | Q34: 1 | AY34: 1 | CF34: 2 | FR34: 2 | IM34: 2
C35: BOCANA DEL ANAYA | Q35: 1 | CF35: 1 | FR35: 1 | IM35: 1
C36: DIVINO NIÑO # 2 | AY36: 1 | CF36: 1 | FR36: 1 | IM36: 1
C37: I.E. R. LA SARDINATA | BL37: 1 | CF37: 1 | FR37: 1 | IM37: 1
C38: LA SARDINATA | BL38: 1 | CF38: 1 | FR38: 1 | IM38: 1
C39: I.E.R JOSE ANTONIO GALAN | BZ39: 1 | CF39: 1 | FR39: 1 | IM39: 1
C40: JOSE ANTONIO GALAN | BZ40: 1 | CF40: 1 | FR40: 1 | IM40: 1
B41: CURILLO | C41: I.E ANGEL CUNIBERTI | FS41: 1 | FT41: 1 | GZ41: 2 | HA41: 1 | HB41: 1 | HE41: 1 | IK41: 3 | IL41: 5 | IM41: 5
C42: CUNIBERTI | HB42: 1 | IK42: 1 | IL42: 1 | IM42: 1
C43: SAN PABLO | FS43: 1 | FT43: 1 | GZ43: 2 | HA43: 1 | HE43: 1 | IK43: 2 | IL43: 4 | IM43: 4
C44: I.E.R. LA NOVIA | CG44: 1 | FQ44: 1 | FR44: 1 | IM44: 1
C45: I.E.R. LA NOVIA | CG45: 1 | FQ45: 1 | FR45: 1 | IM45: 1
B46: EL DONCELLO | C46: I.E RUFINO QUICHOYA | HP46: 1 | IK46: 1 | IL46: 1 | IM46: 1
C47: RUFINO QUICHOYA | HP47: 1 | IK47: 1 | IL47: 1 | IM47: 1
B48: EL PAUJIL | C48: I.E AGROECOLOGICO AMAZONICO | DC48: 1 | DO48: 1 | EH48: 1 | FQ48: 3 | FR48: 3 | IM48: 3
C49: AGROECOLOGICO | DC49: 1 | DO49: 1 | EH49: 1 | FQ49: 3 | FR49: 3 | IM49: 3
C50: I.E NUESTRA SE¿ORA DE LAS MERCEDES | GL50: 1 | GZ50: 1 | HD50: 1 | IK50: 1 | IL50: 2 | IM50: 2
C51: NUESTRA SEÑORA DE LAS MERCEDES | GL51: 1 | GZ51: 1 | HD51: 1 | IK51: 1 | IL51: 2 | IM51: 2
C52: I.E R. RAFAEL URIBE URIBE | D52: 1 | CF52: 1 | CY52: 1 | FQ52: 1 | FR52: 2 | IM52: 2
C53: RAFAEL URIBE URIBE | D53: 1 | CF53: 1 | CY53: 1 | FQ53: 1 | FR53: 2 | IM53: 2
C54: I.E.R. SANTA TERESA | EK54: 1 | FQ54: 1 | FR54: 1 | IM54: 1
C55: SANTA TERESA | EK55: 1 | FQ55: 1 | FR55: 1 | IM55: 1
B56: MILÁN | C56: C.E. GRANARIO | Y56: 5 | Z56: 2 | CF56: 7 | DF56: 1 | DG56: 3 | DH56: 2 | FN56: 1 | FQ56: 7 | FR56: 14 | IM56: 14
C57: BELLO HORIZONTE | Y57: 5 | Z57: 2 | CF57: 7 | DG57: 2 | DH57: 2 | FQ57: 4 | FR57: 11 | IM57: 11
C58: EL CONDOR | DF58: 1 | DG58: 1 | FN58: 1 | FQ58: 3 | FR58: 3 | IM58: 3
C59: I.E MARCO FIDEL SUAREZ | GB59: 1 | GI59: 1 | GZ59: 2 | HO59: 1 | IK59: 1 | IL59: 3 | IM59: 3
C60: MARCO FIDEL SUAREZ | HO60: 1 | IK60: 1 | IL60: 1 | IM60: 1
C61: SERGIO MOSSONI | GB61: 1 | GI61: 1 | GZ61: 2 | IL61: 2 | IM61: 2
C62: I.E. R. LA FLORIDA | BH62: 1 | CF62: 1 | FR62: 1 | IM62: 1
C63: LA FLORIDA | BH63: 1 | CF63: 1 | FR63: 1 | IM63: 1
C64: I.E.R ANGEL RICARDO ACOSTA | AE64: 3 | AF64: 3 | AH64: 1 | AI64: 1 | AK64: 1 | CF64: 9 | DO64: 3 | DP64: 1 | DS64: 5 | DT64: 1 | DU64: 1 | DW64: 1 | EB64: 1 | FQ64: 13 | FR64: 22 | IM64: 22
C65: ANGEL RICARDO | AE65: 2 | AF65: 3 | AH65: 1 | AI65: 1 | AK65: 1 | CF65: 8 | DO65: 2 | DP65: 1 | DS65: 5 | DT65: 1 | DU65: 1 | DW65: 1 | EB65: 1 | FQ65: 12 | FR65: 20 | IM65: 20
C66: SAN ANTONIO | AE66: 1 | CF66: 1 | DO66: 1 | FQ66: 1 | FR66: 2 | IM66: 2
C67: I.E.R LA RASTRA | AF67: 3 | CF67: 3 | DP67: 5 | DW67: 4 | FQ67: 9 | FR67: 12 | IM67: 12
C68: LA RASTRA | AF68: 3 | CF68: 3 | DP68: 5 | DW68: 4 | FQ68: 9 | FR68: 12 | IM68: 12
C69: I.E.R. ILUSION MATICURU | DX69: 1 | FQ69: 1 | FR69: 1 | IM69: 1
C70: LA PRIMAVERA | DX70: 1 | FQ70: 1 | FR70: 1 | IM70: 1
C71: I.E.R. MAMA BWE REOJACHE | Y71: 33 | Z71: 4 | AD71: 1 | AE71: 3 | AF71: 16 | AG71: 17 | AH71: 18 | AI71: 1 | AJ71: 6 | AK71: 30 | AL71: 2 | AM71: 1 | AN71: 1 | AP71: 18 | AQ71: 18 | AS71: 1 | CF71: 170 | CL71: 1 | DG71: 33 | DH71: 2 | DL71: 2 | DM71: 2 | DO71: 6 | DP71: 12 | DQ71: 10 | DS71: 29 | DT71: 3 | DU71: 8 | DW71: 45 | DY71: 2 | DZ71: 4 | EA71: 22 | EB71: 21 | EC71: 2 | ED71: 1 | FL71: 1 | FQ71: 206 | FR71: 376 | IM71: 376
C72: INDIGENA AGUA NEGRA MIUPU | Y72: 12 | AH72: 1 | AP72: 1 | CF72: 14 | DG72: 19 | DS72: 2 | EA72: 5 | FQ72: 26 | FR72: 40 | IM72: 40
C73: INDIGENA GETUCHA | AE73: 3 | AF73: 2 | CF73: 5 | DG73: 1 | DO73: 6 | DQ73: 1 | FQ73: 8 | FR73: 13 | IM73: 13
C74: INDIGENA GORGONIA | Y74: 6 | AF74: 12 | AG74: 2 | CF74: 20 | DG74: 2 | DP74: 7 | DQ74: 1 | FQ74: 10 | FR74: 30 | IM74: 30
C75: INDIGENA HERICHA | AG75: 6 | CF75: 6 | DQ75: 5 | DW75: 1 | FQ75: 6 | FR75: 12 | IM75: 12
C76: INDIGENA JACOME | Z76: 2 | AH76: 14 | AI76: 1 | CF76: 17 | DS76: 10 | DT76: 2 | FQ76: 12 | FR76: 29 | IM76: 29
C77: INDIGENA KOKARA | Y77: 2 | AH77: 2 | CF77: 4 | DG77: 1 | DS77: 4 | FQ77: 5 | FR77: 9 | IM77: 9
C78: INDIGENA LA ESPERANZA | AJ78: 3 | AK78: 1 | CF78: 4 | CL78: 1 | DU78: 6 | FQ78: 7 | FR78: 11 | IM78: 11
C79: INDIGENA MATICURU | Y79: 3 | AK79: 24 | AS79: 1 | CF79: 28 | DG79: 1 | DH79: 1 | DW79: 24 | FQ79: 26 | FR79: 54 | IM79: 54
C80: INDIGENA SAN FRANCISCO | Y80: 4 | Z80: 1 | AP80: 4 | CF80: 9 | DG80: 3 | EA80: 2 | FQ80: 5 | FR80: 14 | IM80: 14
C81: INDIGENA SAN LUIS | Z81: 1 | AK81: 1 | AQ81: 13 | CF81: 15 | EB81: 10 | FQ81: 10 | FR81: 25 | IM81: 25
C82: MAMA BWE REOJACHE | Y82: 6 | AD82: 1 | AF82: 2 | AG82: 9 | AH82: 1 | AJ82: 3 | AK82: 4 | AL82: 2 | AM82: 1 | AN82: 1 | AP82: 13 | AQ82: 5 | CF82: 48 | DG82: 6 | DH82: 1 | DL82: 2 | DM82: 2 | DP82: 5 | DQ82: 3 | DS82: 13 | DT82: 1 | DU82: 2 | DW82: 20 | DY82: 2 | DZ82: 4 | EA82: 15 | EB82: 11 | EC82: 2 | ED82: 1 | FL82: 1 | FQ82: 91 | FR82: 139 | IM82: 139
B83: MORELIA | C83: I.E R. JUAN XXIII | AQ83: 1 | CF83: 1 | FR83: 1 | IM83: 1
C84: BRUSELAS | AQ84: 1 | CF84: 1 | FR84: 1 | IM84: 1
B85: PUERTO RICO | C85: I.E ACEVEDO Y GOMEZ | GL85: 1 | GV85: 1 | GZ85: 2 | IB85: 1 | IE85: 1 | IK85: 2 | IL85: 4 | IM85: 4
C86: ACEVEDO Y GOMEZ | GL86: 1 | GV86: 1 | GZ86: 2 | IB86: 1 | IE86: 1 | IK86: 2 | IL86: 4 | IM86: 4
C87: I.E R. CENTRO INDIGENA | AX87: 6 | BC87: 1 | BI87: 2 | BP87: 3 | CF87: 12 | EJ87: 5 | EQ87: 1 | ER87: 4 | FQ87: 10 | FR87: 22 | IM87: 22
C88: CABILDO CALARCA | AX88: 6 | CF88: 6 | EJ88: 5 | FQ88: 5 | FR88: 11 | IM88: 11
C89: CABILDO MONTE BELLO | BC89: 1 | CF89: 1 | FR89: 1 | IM89: 1
C90: INDIGENA CENTRO INDIGENA | BI90: 2 | BP90: 2 | CF90: 4 | ER90: 3 | FQ90: 3 | FR90: 7 | IM90: 7
C91: INDIGENA EL QUECAL | BP91: 1 | CF91: 1 | FR91: 1 | IM91: 1
C92: NASA LJUCX | EQ92: 1 | FQ92: 1 | FR92: 1 | IM92: 1
C93: VALLE BONITO | ER93: 1 | FQ93: 1 | FR93: 1 | IM93: 1
C94: I.E RURAL RIO NEGRO | EM94: 1 | FQ94: 1 | FR94: 1 | IM94: 1
C95: EL ROSARIO | EM95: 1 | FQ95: 1 | FR95: 1 | IM95: 1
C96: I.E SAGRADOS CORAZONES | GL96: 2 | GX96: 1 | GZ96: 3 | HH96: 1 | IB96: 2 | IK96: 3 | IL96: 6 | IM96: 6
C97: BETHEL | IB97: 2 | IK97: 2 | IL97: 2 | IM97: 2
C98: SAGRADOS CORAZONES | GL98: 2 | GX98: 1 | GZ98: 3 | HH98: 1 | IK98: 1 | IL98: 4 | IM98: 4
C99: I.E. R. EL LOBO | EQ99: 1 | FQ99: 1 | FR99: 1 | IM99: 1
C100: ARENOSO ORIENTE | EQ100: 1 | FQ100: 1 | FR100: 1 | IM100: 1
C101: I.E. R. JORGE ELIECER GAITAN | BP101: 1 | CF101: 1 | EY101: 1 | FQ101: 1 | FR101: 2 | IM101: 2
C102: JORGE ELIECER GAITAN | BP102: 1 | CF102: 1 | EY102: 1 | FQ102: 1 | FR102: 2 | IM102: 2
B103: SAN JOSÉ DEL FRAGUA | C103: I.E DON QUIJOTE | HL103: 2 | HW103: 1 | ID103: 1 | IF103: 1 | IK103: 5 | IL103: 5 | IM103: 5
C104: CONC DON QUIJOTE 02 | HW104: 1 | IK104: 1 | IL104: 1 | IM104: 1
C105: DON QUIJOTE 01 | HL105: 2 | IK105: 2 | IL105: 2 | IM105: 2
C106: DON QUIJOTE NO. 3 | ID106: 1 | IF106: 1 | IK106: 2 | IL106: 2 | IM106: 2
C107: I.E PARROQUIAL | FW107: 1 | GM107: 1 | GZ107: 2 | HC107: 1 | IK107: 1 | IL107: 3 | IM107: 3
C108: PARROQUIAL SAN JOSE | GM108: 1 | GZ108: 1 | HC108: 1 | IK108: 1 | IL108: 2 | IM108: 2
C109: VEINTE DE JULIO | FW109: 1 | GZ109: 1 | IL109: 1 | IM109: 1
C110: I.E. R. MARIA AUXILIADORA | FJ110: 1 | FQ110: 1 | FR110: 1 | IM110: 1
C111: MARIA AUXILIADORA | FJ111: 1 | FQ111: 1 | FR111: 1 | IM111: 1
C112: I.E. RURAL LAS LAJAS | P112: 1 | T112: 1 | BO112: 1 | CF112: 3 | CO112: 1 | EW112: 1 | FQ112: 2 | FR112: 5 | IM112: 5
C113: LA PENEYA | BO113: 1 | CF113: 1 | EW113: 1 | FQ113: 1 | FR113: 2 | IM113: 2
C114: LAS LAJAS | P114: 1 | T114: 1 | CF114: 2 | CO114: 1 | FQ114: 1 | FR114: 3 | IM114: 3
C115: I.E.R. DIVINO NIÑO | O115: 1 | T115: 3 | BD115: 1 | BI115: 1 | CF115: 6 | CQ115: 1 | CT115: 1 | CU115: 1 | CX115: 1 | EZ115: 1 | FQ115: 5 | FR115: 11 | IM115: 11
C116: PUERTO NUEVO ZABALETA | O116: 1 | T116: 3 | BD116: 1 | BI116: 1 | CF116: 6 | CQ116: 1 | CT116: 1 | CU116: 1 | CX116: 1 | EZ116: 1 | FQ116: 5 | FR116: 11 | IM116: 11
C117: I.E.R. INDIGENA ESPECIAL YACHAICURY | G117: 1 | H117: 2 | J117: 1 | K117: 10 | M117: 1 | N117: 4 | P117: 1 | S117: 1 | T117: 1 | U117: 2 | V117: 1 | W117: 1 | X117: 1 | BG117: 1 | BO117: 1 | BQ117: 1 | BY117: 1 | CF117: 31 | CI117: 1 | CK117: 5 | CN117: 7 | CP117: 1 | CS117: 5 | CW117: 1 | CX117: 2 | CZ117: 1 | DA117: 1 | DB117: 3 | DC117: 2 | DD117: 1 | DE117: 1 | EI117: 1 | EQ117: 1 | EW117: 1 | FF117: 3 | FQ117: 37 | FR117: 68 | IM117: 68
C118: I.E.R. INDIGENA ESPECIAL YACHAICURY - SEDE PRINCIPAL | J118: 1 | N118: 3 | P118: 1 | T118: 1 | V118: 1 | W118: 1 | X118: 1 | BG118: 1 | BO118: 1 | CF118: 11 | CI118: 1 | CN118: 1 | CS118: 4 | CZ118: 1 | DA118: 1 | DB118: 2 | DC118: 2 | EQ118: 1 | EW118: 1 | FF118: 1 | FQ118: 15 | FR118: 26 | IM118: 26
C119: INDIGENA AGUA BLANCA CUZUMBE | N119: 1 | CF119: 1 | CP119: 1 | CS119: 1 | FQ119: 2 | FR119: 3 | IM119: 3
C120: INDIGENA GUAMBIANA DEL AGUILA | K120: 10 | CF120: 10 | CN120: 6 | FQ120: 6 | FR120: 16 | IM120: 16
C121: INDIGENA LA CERINDA | G121: 1 | H121: 2 | CF121: 3 | CK121: 5 | FQ121: 5 | FR121: 8 | IM121: 8
C122: INDIGENA LA CHUSCALOSA | BQ122: 1 | CF122: 1 | EI122: 1 | FQ122: 1 | FR122: 2 | IM122: 2
C123: INDIGENA LA ESPERANZA | BY123: 1 | CF123: 1 | FF123: 2 | FQ123: 2 | FR123: 3 | IM123: 3
C124: INDIGENA LA VALENTINA | CW124: 1 | FQ124: 1 | FR124: 1 | IM124: 1
C125: INDIGENA NIÑERAS | CX125: 2 | FQ125: 2 | FR125: 2 | IM125: 2
C126: INDIGENA SAN ANTONIO | M126: 1 | S126: 1 | CF126: 2 | DE126: 1 | FQ126: 1 | FR126: 3 | IM126: 3
C127: INDIGENA SAN MIGUEL | DD127: 1 | FQ127: 1 | FR127: 1 | IM127: 1
C128: INDIGENA SAN RAFAEL DEL FRAGUA | U128: 2 | CF128: 2 | DB128: 1 | FQ128: 1 | FR128: 3 | IM128: 3
B129: SAN VICENTE DEL CAGUÁN | C129: C.E. INTERCULTURAL INDIGENA SAN VICENTE DEL CAGUAN | I129: 1 | BA129: 35 | BF129: 4 | BO129: 1 | BR129: 1 | BS129: 1 | CF129: 43 | CM129: 1 | EM129: 27 | EP129: 2 | ET129: 1 | EW129: 2 | EX129: 1 | FQ129: 34 | FR129: 77 | IM129: 77
C130: C.E. INTERCULTURAL INDIGENA SAN VICENTE DEL CAGUAN - SEDE PRINCIPAL | BA130: 26 | BO130: 1 | CF130: 27 | EM130: 19 | EW130: 2 | FQ130: 21 | FR130: 48 | IM130: 48
C131: CABILDO INDIGENA | I131: 1 | CF131: 1 | CM131: 1 | FQ131: 1 | FR131: 2 | IM131: 2
C132: INDIGENA BANDERA DEL RECAIBO | BA132: 1 | BF132: 4 | CF132: 5 | EP132: 2 | ET132: 1 | FQ132: 3 | FR132: 8 | IM132: 8
C133: INDIGENA BILINGUE ALTAMIRA | BA133: 7 | CF133: 7 | EM133: 4 | FQ133: 4 | FR133: 11 | IM133: 11
C134: INDIGENA BILINGUE LA GAITANA | BA134: 1 | CF134: 1 | EM134: 4 | FQ134: 4 | FR134: 5 | IM134: 5
C135: YAGUARA # 2 | BR135: 1 | BS135: 1 | CF135: 2 | EX135: 1 | FQ135: 1 | FR135: 3 | IM135: 3
C136: C.E. SANTA ROSA | BO136: 1 | CF136: 1 | EU136: 1 | FQ136: 1 | FR136: 2 | IM136: 2
C137: ISLA GRANDE | EU137: 1 | FQ137: 1 | FR137: 1 | IM137: 1
C138: SANTA ROSA | BO138: 1 | CF138: 1 | FR138: 1 | IM138: 1
C139: I.E DANTE ALIGHIERI | GL139: 1 | GZ139: 1 | IL139: 1 | IM139: 1
C140: DIEGO OMAR GARCIA | GL140: 1 | GZ140: 1 | IL140: 1 | IM140: 1
C141: I.E DOMINGO SAVIO | GG141: 1 | GH141: 2 | GZ141: 3 | HX141: 1 | ID141: 1 | IK141: 2 | IL141: 5 | IM141: 5
C142: DOMINGO SAVIO | GH142: 2 | GZ142: 2 | IL142: 2 | IM142: 2
C143: SEDE PALESTRO | GG143: 1 | GZ143: 1 | HX143: 1 | ID143: 1 | IK143: 2 | IL143: 3 | IM143: 3
C144: I.E PROMOCION SOCIAL | HU144: 1 | HV144: 1 | HY144: 1 | HZ144: 1 | IK144: 4 | IL144: 4 | IM144: 4
C145: CIUDAD JARDIN | HU145: 1 | HV145: 1 | IK145: 2 | IL145: 2 | IM145: 2
C146: PROMOCION SOCIAL | HY146: 1 | HZ146: 1 | IK146: 2 | IL146: 2 | IM146: 2
C147: I.E VERDE AMAZONICO | FV147: 1 | GH147: 3 | GL147: 1 | GZ147: 5 | HG147: 1 | HX147: 1 | IK147: 2 | IL147: 7 | IM147: 7
C148: VERDE AMAZONICO | FV148: 1 | GH148: 3 | GL148: 1 | GZ148: 5 | HG148: 1 | HX148: 1 | IK148: 2 | IL148: 7 | IM148: 7
C149: I.E. R. ALTO QUEBRADON | BA149: 2 | BK149: 1 | BM149: 1 | CF149: 4 | EM149: 1 | EN149: 1 | FQ149: 2 | FR149: 6 | IM149: 6
C150: ALTO QUEBRADON | BA150: 2 | BK150: 1 | CF150: 3 | EM150: 1 | EN150: 1 | FQ150: 2 | FR150: 5 | IM150: 5
C151: LA DANTA | BM151: 1 | CF151: 1 | FR151: 1 | IM151: 1
C152: I.E. R. CRISTALINA TRONCALES | BA152: 1 | CF152: 1 | FR152: 1 | IM152: 1
C153: CRISTALINA TRONCALES | BA153: 1 | CF153: 1 | FR153: 1 | IM153: 1
C154: I.E. R. LA SOMBRA | BJ154: 1 | CF154: 1 | EV154: 1 | FQ154: 1 | FR154: 2 | IM154: 2
C155: LA SOMBRA | BJ155: 1 | CF155: 1 | EV155: 1 | FQ155: 1 | FR155: 2 | IM155: 2
C156: I.E.R GUILLERMO RIOS MEJIA | E156: 1 | CF156: 1 | FR156: 1 | IM156: 1
C157: GUILLERMO RIOS MEJIA | E157: 1 | CF157: 1 | FR157: 1 | IM157: 1
C158: I.E.R. GUAYABAL | D158: 1 | CF158: 1 | EN158: 1 | FQ158: 1 | FR158: 2 | IM158: 2
C159: EL ROBLE | EN159: 1 | FQ159: 1 | FR159: 1 | IM159: 1
C160: GUAYABAL | D160: 1 | CF160: 1 | FR160: 1 | IM160: 1
C161: I.E.R. LA INMACULADA | BA161: 2 | CF161: 2 | EM161: 5 | EP161: 1 | FQ161: 6 | FR161: 8 | IM161: 8
C162: LA INMACULADA | BA162: 1 | CF162: 1 | EM162: 5 | FQ162: 5 | FR162: 6 | IM162: 6
C163: LOS CAFETOS | EP163: 1 | FQ163: 1 | FR163: 1 | IM163: 1
C164: MIROLINDO | BA164: 1 | CF164: 1 | FR164: 1 | IM164: 1
C165: I.E.R. PUERTO AMOR | BA165: 1 | CF165: 1 | EM165: 1 | EW165: 1 | FQ165: 2 | FR165: 3 | IM165: 3
C166: PUERTO AMOR | BA166: 1 | CF166: 1 | EM166: 1 | EW166: 1 | FQ166: 2 | FR166: 3 | IM166: 3
C167: I.E.R. SAN JOSE DE CAQUETANIA | BG167: 1 | CF167: 1 | FR167: 1 | IM167: 1
C168: SAN JOSE DE CAQUETANIA | BG168: 1 | CF168: 1 | FR168: 1 | IM168: 1
B169: SOLANO | C169: C.E. PEÑAS BLANCAS | AA169: 1 | CF169: 1 | CR169: 1 | DT169: 2 | FQ169: 3 | FR169: 4 | IM169: 4
C170: PEÑAS BLANCAS | AA170: 1 | CF170: 1 | CR170: 1 | DT170: 2 | FQ170: 3 | FR170: 4 | IM170: 4
C171: I.E CAMPO ELIAS MARULANDA | FU171: 1 | FY171: 1 | FZ171: 2 | GA171: 1 | GC171: 1 | GD171: 2 | GE171: 1 | GK171: 1 | GP171: 1 | GQ171: 1 | GR171: 9 | GS171: 3 | GT171: 1 | GW171: 2 | GX171: 1 | GZ171: 28 | HM171: 1 | HN171: 2 | HQ171: 1 | HR171: 1 | HS171: 1 | HT171: 1 | IH171: 6 | II171: 1 | IK171: 14 | IL171: 42 | IM171: 42
C172: CAMPO ELIAS MARULANDA | FU172: 1 | FY172: 1 | FZ172: 2 | GA172: 1 | GC172: 1 | GD172: 2 | GE172: 1 | GK172: 1 | GP172: 1 | GQ172: 1 | GR172: 9 | GS172: 3 | GT172: 1 | GW172: 2 | GX172: 1 | GZ172: 28 | HM172: 1 | HN172: 2 | HQ172: 1 | HR172: 1 | HS172: 1 | HT172: 1 | IH172: 6 | II172: 1 | IK172: 14 | IL172: 42 | IM172: 42
C173: I.E.R. CAMPOALEGRE | AL173: 2 | AQ173: 1 | AR173: 1 | CF173: 4 | DQ173: 1 | DY173: 2 | EB173: 1 | FQ173: 4 | FR173: 8 | IM173: 8
C174: CAMPO ALEGRE | AL174: 2 | AR174: 1 | CF174: 3 | DQ174: 1 | DY174: 2 | FQ174: 3 | FR174: 6 | IM174: 6
C175: LA LIBERTAD | AQ175: 1 | CF175: 1 | EB175: 1 | FQ175: 1 | FR175: 2 | IM175: 2
C176: I.E.R. INDIGENA COEMANI FORTUNATO REALLY | R176: 1 | AU176: 1 | AV176: 1 | AW176: 1 | BT176: 1 | BU176: 1 | BV176: 1 | BW176: 1 | BZ176: 3 | CA176: 3 | CB176: 9 | CC176: 70 | CD176: 2 | CE176: 2 | CF176: 97 | EG176: 6 | FB176: 1 | FD176: 3 | FG176: 1 | FH176: 4 | FI176: 3 | FJ176: 4 | FK176: 1 | FL176: 74 | FN176: 1 | FO176: 3 | FP176: 2 | FQ176: 103 | FR176: 200 | IM176: 200
C177: INDIGENA AGUANEGRA | BT177: 1 | BU177: 1 | BV177: 1 | CC177: 1 | CF177: 4 | FL177: 1 | FQ177: 1 | FR177: 5 | IM177: 5
C178: INDIGENA COEMANI | CC178: 15 | CF178: 15 | EG178: 1 | FL178: 10 | FQ178: 11 | FR178: 26 | IM178: 26
C179: INDIGENA COROPOYA | CA179: 1 | CF179: 1 | FB179: 1 | FI179: 3 | FL179: 1 | FQ179: 5 | FR179: 6 | IM179: 6
C180: INDIGENA EL QUINCE DANUBIO | BW180: 1 | CE180: 1 | CF180: 2 | EG180: 1 | FD180: 3 | FQ180: 4 | FR180: 6 | IM180: 6
C181: INDIGENA FORTUNATO REALLY | AU181: 1 | AV181: 1 | BZ181: 2 | CA181: 2 | CB181: 9 | CC181: 37 | CE181: 1 | CF181: 53 | EG181: 3 | FG181: 1 | FH181: 4 | FJ181: 4 | FL181: 30 | FO181: 3 | FP181: 2 | FQ181: 47 | FR181: 100 | IM181: 100
C182: INDIGENA HUITORA | AW182: 1 | CD182: 2 | CF182: 3 | FN182: 1 | FQ182: 1 | FR182: 4 | IM182: 4
C183: INDIGENA LOS ESTRECHOS | R183: 1 | CC183: 12 | CF183: 13 | FL183: 15 | FQ183: 15 | FR183: 28 | IM183: 28
C184: INDIGENA MARIA INMACULADA DE JERUSALEM | FK184: 1 | FL184: 2 | FQ184: 3 | FR184: 3 | IM184: 3
C185: INDIGENA PEÑAS ROJAS | BZ185: 1 | CC185: 4 | CF185: 5 | FL185: 8 | FQ185: 8 | FR185: 13 | IM185: 13
C186: INDIGENA SAN PABLO - EL QUINCHE | EG186: 1 | FL186: 6 | FQ186: 7 | FR186: 7 | IM186: 7
C187: ISLA GRANDE | CC187: 1 | CF187: 1 | FL187: 1 | FQ187: 1 | FR187: 2 | IM187: 2
C188: I.E.R. INDIGENA COREGUAJE | Y188: 1 | AB188: 4 | AC188: 3 | AD188: 4 | AF188: 1 | AI188: 29 | AJ188: 2 | AL188: 4 | AN188: 1 | AO188: 1 | AP188: 1 | AQ188: 2 | AT188: 1 | AZ188: 2 | BM188: 1 | BX188: 1 | CF188: 58 | DG188: 2 | DJ188: 1 | DK188: 6 | DL188: 1 | DM188: 2 | DN188: 4 | DP188: 2 | DR188: 3 | DT188: 29 | DU188: 2 | DV188: 2 | DY188: 2 | DZ188: 4 | EB188: 1 | EC188: 4 | EE188: 1 | EL188: 2 | EO188: 1 | FC188: 1 | FD188: 1 | FE188: 2 | FQ188: 73 | FR188: 131 | IM188: 131
C189: I.E.R. INDIGENA COREGUAJE | Y189: 1 | AC189: 1 | AF189: 1 | AI189: 19 | AT189: 1 | CF189: 23 | DP189: 2 | DR189: 1 | DT189: 24 | EC189: 1 | EE189: 1 | FC189: 1 | FQ189: 30 | FR189: 53 | IM189: 53
C190: INDIGENA CANANGUCHAL | DJ190: 1 | DR190: 2 | DZ190: 3 | FQ190: 6 | FR190: 6 | IM190: 6
C191: INDIGENA EL DIAMANTE | AC191: 2 | CF191: 2 | DL191: 1 | DM191: 1 | FQ191: 2 | FR191: 4 | IM191: 4
C192: INDIGENA EL TRIUNFO | AD192: 2 | CF192: 2 | DN192: 3 | FQ192: 3 | FR192: 5 | IM192: 5
C193: INDIGENA GUAYABAL | BM193: 1 | CF193: 1 | EO193: 1 | FD193: 1 | FQ193: 2 | FR193: 3 | IM193: 3
C194: INDIGENA PEÑAS ROJAS | AB194: 1 | AI194: 8 | AJ194: 2 | AL194: 4 | AO194: 1 | AP194: 1 | AQ194: 2 | AZ194: 2 | BX194: 1 | CF194: 22 | DG194: 1 | DN194: 1 | DT194: 4 | DU194: 2 | DV194: 2 | DY194: 2 | EB194: 1 | EC194: 2 | EL194: 2 | FE194: 2 | FQ194: 19 | FR194: 41 | IM194: 41
C195: INDIGENA PUERTO NARANJO | DG195: 1 | DZ195: 1 | FQ195: 2 | FR195: 2 | IM195: 2
C196: INDIGENA SAN JOSE DEL CUERAZO | AB196: 2 | AN196: 1 | CF196: 3 | DK196: 6 | FQ196: 6 | FR196: 9 | IM196: 9
C197: INDIGENA TEOFILA ARENOSA | AI197: 1 | CF197: 1 | DT197: 1 | FQ197: 1 | FR197: 2 | IM197: 2
C198: SEDE INDIGENA RESGUARDO SAN MIGUEL | AB198: 1 | AD198: 2 | AI198: 1 | CF198: 4 | DM198: 1 | EC198: 1 | FQ198: 2 | FR198: 6 | IM198: 6
C199: I.E.R. LA CABAÑITA | FE199: 1 | FQ199: 1 | FR199: 1 | IM199: 1
C200: DIVINO NIÑO | FE200: 1 | FQ200: 1 | FR200: 1 | IM200: 1
C201: I.E.R. LAS MERCEDES | AC201: 1 | AQ201: 1 | CF201: 2 | EB201: 2 | FQ201: 2 | FR201: 4 | IM201: 4
C202: BAJO SEVILLA | AQ202: 1 | CF202: 1 | EB202: 2 | FQ202: 2 | FR202: 3 | IM202: 3
... 19 more rows

Sheet 5
B1: MATRICULA EN DISCAPACIDAD POR MUNICIPIO,E.E, ZONA Y GENERO
D3: R | AA3: Total R | AB3: U | BB3: Total U | BC3: Total general
D4: FEMENINO | O4: Total FEMENINO | P4: MASCULINO | Z4: Total MASCULINO | AB4: FEMENINO | AN4: Total FEMENINO | AO4: MASCULINO | BA4: Total MASCULINO
B5: MUNICIPIO | C5: INSTITUCION | D5: DI-COGNITIVO | E5: LIMITACIÓN FISICA... | F5: MÚLTIPLE DISCAPAC... | G5: OTRA DISCAPACIDAD | H5: SA-USUARIO DE LSC | I5: SISTÉMICA | J5: SORDOCEGUERA | K5: SV-BAJA VISIÓN | L5: SV-CEGUERA | M5: TRANSTORNO DEL ES... | N5: VOZ Y HABLA | P5: DI-COGNITIVO | Q5: LIMITACIÓN FISICA... | R5: MÚLTIPLE DISCAPAC... | S5: OTRA DISCAPACIDAD | T5: SA-USUARIO DE CAS... | U5: SA-USUARIO DE LSC | V5: SV-BAJA VISIÓN | W5: SV-CEGUERA | X5: TRANSTORNO DEL ES... | Y5: VOZ Y HABLA | AB5: DI-COGNITIVO | AC5: LIMITACIÓN FISICA... | AD5: MÚLTIPLE DISCAPAC... | AE5: OTRA DISCAPACIDAD | AF5: PSICOSOCIAL | AG5: SA-USUARIO DE CAS... | AH5: SA-USUARIO DE LSC | AI5: SISTÉMICA | AJ5: SORDOCEGUERA | AK5: SV-BAJA VISIÓN | AL5: SV-CEGUERA | AM5: VOZ Y HABLA | AO5: DI-COGNITIVO | AP5: LIMITACIÓN FISICA... | AQ5: MÚLTIPLE DISCAPAC... | AR5: OTRA DISCAPACIDAD | AS5: PSICOSOCIAL | AT5: SA-USUARIO DE CAS... | AU5: SA-USUARIO DE LSC | AV5: SORDOCEGUERA | AW5: SV-BAJA VISIÓN | AX5: SV-CEGUERA | AY5: TRANSTORNO DEL ES... | AZ5: VOZ Y HABLA
B6: ALBANIA | C6: C.E LA CHORROSA | R6: 1 | Z6: 1 | AA6: 1 | BC6: 1
C7: I.E ALBANIA | AB7: 1 | AN7: 1 | AP7: 1 | AT7: 2 | AW7: 3 | BA7: 6 | BB7: 7 | BC7: 7
C8: I.E EL DORADO | D8: 1 | F8: 1 | G8: 2 | O8: 4 | P8: 1 | R8: 1 | S8: 1 | Y8: 1 | Z8: 4 | AA8: 8 | BC8: 8
B9: BELÉN DE LOS ANDAQUIES | C9: I. E. R. PUEBLO NUEVO | K9: 1 | O9: 1 | Q9: 1 | Z9: 1 | AA9: 2 | BC9: 2
C10: I.E AGROTECNICO MIXTO | AB10: 5 | AD10: 1 | AE10: 2 | AK10: 4 | AN10: 12 | AO10: 3 | AQ10: 1 | AV10: 2 | BA10: 6 | BB10: 18 | BC10: 18
C11: I.E ALTO SARABANDO | D11: 1 | O11: 1 | P11: 1 | Z11: 1 | AA11: 2 | BC11: 2
C12: I.E GABRIELA MISTRAL | AK12: 1 | AN12: 1 | AO12: 4 | AR12: 1 | AX12: 1 | BA12: 6 | BB12: 7 | BC12: 7
C13: I.E RURAL EL PORTAL LA MONO | D13: 1 | O13: 1 | P13: 2 | Z13: 2 | AA13: 3 | BC13: 3
C14: I.E SAN LUIS | F14: 1 | O14: 1 | R14: 1 | Z14: 1 | AA14: 2 | BC14: 2
B15: CARTAGENA DEL CHAIRÁ | C15: I. E. R. LA ESMERALDA | K15: 1 | O15: 1 | P15: 1 | Z15: 1 | AA15: 2 | BC15: 2
C16: I. E. R. LOS CRISTALES | P16: 1 | Z16: 1 | AA16: 1 | BC16: 1
C17: I. E. R. MONSERRATE | E17: 1 | O17: 1 | AA17: 1 | BC17: 1
C18: I. E. R. PEÑAS COLORADAS | P18: 1 | Z18: 1 | AA18: 1 | BC18: 1
C19: I. E. R. SANTAFE DEL CAGUAN | R19: 2 | Z19: 2 | AA19: 2 | BC19: 2
C20: I.E AGROECOLOGICO AMAZONICO | AB20: 3 | AE20: 2 | AL20: 1 | AN20: 6 | AO20: 3 | AP20: 1 | AQ20: 1 | AX20: 1 | BA20: 6 | BB20: 12 | BC20: 12
C21: I.E EL CHAIRA JOSE MARIA CORDOBA | D21: 2 | O21: 2 | Q21: 1 | Z21: 1 | AA21: 3 | AB21: 4 | AC21: 1 | AJ21: 1 | AM21: 1 | AN21: 7 | AO21: 4 | AU21: 2 | AZ21: 2 | BA21: 8 | BB21: 15 | BC21: 18
C22: I.E. R. DIVINO NIÑO | E22: 1 | K22: 4 | O22: 5 | U22: 1 | V22: 4 | Y22: 1 | Z22: 6 | AA22: 11 | BC22: 11
C23: I.E. R. EL EDEN | D23: 1 | F23: 2 | K23: 1 | O23: 4 | P23: 1 | Z23: 1 | AA23: 5 | BC23: 5
C24: I.E. R. LA SARDINATA | R24: 1 | Z24: 1 | AA24: 1 | BC24: 1
C25: I.E. R. MIXTA MARIA LUISA DE MORENO | D25: 1 | O25: 1 | AA25: 1 | BC25: 1
C26: I.E. R. SAN PEDRO CLAVER | G26: 1 | O26: 1 | AA26: 1 | BC26: 1
C27: I.E.R JOSE ANTONIO GALAN | G27: 1 | L27: 1 | O27: 2 | AA27: 2 | BC27: 2
B28: CURILLO | C28: C.E. EL LIBERTADOR | D28: 2 | O28: 2 | P28: 3 | V28: 1 | Z28: 4 | AA28: 6 | BC28: 6
C29: I.E ANGEL CUNIBERTI | AB29: 7 | AC29: 2 | AD29: 2 | AE29: 1 | AG29: 1 | AK29: 29 | AM29: 1 | AN29: 43 | AO29: 7 | AQ29: 3 | AR29: 1 | AW29: 19 | AX29: 1 | AZ29: 1 | BA29: 32 | BB29: 75 | BC29: 75
C30: I.E. R. HORIZONTE | D30: 2 | F30: 1 | O30: 3 | R30: 2 | V30: 1 | Y30: 1 | Z30: 4 | AA30: 7 | BC30: 7
B31: EL DONCELLO | C31: I.E CORAZON INMACULADO DE MARIA | AK31: 2 | AN31: 2 | AX31: 1 | BA31: 1 | BB31: 3 | BC31: 3
C32: I.E JORGE ABEL MOLINA | AB32: 2 | AE32: 3 | AK32: 2 | AN32: 7 | AO32: 5 | AR32: 4 | AW32: 9 | AX32: 1 | BA32: 19 | BB32: 26 | BC32: 26
C33: I.E R. PUERTO MANRIQUE | Q33: 1 | Z33: 1 | AA33: 1 | BC33: 1
C34: I.E R. SIMON BOLIVAR | G34: 1 | O34: 1 | P34: 1 | Z34: 1 | AA34: 2 | BC34: 2
C35: I.E RUFINO QUICHOYA | AB35: 1 | AK35: 2 | AN35: 3 | AO35: 1 | AP35: 1 | AW35: 2 | AZ35: 1 | BA35: 5 | BB35: 8 | BC35: 8
C36: I.E. MARCO FIDEL SUAREZ | AE36: 1 | AN36: 1 | AO36: 1 | BA36: 1 | BB36: 2 | BC36: 2
C37: I.E. R. BERLIN | J37: 1 | M37: 1 | O37: 2 | P37: 1 | Z37: 1 | AA37: 3 | BC37: 3
C38: I.E. R. LA CEIBA | D38: 2 | O38: 2 | AA38: 2 | BC38: 2
B39: EL PAUJIL | C39: I.E AGROECOLOGICO AMAZONICO | D39: 1 | F39: 1 | K39: 1 | O39: 3 | V39: 1 | Z39: 1 | AA39: 4 | AB39: 8 | AC39: 3 | AJ39: 1 | AM39: 1 | AN39: 13 | AO39: 1 | AP39: 1 | AZ39: 1 | BA39: 3 | BB39: 16 | BC39: 20
C40: I.E NUESTRA SE¿ORA DE LAS MERCEDES | AK40: 1 | AN40: 1 | AO40: 1 | AY40: 1 | BA40: 2 | BB40: 3 | BC40: 3
C41: I.E. R. BOLIVIA | E41: 1 | O41: 1 | S41: 1 | Z41: 1 | AA41: 2 | BC41: 2
C42: I.E.R. SANTA TERESA | D42: 1 | O42: 1 | Q42: 1 | Z42: 1 | AA42: 2 | BC42: 2
B43: LA MONTAÑITA | C43: C.E. EL JARDIN | U43: 1 | Z43: 1 | AA43: 1 | BC43: 1
C44: I.E NUESTRA SEÑORA DEL PERPETUO SOCORRO | AB44: 2 | AC44: 1 | AD44: 2 | AK44: 4 | AN44: 9 | AQ44: 3 | AW44: 2 | BA44: 5 | BB44: 14 | BC44: 14
C45: I.E R. MATEGUADUA | D45: 1 | O45: 1 | Q45: 1 | Z45: 1 | AA45: 2 | BC45: 2
C46: I.E RURAL SABIO CALDAS | D46: 2 | F46: 1 | K46: 1 | O46: 4 | P46: 1 | Q46: 1 | V46: 1 | Z46: 3 | AA46: 7 | BC46: 7
C47: I.E. R. BRISAS DE SAN ISIDRO | F47: 1 | O47: 1 | AA47: 1 | BC47: 1
C48: I.E. R. PALMA ARRIBA | S48: 1 | V48: 1 | Z48: 2 | AA48: 2 | BC48: 2
B49: MILÁN | C49: I.E MARCO FIDEL SUAREZ | AB49: 2 | AL49: 1 | AM49: 1 | AN49: 4 | AP49: 1 | AQ49: 1 | AY49: 1 | BA49: 3 | BB49: 7 | BC49: 7
C50: I.E.R ANGEL RICARDO ACOSTA | D50: 1 | G50: 3 | H50: 1 | O50: 5 | P50: 4 | S50: 3 | Z50: 7 | AA50: 12 | BC50: 12
C51: I.E.R LA RASTRA | F51: 1 | O51: 1 | R51: 3 | Z51: 3 | AA51: 4 | BC51: 4
C52: I.E.R. ILUSION MATICURU | F52: 1 | G52: 1 | O52: 2 | S52: 1 | Z52: 1 | AA52: 3 | BC52: 3
C53: I.E.R. LA ANGUILLA | T53: 1 | Z53: 1 | AA53: 1 | BC53: 1
C54: I.E.R. MAMA BWE REOJACHE | G54: 1 | O54: 1 | AA54: 1 | BC54: 1
B55: MORELIA | C55: C.E PALMARITO | G55: 1 | O55: 1 | P55: 1 | Z55: 1 | AA55: 2 | BC55: 2
C56: I.E CERVANTES | AQ56: 1 | AR56: 2 | BA56: 3 | BB56: 3 | BC56: 3
B57: PUERTO RICO | C57: C.E EL AGUILA | S57: 2 | Z57: 2 | AA57: 2 | BC57: 2
C58: I.E ACEVEDO Y GOMEZ | AB58: 2 | AE58: 1 | AK58: 2 | AN58: 5 | AO58: 2 | AR58: 1 | AX58: 1 | AY58: 1 | BA58: 5 | BB58: 10 | BC58: 10
C59: I.E SAGRADOS CORAZONES | AB59: 1 | AK59: 2 | AN59: 3 | AO59: 2 | AR59: 1 | BA59: 3 | BB59: 6 | BC59: 6
C60: I.E. R. JORGE ELIECER GAITAN | D60: 1 | G60: 1 | O60: 2 | P60: 4 | Z60: 4 | AA60: 6 | BC60: 6
C61: I.E. R. LA AGUILILLA | P61: 1 | S61: 1 | V61: 1 | Z61: 3 | AA61: 3 | BC61: 3
C62: I.E. R. LA ESMERALDA | D62: 1 | O62: 1 | P62: 2 | Z62: 2 | AA62: 3 | BC62: 3
C63: I.E.R. CAMPO HERMOSO | P63: 1 | Z63: 1 | AA63: 1 | BC63: 1
B64: SAN JOSÉ DEL FRAGUA | C64: I.E DON QUIJOTE | AD64: 2 | AE64: 3 | AK64: 2 | AN64: 7 | AQ64: 1 | BA64: 1 | BB64: 8 | BC64: 8
C65: I.E PARROQUIAL | AE65: 2 | AN65: 2 | AO65: 1 | BA65: 1 | BB65: 3 | BC65: 3
C66: I.E. R. LA GALLINETA | X66: 1 | Z66: 1 | AA66: 1 | BC66: 1
C67: I.E. R. PLATANILLO | P67: 1 | V67: 1 | Z67: 2 | AA67: 2 | BC67: 2
C68: I.E. RURAL LAS LAJAS | G68: 1 | O68: 1 | P68: 1 | W68: 1 | Z68: 2 | AA68: 3 | BC68: 3
C69: I.E.R. DIVINO NIÑO | P69: 1 | Z69: 1 | AA69: 1 | BC69: 1
B70: SAN VICENTE DEL CAGUÁN | C70: C.E. GIBRALTAR | Y70: 2 | Z70: 2 | AA70: 2 | BC70: 2
C71: C.E. INTERCULTURAL INDIGENA SAN VICENTE DEL CAGUAN | R71: 1 | Z71: 1 | AA71: 1 | BC71: 1
C72: C.E. SANTA ROSA | I72: 1 | O72: 1 | AA72: 1 | BC72: 1
C73: I. E. R. LOS FUNDADORES | P73: 1 | Z73: 1 | AA73: 1 | BC73: 1
C74: I.E DANTE ALIGHIERI | AB74: 3 | AC74: 1 | AD74: 3 | AE74: 2 | AF74: 2 | AI74: 1 | AK74: 38 | AM74: 1 | AN74: 51 | AO74: 7 | AP74: 4 | AQ74: 3 | AR74: 2 | AS74: 1 | AW74: 21 | AZ74: 6 | BA74: 44 | BB74: 95 | BC74: 95
C75: I.E DOMINGO SAVIO | AB75: 2 | AD75: 1 | AF75: 1 | AN75: 4 | AO75: 5 | AP75: 1 | AQ75: 1 | AS75: 2 | AW75: 1 | BA75: 10 | BB75: 14 | BC75: 14
C76: I.E PROMOCION SOCIAL | AD76: 1 | AE76: 2 | AF76: 5 | AH76: 1 | AI76: 1 | AK76: 8 | AN76: 18 | AO76: 6 | AS76: 3 | AU76: 1 | AW76: 11 | AZ76: 4 | BA76: 25 | BB76: 43 | BC76: 43
C77: I.E VERDE AMAZONICO | AB77: 4 | AC77: 1 | AE77: 1 | AK77: 7 | AN77: 13 | AO77: 1 | AQ77: 2 | AR77: 1 | AW77: 1 | BA77: 5 | BB77: 18 | BC77: 18
C78: I.E. R. BRISAS DEL LOSADA | V78: 1 | Z78: 1 | AA78: 1 | BC78: 1
C79: I.E. R. CRISTALINA TRONCALES | P79: 1 | Z79: 1 | AA79: 1 | BC79: 1
C80: I.E. R. LA SOMBRA | V80: 1 | Z80: 1 | AA80: 1 | BC80: 1
C81: I.E. R. LA UNION | G81: 3 | O81: 3 | S81: 1 | V81: 1 | Z81: 2 | AA81: 5 | BC81: 5
C82: I.E. R. LOS POZOS | E82: 1 | K82: 1 | O82: 2 | P82: 1 | V82: 3 | Z82: 4 | AA82: 6 | BC82: 6
C83: I.E. R. SAN JUAN DEL LOSADA | F83: 1 | O83: 1 | P83: 2 | R83: 1 | Z83: 3 | AA83: 4 | BC83: 4
C84: I.E.R. ARENOSO | I84: 1 | K84: 1 | O84: 2 | S84: 1 | Z84: 1 | AA84: 3 | BC84: 3
C85: I.E.R. BOCANA POSETAS | D85: 1 | O85: 1 | AA85: 1 | BC85: 1
C86: I.E.R. CAMPO HERMOSO | D86: 1 | F86: 1 | O86: 2 | P86: 2 | Z86: 2 | AA86: 4 | BC86: 4
C87: I.E.R. CRISTALINA DEL LOSADA | P87: 1 | Z87: 1 | AA87: 1 | BC87: 1
C88: I.E.R. CRISTO REY (ANTONIO NARIÑO) | D88: 1 | F88: 1 | O88: 2 | R88: 2 | Z88: 2 | AA88: 4 | BC88: 4
C89: I.E.R. GUAYABAL | D89: 1 | O89: 1 | Q89: 2 | Z89: 2 | AA89: 3 | BC89: 3
C90: I.E.R. LA SAMARIA | Q90: 1 | Z90: 1 | AA90: 1 | BC90: 1
C91: I.E.R. LOS ANDES | V91: 1 | Z91: 1 | AA91: 1 | BC91: 1
C92: I.E.R. VILLA CARMONA | P92: 1 | Z92: 1 | AA92: 1 | BC92: 1
B93: SOLANO | C93: I.E CAMPO ELIAS MARULANDA | AP93: 2 | AQ93: 1 | BA93: 3 | BB93: 3 | BC93: 3
C94: I.E.R. INDIGENA COEMANI FORTUNATO REALLY | F94: 1 | O94: 1 | R94: 1 | V94: 1 | Z94: 2 | AA94: 3 | BC94: 3
C95: I.E.R. INDIGENA COREGUAJE | F95: 1 | O95: 1 | AA95: 1 | BC95: 1
C96: I.E.R. LA CABAÑITA | D96: 1 | L96: 1 | O96: 2 | AA96: 2 | BC96: 2
C97: I.E.R. LAS MERCEDES | P97: 1 | Z97: 1 | AA97: 1 | BC97: 1
B98: SOLITA | C98: I.E INTERNADO RURAL SOLITA | AB98: 10 | AC98: 1 | AJ98: 1 | AK98: 6 | AN98: 18 | AO98: 2 | AP98: 3 | AQ98: 1 | AW98: 3 | AX98: 1 | BA98: 10 | BB98: 28 | BC98: 28
C99: I.E.R. CHONTILLOSA MEDIO | D99: 1 | G99: 1 | O99: 2 | P99: 3 | W99: 1 | Z99: 4 | AA99: 6 | BC99: 6
C100: INSTITUCION EDUCATIVA RURAL JOSE CELESTINO MUTIS | T100: 1 | V100: 1 | Z100: 2 | AA100: 2 | BC100: 2
B101: VALPARAÍSO | C101: I.E VALPARAISO | AC101: 1 | AN101: 1 | AO101: 1 | AW101: 1 | BA101: 2 | BB101: 3 | BC101: 3
C102: I.E.R. LA MUÑOZ | D102: 1 | O102: 1 | AA102: 1 | BC102: 1
C103: I.E.R. MIRAVALLE SANTROPEL | D103: 1 | O103: 1 | P103: 1 | R103: 1 | S103: 1 | Z103: 3 | AA103: 4 | BC103: 4
C104: I.E.R. NIEVES ARRIBA | D104: 2 | O104: 2 | AA104: 2 | BC104: 2
C105: I.E.R. PLAYA RICA | F105: 1 | N105: 1 | O105: 2 | AA105: 2 | BC105: 2
C106: I.E.R. SANTIAGO DE LA SELVA | D106: 1 | N106: 1 | O106: 2 | AA106: 2 | BC106: 2
B107: Total general | D107: 32 | E107: 4 | F107: 16 | G107: 17 | H107: 1 | I107: 2 | J107: 1 | K107: 11 | L107: 2 | M107: 1 | N107: 2 | O107: 89 | P107: 44 | Q107: 9 | R107: 17 | S107: 13 | T107: 2 | U107: 2 | V107: 20 | W107: 2 | X107: 1 | Y107: 5 | Z107: 115 | AA107: 204 | AB107: 57 | AC107: 11 | AD107: 12 | AE107: 20 | AF107: 8 | AG107: 1 | AH107: 1 | AI107: 2 | AJ107: 3 | AK107: 110 | AL107: 2 | AM107: 5 | AN107: 232 | AO107: 57 | AP107: 15 | AQ107: 19 | AR107: 13 | AS107: 6 | AT107: 2 | AU107: 3 | AV107: 2 | AW107: 73 | AX107: 7 | AY107: 3 | AZ107: 15 | BA107: 215 | BB107: 447 | BC107: 651

Sheet 5.1
A1: MATRICULA OFICIAL EN DISCAPACIDAD POR MUNICIPIO, ZONA Y GENERO
B4: R | Y4: Total R | Z4: U | AZ4: Total U | BA4: Total general
B5: FEMENINO | M5: Total FEMENINO | N5: MASCULINO | X5: Total MASCULINO | Z5: FEMENINO | AL5: Total FEMENINO | AM5: MASCULINO | AY5: Total MASCULINO
A6: MUNICIPIO | B6: DI-COGNITIVO | C6: LIMITACIÓN FISICA... | D6: MÚLTIPLE DISCAPAC... | E6: OTRA DISCAPACIDAD | F6: SA-USUARIO DE LSC | G6: SISTÉMICA | H6: SORDOCEGUERA | I6: SV-BAJA VISIÓN | J6: SV-CEGUERA | K6: TRANSTORNO DEL ES... | L6: VOZ Y HABLA | N6: DI-COGNITIVO | O6: LIMITACIÓN FISICA... | P6: MÚLTIPLE DISCAPAC... | Q6: OTRA DISCAPACIDAD | R6: SA-USUARIO DE CAS... | S6: SA-USUARIO DE LSC | T6: SV-BAJA VISIÓN | U6: SV-CEGUERA | V6: TRANSTORNO DEL ES... | W6: VOZ Y HABLA | Z6: DI-COGNITIVO | AA6: LIMITACIÓN FISICA... | AB6: MÚLTIPLE DISCAPAC... | AC6: OTRA DISCAPACIDAD | AD6: PSICOSOCIAL | AE6: SA-USUARIO DE CAS... | AF6: SA-USUARIO DE LSC | AG6: SISTÉMICA | AH6: SORDOCEGUERA | AI6: SV-BAJA VISIÓN | AJ6: SV-CEGUERA | AK6: VOZ Y HABLA | AM6: DI-COGNITIVO | AN6: LIMITACIÓN FISICA... | AO6: MÚLTIPLE DISCAPAC... | AP6: OTRA DISCAPACIDAD | AQ6: PSICOSOCIAL | AR6: SA-USUARIO DE CAS... | AS6: SA-USUARIO DE LSC | AT6: SORDOCEGUERA | AU6: SV-BAJA VISIÓN | AV6: SV-CEGUERA | AW6: TRANSTORNO DEL ES... | AX6: VOZ Y HABLA
A7: ALBANIA | B7: 1 | D7: 1 | E7: 2 | M7: 4 | N7: 1 | P7: 2 | Q7: 1 | W7: 1 | X7: 5 | Y7: 9 | Z7: 1 | AL7: 1 | AN7: 1 | AR7: 2 | AU7: 3 | AY7: 6 | AZ7: 7 | BA7: 16
A8: BELÉN DE LOS ANDAQUIES | B8: 2 | D8: 1 | I8: 1 | M8: 4 | N8: 3 | O8: 1 | P8: 1 | X8: 5 | Y8: 9 | Z8: 5 | AB8: 1 | AC8: 2 | AI8: 5 | AL8: 13 | AM8: 7 | AO8: 1 | AP8: 1 | AT8: 2 | AV8: 1 | AY8: 12 | AZ8: 25 | BA8: 34
A9: CARTAGENA DEL CHAIRÁ | B9: 4 | C9: 2 | D9: 2 | E9: 2 | I9: 6 | J9: 1 | M9: 17 | N9: 4 | O9: 1 | P9: 3 | S9: 1 | T9: 4 | W9: 1 | X9: 14 | Y9: 31 | Z9: 7 | AA9: 1 | AC9: 2 | AH9: 1 | AJ9: 1 | AK9: 1 | AL9: 13 | AM9: 7 | AN9: 1 | AO9: 1 | AS9: 2 | AV9: 1 | AX9: 2 | AY9: 14 | AZ9: 27 | BA9: 58
A10: CURILLO | B10: 4 | D10: 1 | M10: 5 | N10: 3 | P10: 2 | T10: 2 | W10: 1 | X10: 8 | Y10: 13 | Z10: 7 | AA10: 2 | AB10: 2 | AC10: 1 | AE10: 1 | AI10: 29 | AK10: 1 | AL10: 43 | AM10: 7 | AO10: 3 | AP10: 1 | AU10: 19 | AV10: 1 | AX10: 1 | AY10: 32 | AZ10: 75 | BA10: 88
A11: EL DONCELLO | B11: 2 | E11: 1 | H11: 1 | K11: 1 | M11: 5 | N11: 2 | O11: 1 | X11: 3 | Y11: 8 | Z11: 3 | AC11: 4 | AI11: 6 | AL11: 13 | AM11: 7 | AN11: 1 | AP11: 4 | AU11: 11 | AV11: 2 | AX11: 1 | AY11: 26 | AZ11: 39 | BA11: 47
A12: EL PAUJIL | B12: 2 | C12: 1 | D12: 1 | I12: 1 | M12: 5 | O12: 1 | Q12: 1 | T12: 1 | X12: 3 | Y12: 8 | Z12: 8 | AA12: 3 | AH12: 1 | AI12: 1 | AK12: 1 | AL12: 14 | AM12: 2 | AN12: 1 | AW12: 1 | AX12: 1 | AY12: 5 | AZ12: 19 | BA12: 27
A13: LA MONTAÑITA | B13: 3 | D13: 2 | I13: 1 | M13: 6 | N13: 1 | O13: 2 | Q13: 1 | S13: 1 | T13: 2 | X13: 7 | Y13: 13 | Z13: 2 | AA13: 1 | AB13: 2 | AI13: 4 | AL13: 9 | AO13: 3 | AU13: 2 | AY13: 5 | AZ13: 14 | BA13: 27
A14: MILÁN | B14: 1 | D14: 2 | E14: 5 | F14: 1 | M14: 9 | N14: 4 | P14: 3 | Q14: 4 | R14: 1 | X14: 12 | Y14: 21 | Z14: 2 | AJ14: 1 | AK14: 1 | AL14: 4 | AN14: 1 | AO14: 1 | AW14: 1 | AY14: 3 | AZ14: 7 | BA14: 28
A15: MORELIA | E15: 1 | M15: 1 | N15: 1 | X15: 1 | Y15: 2 | AO15: 1 | AP15: 2 | AY15: 3 | AZ15: 3 | BA15: 5
A16: PUERTO RICO | B16: 2 | E16: 1 | M16: 3 | N16: 8 | Q16: 3 | T16: 1 | X16: 12 | Y16: 15 | Z16: 3 | AC16: 1 | AI16: 4 | AL16: 8 | AM16: 4 | AP16: 2 | AV16: 1 | AW16: 1 | AY16: 8 | AZ16: 16 | BA16: 31
A17: SAN JOSÉ DEL FRAGUA | E17: 1 | M17: 1 | N17: 3 | T17: 1 | U17: 1 | V17: 1 | X17: 6 | Y17: 7 | AB17: 2 | AC17: 5 | AI17: 2 | AL17: 9 | AM17: 1 | AO17: 1 | AY17: 2 | AZ17: 11 | BA17: 18
A18: SAN VICENTE DEL CAGUÁN | B18: 4 | C18: 1 | D18: 3 | E18: 3 | G18: 2 | I18: 2 | M18: 15 | N18: 9 | O18: 3 | P18: 4 | Q18: 2 | T18: 7 | W18: 2 | X18: 27 | Y18: 42 | Z18: 9 | AA18: 2 | AB18: 5 | AC18: 5 | AD18: 8 | AF18: 1 | AG18: 2 | AI18: 53 | AK18: 1 | AL18: 86 | AM18: 19 | AN18: 5 | AO18: 6 | AP18: 3 | AQ18: 6 | AS18: 1 | AU18: 34 | AX18: 10 | AY18: 84 | AZ18: 170 | BA18: 212
A19: SOLANO | B19: 1 | D19: 2 | J19: 1 | M19: 4 | N19: 1 | P19: 1 | T19: 1 | X19: 3 | Y19: 7 | AN19: 2 | AO19: 1 | AY19: 3 | AZ19: 3 | BA19: 10
A20: SOLITA | B20: 1 | E20: 1 | M20: 2 | N20: 3 | R20: 1 | T20: 1 | U20: 1 | X20: 6 | Y20: 8 | Z20: 10 | AA20: 1 | AH20: 1 | AI20: 6 | AL20: 18 | AM20: 2 | AN20: 3 | AO20: 1 | AU20: 3 | AV20: 1 | AY20: 10 | AZ20: 28 | BA20: 36
A21: VALPARAÍSO | B21: 5 | D21: 1 | L21: 2 | M21: 8 | N21: 1 | P21: 1 | Q21: 1 | X21: 3 | Y21: 11 | AA21: 1 | AL21: 1 | AM21: 1 | AU21: 1 | AY21: 2 | AZ21: 3 | BA21: 14
A22: Total general | B22: 32 | C22: 4 | D22: 16 | E22: 17 | F22: 1 | G22: 2 | H22: 1 | I22: 11 | J22: 2 | K22: 1 | L22: 2 | M22: 89 | N22: 44 | O22: 9 | P22: 17 | Q22: 13 | R22: 2 | S22: 2 | T22: 20 | U22: 2 | V22: 1 | W22: 5 | X22: 115 | Y22: 204 | Z22: 57 | AA22: 11 | AB22: 12 | AC22: 20 | AD22: 8 | AE22: 1 | AF22: 1 | AG22: 2 | AH22: 3 | AI22: 110 | AJ22: 2 | AK22: 5 | AL22: 232 | AM22: 57 | AN22: 15 | AO22: 19 | AP22: 13 | AQ22: 6 | AR22: 2 | AS22: 3 | AT22: 2 | AU22: 73 | AV22: 7 | AW22: 3 | AX22: 15 | AY22: 215 | AZ22: 447 | BA22: 651

Sheet 6
A1: HISTORICO DE MATRICULA OFICIAL POR GRADOS
B3: GRADO | C3: 2008 | D3: 2009 | E3: 2010 | F3: 2011 | G3: 2012 | H3: 2013 | I3: 2014 | J3: 2015 | K3: 2016
B4: 0 | C4: 6,660 | D4: 5,987 | E4: 5806 | F4: 5894 | G4: 5,577 | H4: 5,752 | I4: 4,589 | J4: 4,131 | K4: 4,475
B5: 1 | C5: 11,691 | D5: 10,975 | E5: 9544 | F5: 9258 | G5: 8,294 | H5: 8,201 | I5: 8,145 | J5: 6,877 | K5: 7,046
B6: 2 | C6: 9,617 | D6: 9,937 | E6: 9,529 | F6: 8,835 | G6: 7,638 | H6: 6,988 | I6: 7,246 | J6: 7,555 | K6: 6,496
B7: 3 | C7: 8,083 | D7: 8,908 | E7: 8,840 | F7: 8,731 | G7: 7,369 | H7: 6,740 | I7: 6,518 | J7: 6,803 | K7: 6,402
B8: 4 | C8: 7,040 | D8: 7,553 | E8: 8,176 | F8: 8,173 | G8: 7,279 | H8: 6,507 | I8: 6,543 | J8: 6,051 | K8: 6,013
B9: 5 | C9: 6,374 | D9: 6,960 | E9: 7,098 | F9: 7,846 | G9: 6,851 | H9: 6,286 | I9: 6,210 | J9: 6,093 | K9: 5,552
B10: 6 | C10: 5,237 | D10: 5,879 | E10: 5,934 | F10: 6,401 | G10: 5,778 | H10: 5,904 | I10: 6,006 | J10: 5,918 | K10: 5,573
B11: 7 | C11: 3,880 | D11: 4,405 | E11: 5,044 | F11: 5,253 | G11: 4,806 | H11: 4,612 | I11: 5,183 | J11: 5,094 | K11: 4,741
B12: 8 | C12: 3,066 | D12: 3,457 | E12: 3,836 | F12: 4,382 | G12: 3,913 | H12: 3,754 | I12: 4,130 | J12: 4,352 | K12: 4,017
B13: 9 | C13: 2,400 | D13: 2,654 | E13: 2,985 | F13: 3,175 | G13: 3,132 | H13: 2,944 | I13: 3,271 | J13: 3,393 | K13: 3,160
B14: 10 | C14: 1,721 | D14: 1,964 | E14: 2,102 | F14: 2,316 | G14: 2,076 | H14: 2,083 | I14: 2,319 | J14: 2,337 | K14: 2,329
B15: 11 | C15: 1,211 | D15: 1,498 | E15: 1,689 | F15: 1,648 | G15: 1,677 | H15: 1,587 | I15: 1,737 | J15: 1,822 | K15: 1,715
B17: CICLO1 | C17: 3,123 | D17: 2,789 | E17: 1932 | F17: 759 | G17: 1,009 | H17: 1,986 | I17: 1 | J17: 0 | K17: 1,527
B18: CICLO2 | C18: 1,273 | D18: 1,910 | E18: 2623 | F18: 3029 | G18: 436 | H18: 493 | I18: 416 | J18: 158 | K18: 115
B19: CICLO3 | C19: 2,468 | D19: 2,246 | E19: 2,428 | F19: 3,813 | G19: 1,936 | H19: 953 | I19: 998 | J19: 1,240 | K19: 1,032
B20: CICLO4 | C20: 1,930 | D20: 2,019 | E20: 2,192 | F20: 1,123 | G20: 1,933 | H20: 1,372 | I20: 1,177 | J20: 1,408 | K20: 1,320
B21: CICLO5 | C21: 1,501 | D21: 1,031 | E21: 443 | F21: 186 | G21: 486 | H21: 649 | I21: 1,137 | J21: 1,245 | K21: 1,277
B22: CICLO6 | C22: 610 | D22: 467 | E22: 2,273 | F22: 1,246 | G22: 764 | H22: 922 | I22: 160 | J22: 193 | K22: 188
B24: ACELERAC | C24: 406 | D24: 301 | E24: 181 | F24: 144 | G24: 135 | H24: 127 | I24: 131 | J24: 118 | K24: 107
B25: TOTAL | C25: =SUM(C4:C24) -> 78,291 | D25: 80,940 | E25: 82,655 | F25: 82,212 | G25: 71,089 | H25: 67,860 | I25: 65,917 | J25: =SUM(J4:J24) -> 64,788 | K25: 63,085

Sheet 6.1
B1: HISTORICO MATRICULA OFICIAL POR MODELO EDUCATIVO
B3: MODELO EDUCATIVO | C3: AÑO
C4: 2008 | D4: 2009 | E4: 2010 | F4: 2011 | G4: 2012 | H4: 2013 | I4: 2014 | J4: 2015 | K4: 2016
B5: TELESECUNDARIA | C5: 568 | D5: 1,244 | E5: 1,575 | F5: 1,820 | G5: 1,594 | H5: 1,285 | I5: 1,275 | J5: 1,412 | K5: 1,160
B6: CAFAM | C6: 3,325 | D6: 2,486 | E6: 3,836 | F6: 5,510 | G6: 594 | H6: 0 | I6: 0 | J6: 0 | K6: 0
B7: ACELERACION DEL APRENDIZAJE | C7: 406 | D7: 301 | E7: 181 | F7: 144 | G7: 135 | H7: 127 | I7: 131 | J7: 118 | K7: 107
B8: CIRCULO DEL APRENDIZAJE | C8: 0 | D8: 0 | E8: 0 | F8: 0 | G8: 90 | H8: 0 | I8: 0 | J8: 0 | K8: 0
B9: POST PRIMARIA | C9: 2,915 | D9: 3,561 | E9: 3,894 | F9: 4,826 | G9: 4,481 | H9: 4,549 | I9: 4,950 | J9: 4,979 | K9: 4,599
B10: EDUCACION TRADICIONAL | C10: 31,246 | D10: 32,111 | E10: 33,790 | F10: 34,431 | G10: 32,058 | H10: 31,218 | I10: 32,599 | J10: 32,947 | K10: 31,172
B11: SER | C11: 2,051 | D11: 0 | E11: 0 | F11: 0 | G11: 270 | H11: 1,971 | I11: 0 | J11: 19 | K11: 42
B12: ESCUELA NUEVA | C12: 29,989 | D12: 31,826 | E12: 30,153 | F12: 29,550 | G12: 25,266 | H12: 22,817 | I12: 21,733 | J12: 19,750 | K12: 18,975
B13: ETNOEDUCACION | C13: 1,333 | D13: 1,125 | E13: 1,027 | F13: 1,196 | G13: 1,126 | H13: 1,203 | I13: 1,170 | J13: 1,159 | K13: 1,392
B14: MEDIA RURAL | C14: 0 | D14: 0 | E14: 0 | F14: 53 | G14: 95 | H14: 140 | I14: 170 | J14: 206 | K14: 256
B15: PREESCOLAR ESCOLARIZADO_ | C15: 0 | D15: 0 | E15: 0 | F15: 0 | G15: 0 | H15: 138 | I15: 0 | J15: 27 | K15: 17
B16: PREESCOLAR NO ESCOLARIZADO/SEMIESCOLARIZADO | C16: 929 | D16: 310 | E16: 144 | F16: 36 | G16: 13 | H16: 8 | I16: 0 | J16: 10 | K16: 11
B17: A CRECER | C17: 0 | D17: 0 | E17: 0 | F17: 0 | G17: 1,001 | H17: 304 | I17: 261 | J17: 0 | K17: 0
B18: PROGRAMA PARA JOVENES EN EXTRAEDAD Y ADULTOS (DECRETO 3011) | C18: 5,529 | D18: 7,976 | E18: 8,055 | F18: 4,646 | G18: 5,330 | H18: 4,100 | I18: 3,628 | J18: 4,225 | K18: 3,890
B19: TOTAL | C19: =SUM(C5:C18) -> 78,291 | D19: 80,940 | E19: 82,655 | F19: 82,212 | G19: 72,053 | H19: 67,860 | I19: 65,917 | J19: =SUM(J5:J18) -> 64,852 | K19: =SUM(K5:K18) -> 61,621

Sheet 6.2
A1: HISTORICO MATRICULA POR NIVELES
A3: AÑO | B3: PREESCOLAR | C3: PRIMARIA | D3: SECUNDARIA | E3: MEDIA | F3: CICLOS | G3: TOTAL
A4: 2004 | B4: 4,825 | C4: 49,417 | D4: 10,745 | E4: 2,256 | F4: 1,445 | G4: =+B4+C4+D4+E4+F4 -> 68,688
A5: 2005 | B5: 6,236 | C5: 49,388 | D5: 12,510 | E5: 2,529 | F5: 2,625 | G5: 73,288
A6: 2006 | B6: 6,221 | C6: 49,059 | D6: 13,428 | E6: 2,771 | F6: 6,206 | G6: 77,685
A7: 2007 | B7: 5,628 | C7: 48,047 | D7: 14,730 | E7: 2,874 | F7: 7,252 | G7: 78,531
A8: 2008 | B8: 6,660 | C8: 43,211 | D8: 14,583 | E8: 2,932 | F8: 10,905 | G8: 78,291
A9: 2009 | B9: 5,987 | C9: 44,634 | D9: 16,395 | E9: 3,462 | F9: 10,462 | G9: 80,940
A10: 2010 | B10: 5,799 | C10: =13825+28841 -> 42,666 | D10: =9521+7787 -> 17,308 | E10: =2956+860 -> 3,816 | F10: =6400+5779 -> 12,179 | G10: 81,768
A11: 2011 | B11: 5,894 | C11: 42,987 | D11: 19,211 | E11: 3,964 | F11: 10,156 | G11: 82,212
A12: 2012 | B12: 5,577 | C12: 37,566 | D12: 17,629 | E12: 3,753 | F12: 6564 | G12: 71,089
A13: 2013 | B13: 5,752 | C13: 34,849 | D13: 17,214 | E13: 3,670 | F13: 6375 | G13: 67,860
A14: 2014 | B14: 4,589 | C14: 34,793 | D14: 18,590 | E14: 4,056 | F14: 3,889 | G14: 65,917
A15: 2015 | B15: 4,195 | C15: 33,497 | D15: 18,757 | E15: 4,159 | F15: 4,244 | G15: =SUM(B15:F15) -> 64,852
A16: 2016 | B16: 4,538 | C16: 31,616 | D16: 17,491 | E16: 4,044 | F16: 3,932 | G16: 61,621

Sheet 6.3
A1: HISTORICO DE LA MATRICULA OFICIAL Y PRIVADA POR ZONA Y NIVELES
A3: ZONA | B3: AÑO | C3: OFICIAL | L3: PRIVADA
C4: 2008 | D4: 2009 | E4: 2010 | F4: 2011 | G4: 2012 | H4: 2013 | I4: 2014 | J4: 2015 | K4: 2016 | L4: 2008 | M4: 2009 | N4: 2010 | O4: 2011 | P4: 2012 | Q4: 2013 | R4: 2014 | S4: 2015 | T4: 2016
A5: URBANA | B5: PREESCOLAR | C5: 2,887 | D5: 2,077 | E5: 2,105 | F5: 2,041 | G5: 2,145 | H5: 2,154 | I5: 2,000 | J5: 2,007 | K5: 1,897 | L5: 27 | M5: 104 | N5: 101 | O5: 113 | P5: 97 | Q5: 120 | R5: 105 | S5: 133 | T5: 99
B6: PRIMARIA | C6: 18,105 | D6: 13,667 | E6: 14,313 | F6: 13,921 | G6: 12,743 | H6: 12,635 | I6: 12,556 | J6: 12,492 | K6: 11,904 | L6: 119 | M6: 215 | N6: 135 | O6: 164 | P6: 188 | Q6: 169 | R6: 182 | S6: 212 | T6: 217
B7: SECUNDARIA | C7: 10,307 | D7: 8,912 | E7: 9,534 | F7: 9,600 | G7: 8,927 | H7: 8,762 | I7: 9,681 | J7: 9,370 | K7: 8,976 | L7: 29 | M7: 50 | N7: 22 | O7: 42 | P7: 48 | Q7: 46 | R7: 77 | S7: 81 | T7: 83
B8: MEDIA | C8: 2,619 | D8: 2,642 | E8: 2,910 | F8: 2,882 | G8: 2,771 | H8: 2,675 | I8: 2,868 | J8: 2,943 | K8: 2,836 | L8: 0 | M8: 0 | N8: 0 | O8: 0 | P8: 0 | Q8: 0 | R8: 5 | S8: 21 | T8: 25
B9: CICLOS | C9: 7,200 | D9: 5,938 | E9: 6,196 | F9: 3,374 | G9: 3,539 | H9: 3,683 | I9: 2,483 | J9: 2,599 | K9: 2,422 | L9: 182 | M9: 494 | N9: 830 | O9: 960 | P9: 415 | Q9: 250 | R9: 159 | S9: 183 | T9: 235
B10: TOTAL | C10: =SUM(C5:C9) -> 41,118 | D10: =SUM(D5:D9) -> 33,236 | E10: =SUM(E5:E9) -> 35,058 | F10: =SUM(F5:F9) -> 31,818 | G10: 30,125 | H10: 29,909 | I10: 29,588 | J10: =SUM(J5:J9) -> 29,411 | K10: =SUM(K5:K9) -> 28,035 | L10: 357 | M10: 863 | N10: 1,088 | O10: 1,279 | P10: 748 | Q10: 585 | R10: 528 | S10: 630 | T10: 659
A11: RURAL | B11: PREESCOLAR | C11: 3,773 | D11: 3,910 | E11: 3,701 | F11: 3,853 | G11: 3,432 | H11: 3,598 | I11: 2,589 | J11: 2,055 | K11: 2,542 | L11: 0 | M11: 7 | N11: 41 | O11: 0 | P11: 0 | Q11: 0 | R11: 0 | S11: 0 | T11: 0
B12: PRIMARIA | C12: 25,106 | D12: 30,967 | E12: 29,055 | F12: 29,066 | G12: 24,823 | H12: 22,214 | I12: 22,237 | J12: 20,793 | K12: 19,495 | L12: 0 | M12: 15 | N12: 124 | O12: 0 | P12: 0 | Q12: 0 | R12: 0 | S12: 0 | T12: 0
B13: SECUNDARIA | C13: 4,276 | D13: 7,483 | E13: 8,265 | F13: 9,611 | G13: 8,702 | H13: 8,452 | I13: 8,909 | J13: 9,306 | K13: 8,432 | L13: 0 | M13: 24 | N13: 27 | O13: 0 | P13: 0 | Q13: 0 | R13: 0 | S13: 0 | T13: 0
B14: MEDIA | C14: 313 | D14: 820 | E14: 881 | F14: 1,082 | G14: 982 | H14: 995 | I14: 1,188 | J14: 1,195 | K14: 1,183 | L14: 0 | M14: 11 | N14: 12 | O14: 0 | P14: 0 | Q14: 0 | R14: 0 | S14: 0 | T14: 0
B15: CICLOS | C15: 3,705 | D15: 4,524 | E15: 5,695 | F15: 6,782 | G15: 3,025 | H15: 2,692 | I15: 1,406 | J15: 1,462 | K15: 1,275 | L15: 0 | M15: 125 | N15: 272 | O15: 30 | P15: 216 | Q15: 0 | R15: 0 | S15: 0 | T15: 0
B16: TOTAL | C16: =SUM(C11:C15) -> 37,173 | D16: 47,704 | E16: 47,597 | F16: 50,394 | G16: 40,964 | H16: 37,951 | I16: 36,329 | J16: =SUM(J11:J15) -> 34,811 | K16: =SUM(K11:K15) -> 32,927 | L16: 0 | M16: 182 | N16: 476 | O16: 30 | P16: 216 | Q16: 0 | R16: 0 | S16: 0 | T16: 0
A17: GRAN TOTAL | C17: =+C10+C16 -> 78,291 | D17: 80,940 | E17: 82,655 | F17: 82,212 | G17: 71,089 | H17: 67,860 | I17: 65,917 | J17: 64,222 | K17: 60,962 | L17: =+L10+L16 -> 357 | M17: 1,045 | N17: 1,564 | O17: 1,309 | P17: 964 | Q17: 585 | R17: 528 | S17: 630 | T17: 659

Sheet 6.4
A2: HISTORICO POBLACION VULNERABLE
A4: AÑO | B4: POBLACIONES | I4: TOTAL POBLACION VULNERABLE
B5: DESPLAZADOS | C5: DISCAPACITADOS | D5: NEGRITUDES | E5: INDIGENAS | F5: DESVINCULADOS | G5: HIJOS DE DESMOVILIZADOS | H5: VICTIMAS DE MINAS
A6: 2011 | B6: 6535 | C6: 472 | D6: 126 | E6: 1686 | F6: 43 | G6: 108 | H6: 20 | I6: =SUM(B6:H6) -> 8990
A7: 2012 | B7: 6692 | C7: 450 | D7: 140 | E7: 1743 | F7: 34 | G7: 80 | H7: 19 | I7: 9158
A8: 2013 | B8: 7062 | C8: 486 | D8: 207 | E8: 1564 | F8: 22 | G8: 79 | H8: 21 | I8: 9441
A9: 2014 | B9: 7428 | C9: 528 | D9: 209 | E9: 1495 | F9: 27 | G9: 74 | H9: 25 | I9: 9786
A10: 2015 | B10: 8427 | C10: 566 | D10: 200 | E10: 1512 | F10: 22 | G10: 1 | H10: 0 | I10: 10728
A11: 2016 | B11: 9516 | C11: 652 | D11: 212 | E11: 1536 | F11: 13 | G11: 65 | H11: 0 | I11: 11994

Sheet 6.5
B1: REPUBLICA DE COLOMBIA
B2: DEPARTAMENTO DE CAQUETA
B3: SECRETARIA DE EDUCACION
B5: INSTITUCIONES Y CENTRO EDUCATIVOS CAQUETA
B6: SEGÚN DECRETO 002062 DEL 28 DE DICIEMBRE DE 2015
B8: MUNICIPIO | C8: TOTAL ESTABLECIMIENTOS EDUCATIVOS | H8: TOTAL SEDES ACTIVAS
C9: RURAL | E9: URBANA | F9: U/R | G9: TOTAL | H9: RURAL | J9: URBANA | K9: TOTAL
C10: CE | D10: IE | E10: IE | F10: IE | H10: CE | I10: IE | J10: IE
B11: ALBANIA | C11: 1 | D11: 1 | E11: 1 | F11: 0 | G11: =+C11+D11+E11+F11 -> 3 | H11: 14 | I11: 11 | J11: 2 | K11: =+H11+I11+J11 -> 27
B12: BELÉN DE LOS ANDAQUÍES | C12: 0 | D12: 4 | E12: 2 | F12: 0 | G12: =+C12+D12+E12+F12 -> 6 | I12: 47 | J12: 3 | K12: =+H12+I12+J12 -> 50
B13: CARTAGENA DEL CHAIRÁ | C13: 0 | D13: 13 | E13: 0 | F13: 2 | G13: 15 | I13: 162 | J13: 6 | K13: 168
B14: CURILLO | C14: 0 | D14: 4 | E14: 1 | F14: 0 | G14: 5 | H14: 7 | I14: 27 | J14: 2 | K14: 36
B15: EL DONCELLO | C15: 0 | D15: 5 | E15: 3 | F15: 1 | G15: 9 | I15: 54 | J15: 11 | K15: 65
B16: EL PAUJIL | C16: 0 | D16: 5 | E16: 1 | F16: 1 | G16: 7 | I16: 53 | J16: 4 | K16: 57
B17: LA MONTAÑITA | C17: 3 | D17: 10 | E17: 1 | F17: 0 | G17: 14 | H17: 26 | I17: 82 | J17: 2 | K17: 110
B18: MILÁN | C18: 1 | D18: 7 | E18: 1 | F18: 0 | G18: 9 | H18: 16 | I18: 43 | J18: 2 | K18: 61
B19: MORELIA | C19: 1 | D19: 1 | E19: 1 | F19: 0 | G19: 3 | H19: 8 | I19: 8 | J19: 3 | K19: 19
B20: PUERTO RICO | C20: 4 | D20: 10 | E20: 2 | F20: 0 | G20: 16 | H20: 38 | I20: 126 | J20: 8 | K20: 172
B21: SAN JOSÉ DEL FRAGUA | C21: 0 | D21: 6 | E21: 2 | F21: 0 | G21: 8 | I21: 60 | J21: 5 | K21: 65
B22: SAN VICENTE DEL CAGUÁN | C22: 0 | D22: 25 | E22: 3 | F22: 1 | G22: 29 | H22: 6 | I22: 244 | J22: 11 | K22: 261
B23: SOLANO | C23: 1 | D23: 9 | E23: 1 | F23: 0 | G23: 11 | H23: 14 | I23: 70 | J23: 1 | K23: 85
B24: SOLITA | C24: 0 | D24: 3 | E24: 1 | F24: 0 | G24: 4 | I24: 37 | J24: 2 | K24: 39
B25: VALPARAÍSO | C25: 0 | D25: 6 | E25: 1 | F25: 0 | G25: 7 | I25: 51 | J25: 3 | K25: 54
B26: TOTAL GENERAL | C26: =SUM(C11:C25) -> 11 | D26: =SUM(D11:D25) -> 109 | E26: 21 | F26: 5 | G26: 146 | H26: 129 | I26: 1,075 | J26: 65 | K26: 1,269
